Date the Expenditure was incurred,Local authority department which incurred the expenditure,SUPPLIER_DESC,Summary of the purpose of the expenditure,Amount,Vat,"Merchant category (eg. Computers, software etc)",COST_DESC
PAYMENT_DATE,DEPART_DESC,SUPPLIER_DESC,ANALYSIS_DESC,AMOUNT,Vat,ACCOUNT_DESC,COST_DESC
24/05/2017,City Developments and Neighbourhood,ESPO,Cleaning Materials,517.50,103.50,Materials Purchase,Stock Procurement
10/05/2017,City Developments and Neighbourhood,ESPO,Materials Purchase,"3,127.00",625.40,Materials Purchase,Stock Procurement
05/05/2017,Adults & Housing Department,ESPO,Equipment Purchase,"1,210.98",242.20,Equipment Purchase,Leicester Leys Leisure Centre
23/05/2017,Corporate Resources & Support,Due North Ltd,IT Software,"3,400.00",680.00,IT Software,Procurement Services
,City Developments and Neighbourhood,AB Adcock,Responsive,"4,380.00",876.00,Building Works & Repairs/Maintenance/Alterations,Landscape Services Citywide
,City Developments and Neighbourhood,AB Adcock,Materials Purchase,832.00,166.40,Materials Purchase,Landscape Services Citywide
17/05/2017,City Developments and Neighbourhood,ADT Fire & Security plc,Responsive,643.30,128.66,Building Services / Repairs & Maintenance  Fixtures & Fittings,Central Maintenance Fund Non Schools
30/05/2017,City Developments and Neighbourhood,ADT Fire & Security plc,Responsive,975.95,195.19,Building Services / Repairs & Maintenance  Fixtures & Fittings,Building & Service Maintenance External
09/05/2017,Adults & Housing Department,Age UK Leicester Shire &  Contract Care Ltd,Carers Support,"4,986.11",0.00,VCS - Adults & Older People,Voluntary Community Sector Services
17/05/2017,City Developments and Neighbourhood,Aggregate Industries UK Ltd,Materials Purchase,"1,015.69",203.14,Materials Purchase,City Highways - Operation
17/05/2017,City Developments and Neighbourhood,Aggregate Industries UK Ltd,Materials Purchase,"1,625.78",325.16,Materials Purchase,City Highways - Operation
,Adults & Housing Department,Alzheimers Society,Services for People with Dementia,"20,449.50",0.00,VCS - Adults & Older People,Voluntary Community Sector Services
31/05/2017,City Developments and Neighbourhood,Green Machines Sweepers UK Ltd.,Repairs & Maintenance Vehicles,779.25,155.85,Vehicles Repairs & Maintenance / Parts & Accessories,Workshop
05/05/2017,City Developments and Neighbourhood,Aqua-Jet Specialist Drainage Contractors Ltd,Project - Responsive,"1,969.75",393.95,Project - R&M Fixtures & Fittings,Drainage (RM2)
26/05/2017,City Developments and Neighbourhood,Aqua-Jet Specialist Drainage Contractors Ltd,Project - Responsive,"5,755.51","1,151.10",Project - R&M Fixtures & Fittings,Drainage (RM2)
23/05/2017,Education & Childrens Services,Argos Business Solutions,Equipment / Other - Child,601.59,120.32,Other Agencies,LAC Team B 16+
09/05/2017,City Developments and Neighbourhood,Ashwell Maintenance Ltd,Responsive,866.58,173.32,Building Services / Repairs & Maintenance  Fixtures & Fittings,Central Maintenance Fund Non Schools
17/05/2017,City Developments and Neighbourhood,Biffa Waste Services Ltd,Biffa Unitary Charge,"1,161,666.67","232,333.33",Private Contractors,Public Finance Investment Waste Management
17/05/2017,City Developments and Neighbourhood,Biffa Waste Services Ltd,Landfill Tax,"32,174.97","6,434.99",Private Contractors,Public Finance Investment Waste Management
17/05/2017,City Developments and Neighbourhood,Biffa Waste Services Ltd,Biffa Other Services,"1,370.95",274.19,Private Contractors,Public Finance Investment Waste Management
17/05/2017,City Developments and Neighbourhood,Biffa Waste Services Ltd,Biffa Other Services,"11,818.26","2,363.65",Private Contractors,Gypsum Close Household Waste Recycling Centre (HWRC)
17/05/2017,City Developments and Neighbourhood,Biffa Waste Services Ltd,Biffa Other Services,"8,087.76","1,617.55",Private Contractors,Public Finance Investment Waste Management
26/05/2017,Education & Childrens Services,Birkett House School,Internal Use Of Grants,"22,017.87",0.00,Other Local Authorities,Special Top-Ups
30/05/2017,Education & Childrens Services,Blossoms Private Day Nursery,SEN Placements,"1,500.00",0.00,Other Agencies,Early Years Top-Ups
,City Developments and Neighbourhood,B&Q Plc,Gift certificates / vouchers / cards,"2,001.84",400.37,Printed & Electronic Media,Property Lettings Team
26/05/2017,City Developments and Neighbourhood,Broadland Guarding Services Lt,Professional Fees,"13,512.46","2,702.49",Management & Business & Administrative Services,CCTV
23/05/2017,City Developments and Neighbourhood,Bt Payment Services Ltd,Planned,"7,927.96","1,585.59",Transport Infrastructure,Signals County
12/05/2017,City Developments and Neighbourhood,Buchanan Computing Ltd,Annual Maintenance - Software,"1,638.00",327.60,Repairs & Maintenance  IT Software,Head of Transport Strategy
09/05/2017,City Developments and Neighbourhood,Cooleraid Ltd,Water Cooler Bottles,"1,080.00",216.00,Catering Provisions / Food & Drink,Blackbird Road Site (RM1)
24/05/2017,Corporate Resources & Support,Oliveti Construction Ltd,Alterations,617.63,123.53,Building Works & Repairs/Maintenance/Alterations,Registration Service
24/05/2017,City Developments and Neighbourhood,Oliveti Construction Ltd,Responsive,870.64,174.13,Building Works & Repairs/Maintenance/Alterations,Vacant Premises
17/05/2017,Education & Childrens Services,Oliveti Construction Ltd,Responsive,"15,000.00","3,000.00",Building Works & Repairs/Maintenance/Alterations,Secondary Behaviour Partnership
23/05/2017,City Developments and Neighbourhood,Oliveti Construction Ltd,Vandalism,"1,121.52",224.30,Building Works & Repairs/Maintenance/Alterations,Parks Maintenance East
,City Developments and Neighbourhood,Oliveti Construction Ltd,Asbestos - Works,"5,808.32","1,161.66",Asbestos,Central Maintenance Fund Non Schools
17/05/2017,City Developments and Neighbourhood,Oliveti Construction Ltd,Responsive,"2,000.00",400.00,Building Works & Repairs/Maintenance/Alterations,Central Maintenance Fund Non Schools
23/05/2017,,Oliveti Construction Ltd,Building Works - Alterations,"10,000.00","2,000.00",Building Works - Alterations,Resources and Support
26/05/2017,Education & Childrens Services,Compass Fostering Central Ltd,Independent Foster Agencies,"2,951.75",0.00,Other Agencies,Independent Fostering Agencies
26/05/2017,Education & Childrens Services,Compass Fostering Central Ltd,Independent Foster Agencies,"2,323.68",0.00,Other Agencies,Independent Fostering Agencies
26/05/2017,Education & Childrens Services,Compass Fostering Central Ltd,Independent Foster Agencies,"3,100.00",0.00,Other Agencies,Independent Fostering Agencies
26/05/2017,Education & Childrens Services,Compass Fostering Central Ltd,Independent Foster Agencies,"3,210.67",0.00,Other Agencies,Independent Fostering Agencies
23/05/2017,City Developments and Neighbourhood,Crocodile Catering Equipment,Repair & Maintenance Tools / Equipment,579.00,115.80,Repairs & Maintenance - Equipment & Furniture,Brite Centre
23/05/2017,City Developments and Neighbourhood,Dawson Rentals Sweepers,Hire Vehicles,"1,860.00",372.00,Hire Vehicles,Hire Vehicles
,Education & Childrens Services,Federation Of Muslim Organisations (FMO),Grant to Voluntary Organisation,"17,500.00",0.00,Grant to Voluntary Organisation,Safeguarding Unit - Management
26/05/2017,City Developments and Neighbourhood,Ford & Slater,Repairs & Maintenance Vehicles,627.30,125.46,Vehicles Repairs & Maintenance / Parts & Accessories,Workshop
17/05/2017,City Developments and Neighbourhood,British Fossils,Materials purchased for resale,874.54,174.91,Materials Purchase,Museums Retail
12/05/2017,Education & Childrens Services,Foster Care Associates Ltd,Independent Foster Agencies,"3,428.40",0.00,Other Agencies,Independent Fostering Agencies
,Education & Childrens Services,GAZ Autoschool (Education & Training) Ltd,Education and Training Services,562.50,112.50,Education & Training Services,VESA 13-19 Support Agency
,Corporate Resources & Support,Geldards Llp,LCC Ext Solicitors Costs,648.00,129.60,Legal Fees & Charges,Legal Disbursements
31/05/2017,Adults & Housing Department,Guru Tegh Bahadur Luncheon Cl,Day Care /Community Opportunities,676.94,0.00,Day Care /Community Opportunities,WEST - Comm'g - Braunstone and Meridian - Team 2
17/05/2017,Adults & Housing Department,Guru Nanak Community Centre,Lunch Club,"5,293.50",0.00,VCS - Adults & Older People,Voluntary Community Sector Services
09/05/2017,,Arcadis LLP,Consultant Fees,"24,851.45","4,970.29",Consultant Fees,City Developments and Neighbourhood
10/05/2017,,Arcadis LLP,Consultant Fees,"6,520.00","1,304.00",Consultant Fees,Education and Children's Services
30/05/2017,City Developments and Neighbourhood,Arcadis LLP,Research / Data Collection / Surveys / Sampling,"43,431.50","8,686.30",Engineering / Research / Technology / Science Services,Shops Management
26/05/2017,Adults & Housing Department,Mosaic Shaping Disability Serv,Day Care /Community Opportunities,"2,103.20",0.00,Day Care /Community Opportunities,EAST - Comm'g - Rushey Mead - East 2
26/05/2017,Adults & Housing Department,Mosaic Shaping Disability Serv,Day Care /Community Opportunities,669.20,0.00,Day Care /Community Opportunities,EAST - Comm'g - Merlyn Vaz HC and St Peters - East 1
09/05/2017,Education & Childrens Services,Highfields Cars,Employee Taxi Travel Expense,"2,077.00",415.40,Taxi Travel Expense,Operational Transport Ad Hoc
12/05/2017,Education & Childrens Services,Highfields Cars,Employee Taxi Travel Expense,"1,084.00",216.80,Taxi Travel Expense,Operational Transport Ad Hoc
,Education & Childrens Services,Hopwells Ltd,Catering - Provisions,"1,242.80",248.56,Catering Provisions / Food & Drink,Catering - School Meals O/H Acc
,Education & Childrens Services,Hopwells Ltd,Catering - Provisions,"29,858.30",0.00,Catering Provisions / Food & Drink,Catering - School Meals O/H Acc
30/05/2017,Education & Childrens Services,Jay Fostering Ltd,Independent Foster Agencies,"3,500.83",0.00,Other Agencies,UASC National Rate
26/05/2017,Corporate Resources & Support,JCDecaux Ltd,Printing,777.00,155.40,Printing & Copying,Communications and Marketing Management
,Education & Childrens Services,Kirby & West Ltd,Catering - Provisions,938.15,0.00,Catering Provisions / Food & Drink,Catering - School Meals O/H Acc
31/05/2017,Adults & Housing Department,Lamp,Mental Health Services,"7,702.25","1,540.45",VCS - Adults & Older People,Voluntary Community Sector Services
30/05/2017,Education & Childrens Services,Leicester Citybus Ltd,Employee Public Transport Expenses,"1,389.40",0.00,Public Transport Expenses,CYPS Business
23/05/2017,Education & Childrens Services,Leicestershire County Council,Politics and Civic Affairs Services,893.03,0.00,Politics & Civic Affairs Services,YOS Team 5
,City Developments and Neighbourhood,Leicestershire County Council,Engineering / Research / Technology / Science Services,"6,051.50","1,210.30",Engineering / Research / Technology / Science Services,City Highways - Operation
,,Leicestershire County Council Environment & Transport,Management & Business Professionals & Administrative Services,700.00,140.00,Management & Business & Administrative Services,City Developments and Neighbourhood
23/05/2017,Adults & Housing Department,Leicestershire Partnership NHS Trust,Childrens (5-19),"135,166.67",0.00,Public Health Initiatives,Children 0-19
26/05/2017,City Developments and Neighbourhood,Leicester Outdoor Pursuits Centre,Sundry Project Grants,"8,290.50",PE,Private Contractors,Green BELLE
,City Developments and Neighbourhood,Liberty Printers Ltd,Security & Safety Services,800.00,160.00,Public Order & Security Services,On-Street Parking/ De-criminalised Parking Enforcement
09/05/2017,City Developments and Neighbourhood,Lift & Engineering Services Ltd,Responsive,"1,150.00",230.00,Building Services / Repairs & Maintenance  Fixtures & Fittings,Phoenix House
05/05/2017,City Developments and Neighbourhood,Lift & Engineering Services Ltd,Responsive,765.50,153.10,Building Services / Repairs & Maintenance  Fixtures & Fittings,Contractor Repair & Maintenance projects
17/05/2017,City Developments and Neighbourhood,Lift & Engineering Services Ltd,Responsive,"1,278.60",255.72,Building Services / Repairs & Maintenance  Fixtures & Fittings,Contractor Repair & Maintenance projects
24/05/2017,City Developments and Neighbourhood,Lowe Electrical,Responsive,"2,045.24",409.05,Building Services / Repairs & Maintenance  Fixtures & Fittings,Buildings
10/05/2017,City Developments and Neighbourhood,Lowe Electrical,Electricity at Work - Surveys,"2,196.19",439.24,Electricity at Work,Buildings
10/05/2017,Adults & Housing Department,Lowe Electrical,Responsive,906.59,181.32,Building Services / Repairs & Maintenance  Fixtures & Fittings,Leicester Leys Leisure Centre
05/05/2017,City Developments and Neighbourhood,Lowe Electrical,Electricity at Work - Surveys,"1,557.79",311.56,Electricity at Work,Central Maintenance Fund Non Schools
17/05/2017,City Developments and Neighbourhood,Lowe Electrical,Responsive,"1,206.79",241.36,Building Services / Repairs & Maintenance  Fixtures & Fittings,Schools Buy Back Board
17/05/2017,City Developments and Neighbourhood,Lowe Electrical,Responsive,851.77,170.35,Building Services / Repairs & Maintenance  Fixtures & Fittings,FOSSE CC
23/05/2017,City Developments and Neighbourhood,Lowe Electrical,Electricity at Work - Works,"1,633.63",326.73,Electricity at Work,Central Maintenance Fund Non Schools
23/05/2017,City Developments and Neighbourhood,Lowe Electrical,Responsive,"1,441.20",288.24,Building Services / Repairs & Maintenance  Fixtures & Fittings,Central Maintenance Fund Non Schools
23/05/2017,Adults & Housing Department,Lowe Electrical,Responsive,"1,199.71",239.94,Building Services / Repairs & Maintenance  Fixtures & Fittings,Aylestone Leisure Centre
24/05/2017,City Developments and Neighbourhood,Lowe Electrical,Responsive,"1,528.97",305.79,Building Services / Repairs & Maintenance  Fixtures & Fittings,Schools Buy Back Board
23/05/2017,City Developments and Neighbourhood,Lowe Electrical,Electricity at Work - Works,"2,650.36",530.07,Electricity at Work,Schools Buy Back Board
09/05/2017,City Developments and Neighbourhood,Lowe Electrical,Electricity at Work - Surveys,795.64,159.13,Electricity at Work,Investment Property
09/05/2017,City Developments and Neighbourhood,Lowe Electrical,Responsive,957.49,191.50,Building Services / Repairs & Maintenance  Fixtures & Fittings,COLEMAN LODGE
24/05/2017,Adults & Housing Department,Macintyre Care,Residential Permanent,"1,624.00",0.00,Residential Care,LD Targeted Reassessment Team-Commissioning
05/05/2017,City Developments and Neighbourhood,Mole Groundworks Limited,Equipment Hire/Lease,"1,080.00",216.00,Equipment Hire / Lease,Schools Services Citywide
05/05/2017,City Developments and Neighbourhood,Mole Groundworks Limited,Equipment Hire/Lease,"3,140.00",628.00,Equipment Hire / Lease,Landscape Services Citywide
05/05/2017,City Developments and Neighbourhood,Mole Groundworks Limited,Equipment Hire/Lease,"3,105.00",621.00,Equipment Hire / Lease,Landscape Services Citywide
26/05/2017,Adults & Housing Department,Mosaic Shaping(Dis Serv)Main,Consultants Fees,883.85,0.00,Consultant Fees,DOLS
26/05/2017,Adults & Housing Department,Mosaic Shaping(Dis Serv)Main,Consultants Fees,620.50,0.00,Consultant Fees,DOLS
26/05/2017,Education & Childrens Services,National Fostering Agency,Independent Foster Agencies,"1,104.73",0.00,Other Agencies,Independent Fostering Agencies
05/05/2017,City Developments and Neighbourhood,Newline Midlands Ltd,Equipment Hire/Lease,735.00,147.00,Equipment Hire / Lease,City Highways - Operation
09/05/2017,Education & Childrens Services,Nottingham City Council,Education and Training Services,"1,635.83",327.17,Education & Training Services,RA Admin & Business Support
31/05/2017,Education & Childrens Services,North Warwickshire & South Leicestershire College,Training,900.00,0.00,Employee Training,Children's Residential - Management
09/05/2017,,Open Reach Bt Plc,Engineering Consultancy / Consultants Services,576.88,115.38,Engineering & Research & Technology Based Services,City Developments and Neighbourhood
23/05/2017,City Developments and Neighbourhood,Phoenix (Leicester) Ltd,Project - Responsive,"19,555.00","3,911.00",Project - Repairs / Maintenance / Alterations,Contractor Repair & Maintenance projects
05/05/2017,City Developments and Neighbourhood,Pitney Bowes Finance Ltd,Equipment Hire/Lease,"1,214.71",242.94,Equipment Hire / Lease,Admin Support (Blackbird Road)
09/05/2017,City Developments and Neighbourhood,Pitney Bowes Ltd t/a Postage By Phone-Pitney Bowes,Postage,"13,879.81",PE,Postage,Franked Mail
30/05/2017,Education & Childrens Services,Pre-School Learning Alliance (Leicestershire),SEN Placements,"1,500.00",0.00,Other Agencies,Early Years Top-Ups
05/05/2017,City Developments and Neighbourhood,Premier Waste And Recycling,Responsive,874.95,174.99,Building Works & Repairs/Maintenance/Alterations,City Wardens
26/05/2017,City Developments and Neighbourhood,Premier Security Services Ltd T/a Regent Samsic,Security & Safety Services,554.02,110.80,Public Order & Security Services,Bosworth House
12/05/2017,Education & Childrens Services,Total Produce Foodservice,Catering - Provisions,"10,040.59",0.00,Catering Provisions / Food & Drink,Catering - School Meals O/H Acc
26/05/2017,Education & Childrens Services,Total Produce Foodservice,Catering - Provisions,"11,578.14",0.00,Catering Provisions / Food & Drink,Catering - School Meals O/H Acc
24/05/2017,City Developments and Neighbourhood,Saffron Lane Neighbourhood Council,Voluntary Sector - Other,"17,366.00",0.00,Voluntary Organisations,VOLUNTARY ORGANISATIONS
05/05/2017,Education & Childrens Services,Randstad Education Ltd,Agency Local Government Staff,704.10,140.82,Agency Local Government Staff,Pindar Nursery
05/05/2017,Education & Childrens Services,Randstad Education Ltd,Agency Local Government Staff,704.10,140.82,Agency Local Government Staff,Pindar Nursery
05/05/2017,Education & Childrens Services,Randstad Education Ltd,Agency Local Government Staff,615.90,123.18,Agency Local Government Staff,Arc/Phoenix Unit
03/05/2017,Education & Childrens Services,Randstad Education Ltd,Agency Local Government Staff,536.45,107.29,Agency Local Government Staff,Service Support Unit
02/05/2017,,AT Services Ltd,Fixtures & Fittings,"11,982.48","2,396.50",Fixtures & Fittings,Housing HRA
17/05/2017,City Developments and Neighbourhood,AT Services Ltd,Project - Responsive,"2,354.83",470.97,Project - R&M Fixtures & Fittings,Contractor Repair & Maintenance projects
12/05/2017,City Developments and Neighbourhood,AT Services Ltd,Responsive,506.04,101.21,Building Services / Repairs & Maintenance  Fixtures & Fittings,Schools Buy Back Board
12/05/2017,City Developments and Neighbourhood,AT Services Ltd,Responsive,998.87,199.77,Building Works & Repairs/Maintenance/Alterations,Building & Service Maintenance External
17/05/2017,City Developments and Neighbourhood,AT Services Ltd,Responsive,901.72,180.34,Building Services / Repairs & Maintenance  Fixtures & Fittings,Central Maintenance Fund Non Schools
24/05/2017,City Developments and Neighbourhood,AT Services Ltd,Responsive,617.47,123.49,Building Services / Repairs & Maintenance  Fixtures & Fittings,Schools Buy Back Board
09/05/2017,City Developments and Neighbourhood,AT Services Ltd,Servicing,510.00,102.00,Building Services / Repairs & Maintenance  Fixtures & Fittings,Central Maintenance Fund Non Schools
05/05/2017,City Developments and Neighbourhood,AT Services Ltd,Project - Responsive,"1,029.09",205.82,Project - R&M Fixtures & Fittings,Contractor Repair & Maintenance projects
30/05/2017,,AT Services Ltd,Fixtures & Fittings,"16,075.04","3,215.01",Fixtures & Fittings,Education and Children's Services
12/05/2017,Education & Childrens Services,Sketchley Horizon Priory,Independent School Fees,"1,140.51",0.00,Independent School Fees,Independent and Non-Maintained Schools
09/05/2017,Corporate Resources & Support,Somali Development Services,Voluntary Sector - Other,"7,875.00",0.00,Voluntary Organisations,Partnership Projects
30/05/2017,Education & Childrens Services,Somali Development Services,SEN Placements,"1,500.00",0.00,Other Agencies,Early Years Top-Ups
31/05/2017,Education & Childrens Services,Educ8,Education and Training Services,960.00,192.00,Education & Training Services,VESA 13-19 Support Agency
26/05/2017,Education & Childrens Services,Sutherland House (Trading) Ltd,Independent School Fees,"22,810.00","4,562.00",Independent School Fees,Independent and Non-Maintained Schools
26/05/2017,Education & Childrens Services,Sutherland House (Trading) Ltd,Independent School Fees,"22,810.00","4,562.00",Independent School Fees,Independent and Non-Maintained Schools
26/05/2017,Education & Childrens Services,Sutherland House (Trading) Ltd,Independent School Fees,"16,267.00","3,253.40",Independent School Fees,Independent and Non-Maintained Schools
12/05/2017,City Developments and Neighbourhood,Tarmac Ltd,Materials Purchase,"1,565.36",313.07,Materials Purchase,Stock Procurement
23/05/2017,City Developments and Neighbourhood,Tarmac Ltd,Materials Purchase,"1,046.76",209.35,Materials Purchase,Stock Procurement
23/05/2017,City Developments and Neighbourhood,Tarmac Ltd,Materials Purchase,518.61,103.72,Materials Purchase,Stock Procurement
05/05/2017,City Developments and Neighbourhood,Tarmac Ltd,Materials Purchase,524.17,104.83,Materials Purchase,Stock Procurement
24/05/2017,City Developments and Neighbourhood,Tarmac Ltd,Responsive,714.86,142.97,Building Works & Repairs/Maintenance/Alterations,City Highways - Operation
17/05/2017,City Developments and Neighbourhood,Thomas Cassie & Sons,Responsive,"2,288.27",457.65,Building Works & Repairs/Maintenance/Alterations,Schools Buy Back Board
10/05/2017,City Developments and Neighbourhood,The Sparks Childrens Arts Festival,Belgrave - Ward Consultative Committees,500.00,0.00,Independent Units Within The Council,Ward Community Fund
10/05/2017,City Developments and Neighbourhood,Townscape Products Ltd,Equipment Purchase,"2,337.50",467.50,Equipment Purchase,Stock Procurement
31/05/2017,City Developments and Neighbourhood,Total Gas & Power Ltd,Gas Bills,589.94,29.50,Gas Utilities,Buildings
05/05/2017,City Developments and Neighbourhood,Total Gas & Power Ltd,Gas Bills,769.94,38.50,Project - Gas,Sheltered Accommodation
05/05/2017,City Developments and Neighbourhood,Total Gas & Power Ltd,Gas Bills,919.03,183.81,Gas Utilities,Investment Property
05/05/2017,City Developments and Neighbourhood,Total Gas & Power Ltd,Gas Bills,"1,273.07",254.61,Gas Utilities,Melbourne Centre
05/05/2017,City Developments and Neighbourhood,Total Gas & Power Ltd,Gas Bills,602.64,120.53,Gas Utilities,Newarke Houses Museum
05/05/2017,City Developments and Neighbourhood,Total Gas & Power Ltd,Gas Bills,"1,203.75",60.19,Gas Utilities,Leicester District Energy
05/05/2017,City Developments and Neighbourhood,Total Gas & Power Ltd,Gas Bills,"1,291.22",258.24,Gas Utilities,Vacant Premises
05/05/2017,City Developments and Neighbourhood,Total Gas & Power Ltd,Gas Bills,"2,407.45",481.49,Gas Utilities,Gilroes Crematorium
05/05/2017,City Developments and Neighbourhood,Total Gas & Power Ltd,Gas Bills,566.27,113.25,Gas Utilities,Collegiate House
05/05/2017,City Developments and Neighbourhood,Total Gas & Power Ltd,Gas Bills,"1,824.23",364.85,Gas Utilities,Stores
31/05/2017,City Developments and Neighbourhood,Total Gas & Power Ltd,Electricity Bills,"1,124.24",224.85,Electricity Utilities,Haymarket Car Park
03/05/2017,Education & Childrens Services,Total Gas & Power Ltd,Electricity Bills,663.91,132.78,Electricity Utilities,Carisbrooke SLC Resources
31/05/2017,City Developments and Neighbourhood,Total Gas & Power Ltd,Electricity Bills,"2,862.07",572.41,Electricity Utilities,Town Hall
31/05/2017,City Developments and Neighbourhood,Total Gas & Power Ltd,Electricity Bills,"1,441.34",288.27,Electricity Utilities,Former Haymarket Centre
31/05/2017,City Developments and Neighbourhood,Total Gas & Power Ltd,Electricity Bills,"2,013.44",402.69,Electricity Utilities,Gilroes Crematorium
31/05/2017,Education & Childrens Services,Total Gas & Power Ltd,Electricity Bills,"1,608.81",321.76,Electricity Utilities,New Parks Sure Start
,City Developments and Neighbourhood,Total Gas & Power Ltd,Gas Bills,816.51,40.83,Gas Utilities,Leicester District Energy
,City Developments and Neighbourhood,Total Gas & Power Ltd,Gas Bills,"1,438.02",71.90,Gas Utilities,Leicester District Energy
,City Developments and Neighbourhood,Total Gas & Power Ltd,Gas Bills,659.31,32.97,Project - Gas,Sheltered Accommodation
,Adults & Housing Department,Total Gas & Power Ltd,Gas Bills,877.29,175.46,Gas Utilities,Aylestone Recreation Ground - Football Foundation Pavillion
,City Developments and Neighbourhood,Total Gas & Power Ltd,Gas Bills,712.86,142.57,Gas Utilities,Abbey Pumping Station
,City Developments and Neighbourhood,Total Gas & Power Ltd,Gas Bills,"17,711.09",885.55,Gas Utilities,Communal Heating - Aikman Avenue
,City Developments and Neighbourhood,Total Gas & Power Ltd,Gas Bills,658.82,32.94,Project - Gas,Sheltered Accommodation
17/05/2017,City Developments and Neighbourhood,Tyco Integrated Fire & Security,Equipment Purchase,"4,783.00",956.60,Equipment Purchase,Signals County
,Corporate Resources & Support,University of Leicester,Pathology Services,600.00,120.00,Funeral Services,Coroners
05/05/2017,Education & Childrens Services,University Of Nottingham,Education and Training Services,"7,062.50",PE,Education & Training Services,SEN Reform Grant
26/05/2017,Education & Childrens Services,Victoria Cabs,Employee Taxi Travel Expense,"5,671.25","1,134.25",Taxi Travel Expense,Operational Transport Ad Hoc
09/05/2017,Corporate Resources & Support,Voluntary Action Leicester,Voluntary Sector - Other,"32,557.50","6,511.50",Voluntary Organisations,Partnership Projects
17/05/2017,Adults & Housing Department,West Indian Senior Citizens Project,Lunch Club,"4,192.50",0.00,VCS - Adults & Older People,Voluntary Community Sector Services
26/05/2017,Corporate Resources & Support,Weightmans LLP,LCC Ext Solicitors Costs,"1,483.50",296.70,Legal Fees & Charges,Public Liability
24/05/2017,Corporate Resources & Support,Weightmans LLP,LCC Ext Solicitors Costs,"2,202.25",440.45,Legal Fees & Charges,Public Liability
24/05/2017,Corporate Resources & Support,Weightmans LLP,LCC Ext Solicitors Costs,"2,679.50",535.90,Legal Fees & Charges,Public Liability
24/05/2017,Corporate Resources & Support,Weightmans LLP,LCC Ext Solicitors Costs,"2,116.00",423.20,Legal Fees & Charges,Employers Liability
26/05/2017,,Weightmans LLP,Legal Fees & Charges,"2,500.00",500.00,External Legal Fees and Charges,City Developments and Neighbourhood
12/05/2017,Adults & Housing Department,Westcotes House Ltd,Interim Residential (Delayed Discharges),"1,472.50",294.50,Residential Care,Locality WEST -- Westcotes -- Team 4
,Education & Childrens Services,Westcotes House Ltd,Accommodation - Supported Accommodation,"1,485.00",297.00,Other Establishments,LAC Semi-Independent  Accommodation
,City Developments and Neighbourhood,Westbury Industrial Supplies Ltd,Equipment Purchase,504.00,100.80,Equipment Purchase,Stock Procurement
10/05/2017,City Developments and Neighbourhood,WPS United Kingdom Ltd,Planned,877.00,175.40,Transport Infrastructure,Enderby Park & Ride
,City Developments and Neighbourhood,WPS United Kingdom Ltd,Repair & Maintenance Tools / Equipment,726.00,145.20,Repairs & Maintenance - Equipment & Furniture,Newarke Street Car Park
10/05/2017,Adults & Housing Department,Zoggs International Limited,Equipment Purchase,"1,404.00",280.80,Equipment Purchase,Leicester Leys Leisure Centre
24/05/2017,Education & Childrens Services,Active 8 Care Ltd,Residential Placements,"5,610.00",0.00,Other Agencies,Externally Commissioned Placements
05/05/2017,City Developments and Neighbourhood,Mojo Promotions,Marketing and Advertising,825.40,165.08,Marketing & Advertising,P&OS Overhead
12/05/2017,Adults & Housing Department,Enham,Direct Payments,"13,715.76","2,743.15",Direct Payments,Generic ASC & Safeguarding
24/05/2017,Adults & Housing Department,Bosworth Court Nursing Home,Residential Permanent,"1,780.00",0.00,Residential Care,EAST - Commissioning - Supported Residents Care Team
24/05/2017,Adults & Housing Department,Royal Society For The Blind,Residential Permanent,"1,704.00",0.00,Residential Care,EAST - Commissioning - Supported Residents Care Team
24/05/2017,Adults & Housing Department,Craegmoor Facilities Co Ltd t/a Craegmoor Landsdowne Road,Residential Permanent,"1,524.44",0.00,Residential Care,LD Short Term/Unplanned Team - Commissioning
24/05/2017,Adults & Housing Department,Craegmoor Facilities Co Ltd t/a Craegmoor Landsdowne Road,Residential Permanent,"1,732.00",0.00,Residential Care,LD Team 1-Commissioning
24/05/2017,Adults & Housing Department,Prime Life Plc,Residential Permanent,"1,528.00",0.00,Residential Care,Adult Mental Health - Maidstone Road (Under 65 s) - Commissioning
24/05/2017,Adults & Housing Department,Prime Life Plc,Residential Permanent,"1,528.00",0.00,Residential Care,Adult Mental Health - Maidstone Road (Under 65 s) - Commissioning
24/05/2017,Adults & Housing Department,Welford Court Ltd,Residential Permanent,"1,704.00",0.00,Residential Care,EAST - Commissioning - Supported Residents Care Team
24/05/2017,Adults & Housing Department,Ashleigh Nursing Home,Nursing Permanent,"1,852.00",0.00,Nursing Care,EAST - Commissioning - Supported Residents Care Team
24/05/2017,Adults & Housing Department,Ashleigh Nursing Home,Residential Permanent,"1,900.00",0.00,Residential Care,EAST - Commissioning - Supported Residents Care Team
24/05/2017,Adults & Housing Department,Hamilton House,Residential Permanent,"1,900.00",0.00,Residential Care,Adult Mental Health - Maidstone Road (Under 65 s) - Commissioning
24/05/2017,Adults & Housing Department,Hamilton House,Residential Permanent,"1,900.00",0.00,Residential Care,Commissioning Community -Adult Mental Health Assertive Outreach
24/05/2017,Adults & Housing Department,Prime Life Plc,Residential Permanent,"1,528.00",0.00,Residential Care,Adult Mental Health - Maidstone Road (Under 65 s) - Commissioning
24/05/2017,Adults & Housing Department,Prime Life Plc,Residential Short Stay,"2,436.00",0.00,Residential Care,LD Team 1-Commissioning
24/05/2017,Adults & Housing Department,D.H. & S.C. Davies,Residential Permanent,"1,900.00",0.00,Residential Care,Commissioning Community - CMHT City East (Merlyn Vaz)
24/05/2017,Adults & Housing Department,Pilgrim Homes,Residential Permanent,"1,704.00",0.00,Residential Care,EAST - Commissioning - Supported Residents Care Team
24/05/2017,Adults & Housing Department,Sanctuary Care Ltd t/a Asra House,Residential Permanent,"1,643.14",0.00,Residential Care,LOC WEST - Reablement - Team 2  - Sulgrave Road - Commissioning
24/05/2017,Adults & Housing Department,Sanctuary Care Ltd t/a Asra House,Residential Permanent,"1,704.00",0.00,Residential Care,EAST - Commissioning - Supported Residents Care Team
24/05/2017,Adults & Housing Department,Gratia Residential Care Home Ltd,Residential Permanent,"1,732.00",0.00,Residential Care,LD Team 2 -Commissioning
24/05/2017,Adults & Housing Department,Dallington House,Residential Permanent,"1,596.00",0.00,Residential Care,EAST - Commissioning - Supported Residents Care Team
24/05/2017,Adults & Housing Department,Westcotes Rest Home,Residential Permanent,"1,704.00",0.00,Residential Care,EAST - Commissioning - Supported Residents Care Team
24/05/2017,Adults & Housing Department,Westcotes Rest Home,Residential Permanent,"1,704.00",0.00,Residential Care,EAST - Commissioning - Supported Residents Care Team
24/05/2017,Adults & Housing Department,Venetia House,Residential Permanent,"1,528.00",0.00,Residential Care,Adult Mental Health - Maidstone Road (Under 65 s) - Commissioning
24/05/2017,Adults & Housing Department,Eastern Care Ltd T/a Newton House,Residential Permanent,"1,528.00",0.00,Residential Care,Adult Mental Health - Maidstone Road (Under 65 s) - Commissioning
24/05/2017,Adults & Housing Department,Eastern Care Ltd T/a Newton House,Residential Permanent,"1,528.00",0.00,Residential Care,EAST - Commissioning - Supported Residents Care Team
24/05/2017,Adults & Housing Department,Elliott Rest Homes,Residential Permanent,"1,900.00",0.00,Residential Care,Adult Mental Health - Maidstone Road (Under 65 s) - Commissioning
24/05/2017,Adults & Housing Department,Elliott Rest Homes,Residential Permanent,"1,528.00",0.00,Residential Care,Adult Mental Health - Maidstone Road (Under 65 s) - Commissioning
24/05/2017,Adults & Housing Department,Elliott Rest Homes,Residential Permanent,"1,900.00",0.00,Residential Care,Adult Mental Health - Maidstone Road (Under 65 s) - Commissioning
24/05/2017,Adults & Housing Department,Elliott Rest Homes,Residential Short Stay,804.14,0.00,Residential Care,LD Team 1-Commissioning
24/05/2017,Adults & Housing Department,Elliott Rest Homes,Residential Permanent,"1,528.00",0.00,Residential Care,Adult Mental Health - Maidstone Road (Under 65 s) - Commissioning
24/05/2017,Adults & Housing Department,Elliott Rest Homes,Residential Permanent,"1,732.00",0.00,Residential Care,LD Team 2 -Commissioning
24/05/2017,Adults & Housing Department,Nottingham community  Housing Association (Carefirst),Residential Permanent,"1,704.00",0.00,Residential Care,EAST - Commissioning - Supported Residents Care Team
24/05/2017,Adults & Housing Department,Nottingham community  Housing Association (Carefirst),Residential Permanent,"1,900.00",0.00,Residential Care,EAST - Commissioning - Supported Residents Care Team
24/05/2017,Adults & Housing Department,Nottingham community  Housing Association (Carefirst),Residential Permanent,"1,704.00",0.00,Residential Care,EAST - Commissioning - Supported Residents Care Team
24/05/2017,Adults & Housing Department,Nottingham community  Housing Association (Carefirst),Residential Permanent,"1,900.00",0.00,Residential Care,EAST - Comm'g - Springfield Road - East 3
24/05/2017,Adults & Housing Department,Nottingham community  Housing Association (Carefirst),Residential Short Stay,542.86,0.00,Residential Care,WEST - Comm'g - Belgrave - Team 1
24/05/2017,Adults & Housing Department,Nottingham community  Housing Association (Carefirst),Residential Permanent,"1,900.00",0.00,Residential Care,Health Transfers - Commissioning - Discharge Team 1
,Adults & Housing Department,Prime Life Plc,Interim Residential (Delayed Discharges),950.00,0.00,Residential Care,Locality WEST -- Westcotes -- Team 4
24/05/2017,Adults & Housing Department,Prime Life Plc,Residential Permanent,"1,704.00",0.00,Residential Care,EAST - Commissioning - Supported Residents Care Team
24/05/2017,Adults & Housing Department,Prime Life Plc,Residential Permanent,"1,704.00",0.00,Residential Care,EAST - Commissioning - Supported Residents Care Team
24/05/2017,Adults & Housing Department,Prime Life Plc,Residential Permanent,"1,704.00",0.00,Residential Care,EAST - Commissioning - Supported Residents Care Team
24/05/2017,Adults & Housing Department,Pearlcare Glenfield Ltd (CLOSED: VAT REG),Residential Permanent,"1,134.20",0.00,Residential Care,WEST - Comm'g - Belgrave - Team 1
24/05/2017,Adults & Housing Department,Aylesham Court Nursing Home,Nursing Permanent,"1,736.00",0.00,Nursing Care,EAST - Commissioning - Supported Residents Care Team
24/05/2017,Adults & Housing Department,Your Health Limited,Residential Permanent,"1,704.00",0.00,Residential Care,EAST - Comm'g - Springfield Road - East 3
24/05/2017,Adults & Housing Department,Manor Nursing Home,Residential Permanent,"1,900.00",0.00,Residential Care,EAST - Commissioning - Supported Residents Care Team
24/05/2017,Adults & Housing Department,Manor Nursing Home,Residential Permanent,"1,900.00",0.00,Residential Care,WEST - Comm'g - Paisley Road - Team 3
17/05/2017,Adults & Housing Department,Lester Hall Apartments Ltd,Residential Short Stay,"3,934.29",0.00,Residential Care,LOC South - Transitions Team - Commissioning
24/05/2017,Adults & Housing Department,Lester Hall Apartments Ltd,Residential Permanent,"2,328.60",0.00,Residential Care,EAST - Comm'g - Springfield Road - East 3
24/05/2017,Adults & Housing Department,Lester Hall Apartments Ltd,Residential Permanent,"1,900.00",0.00,Residential Care,EAST - Commissioning - Supported Residents Care Team
24/05/2017,Adults & Housing Department,Lester Hall Apartments Ltd,Residential Permanent,"1,528.00",0.00,Residential Care,EAST - Commissioning - Supported Residents Care Team
24/05/2017,Adults & Housing Department,Lester Hall Apartments Ltd,Residential Permanent,"3,177.00",0.00,Residential Care,EAST - Commissioning - Supported Residents Care Team
24/05/2017,Adults & Housing Department,Autism Care (Uk) Ltd,Residential Permanent,"6,302.32",0.00,Residential Care,LD Team 2 -Commissioning
24/05/2017,Adults & Housing Department,Hamra Associates Ltd,Residential Permanent,"1,732.00",0.00,Residential Care,Adult Mental Health - Maidstone Road (Under 65 s) - Commissioning
24/05/2017,Adults & Housing Department,Magnum Care Ltd T/a Alston House,Residential Short Stay,"1,034.57",0.00,Residential Care,Health Transfers - Commissioning - Discharge Team 2
24/05/2017,Adults & Housing Department,Grey Ferrers Nursing Home,Nursing Permanent,"1,852.00",0.00,Nursing Care,EAST - Commissioning - Supported Residents Care Team
24/05/2017,Adults & Housing Department,Grey Ferrers Nursing Home,Nursing Permanent,"1,852.00",0.00,Nursing Care,EAST - Commissioning - Supported Residents Care Team
24/05/2017,Adults & Housing Department,Grey Ferrers Nursing Home,Nursing Permanent,"1,852.00",0.00,Nursing Care,EAST - Commissioning - Supported Residents Care Team
24/05/2017,Adults & Housing Department,Grey Ferrers Nursing Home,Nursing Permanent,"1,302.00",0.00,Nursing Care,WEST - Comm'g - Belgrave - Team 1
24/05/2017,Adults & Housing Department,Magnum Care Ltd T/a Aberry House,Nursing Permanent,"1,852.00",0.00,Nursing Care,Health Transfers - Commissioning - Discharge Team 1
24/05/2017,Adults & Housing Department,Heartwell House Residential Care Ltd,Residential Permanent,"1,900.00",0.00,Residential Care,Commissioning Community - CMHT City East (Merlyn Vaz)
24/05/2017,Adults & Housing Department,Heartwell House Residential Care Ltd,Residential Permanent,"1,528.00",0.00,Residential Care,Commissioning Community - CMHT City East (Merlyn Vaz)
24/05/2017,Adults & Housing Department,Heartwell House Residential Care Ltd,Residential Permanent,"1,528.00",0.00,Residential Care,EAST - Commissioning - Supported Residents Care Team
24/05/2017,Adults & Housing Department,Heartwell House Residential Care Ltd,Residential Permanent,"2,281.08",0.00,Residential Care,EAST - Commissioning - Supported Residents Care Team
24/05/2017,Adults & Housing Department,The Ark Care Lodge,Residential Permanent,503.60,0.00,Residential Care,LD Team 2 -Commissioning
24/05/2017,Adults & Housing Department,The Ark Care Lodge,Residential Permanent,"1,732.00",0.00,Residential Care,LD Team 2 -Commissioning
24/05/2017,Adults & Housing Department,The Ark Care Lodge,Residential Permanent,"1,732.00",0.00,Residential Care,LD Team 2 -Commissioning
24/05/2017,Adults & Housing Department,The Ark Care Lodge,Residential Permanent,"1,732.00",0.00,Residential Care,LD Team 2 -Commissioning
24/05/2017,Adults & Housing Department,Leonard Cheshire,Residential Permanent,"1,780.00",0.00,Residential Care,EAST - Commissioning - Supported Residents Care Team
24/05/2017,Adults & Housing Department,St Bennetts Care Home,Residential Permanent,"1,704.00",0.00,Residential Care,EAST - Commissioning - Supported Residents Care Team
24/05/2017,Adults & Housing Department,Western Park Ltd,Residential Short Stay,608.57,0.00,Residential Care,EAST - Comm'g - Springfield Road - East 3
24/05/2017,Adults & Housing Department,Western Park Ltd,Residential Short Stay,"1,095.43",0.00,Residential Care,Health Transfers - Commissioning - Discharge Team 2
24/05/2017,Adults & Housing Department,Western Park Ltd,Residential Permanent,"1,900.00",0.00,Residential Care,EAST - Commissioning - Supported Residents Care Team
24/05/2017,Adults & Housing Department,Western Park Ltd,Residential Permanent,"1,900.00",0.00,Residential Care,Locality WEST -- Westcotes -- Team 4
24/05/2017,Adults & Housing Department,Western Park Ltd,Residential Short Stay,542.86,0.00,Residential Care,Locality WEST -- Westcotes -- Team 4
24/05/2017,Adults & Housing Department,Western Park Ltd,Residential Permanent,"1,900.00",0.00,Residential Care,EAST - Commissioning - Supported Residents Care Team
24/05/2017,Adults & Housing Department,Western Park Ltd,Residential Permanent,"1,900.00",0.00,Residential Care,EAST - Commissioning - Supported Residents Care Team
24/05/2017,Adults & Housing Department,Western Park Ltd,Residential Permanent,"1,704.00",0.00,Residential Care,EAST - Commissioning - Supported Residents Care Team
24/05/2017,Adults & Housing Department,Western Park Ltd,Residential Permanent,730.29,0.00,Residential Care,LOC WEST - Reablement - Team 2  - Sulgrave Road - Commissioning
24/05/2017,Adults & Housing Department,Cherre Residential Care,Residential Permanent,"1,732.00",0.00,Residential Care,LD Team 2 -Commissioning
24/05/2017,Adults & Housing Department,Cherre Residential Care,Residential Permanent,"1,732.00",0.00,Residential Care,LD Team 2 -Commissioning
24/05/2017,Adults & Housing Department,Cherre Residential Care,Residential Permanent,"11,585.76",0.00,Residential Care,LOC West - Team 4 - Thurcaston Road - Commissioning
24/05/2017,Adults & Housing Department,Royal Society For The Blind,Residential Respite,826.43,0.00,Residential Care,WEST - Comm'g - Braunstone and Meridian - Team 2
24/05/2017,Adults & Housing Department,Royal Society For The Blind,Residential Short Stay,672.00,0.00,Residential Care,WEST - Comm'g - Belgrave - Team 1
24/05/2017,Adults & Housing Department,Royal Society For The Blind,Residential Short Stay,"1,197.00",0.00,Residential Care,WEST - Comm'g - Belgrave - Team 1
24/05/2017,Adults & Housing Department,Royal Society For The Blind,Residential Permanent,"1,596.00",0.00,Residential Care,LOC WEST - Reablement - Team 2  - Sulgrave Road - Commissioning
24/05/2017,Adults & Housing Department,HC-One Ltd T/a Harley Grange Care Home,Nursing Permanent,"1,252.80",0.00,Nursing Care,EAST - Commissioning - Supported Residents Care Team
24/05/2017,Adults & Housing Department,Goodwood Orchard Resdntl Home,Residential Permanent,"1,900.00",0.00,Residential Care,EAST - Commissioning - Supported Residents Care Team
24/05/2017,Adults & Housing Department,Goodwood Orchard Resdntl Home,Residential Permanent,950.00,0.00,Residential Care,EAST - Commissioning - Supported Residents Care Team
24/05/2017,Adults & Housing Department,Goodwood Orchard Resdntl Home,Residential Permanent,"1,704.00",0.00,Residential Care,EAST - Comm'g - Uppingham Road - East 4
24/05/2017,Adults & Housing Department,Hambleton House,Residential Permanent,"1,732.00",0.00,Residential Care,LD Team 2 -Commissioning
24/05/2017,Adults & Housing Department,Streetscene,Residential Short Stay,918.00,0.00,Residential Care,LOC South -  Substance Misuse  - Commissioning
24/05/2017,Adults & Housing Department,Streetscene,Residential Short Stay,920.57,0.00,Residential Care,LOC South -  Substance Misuse  - Commissioning
03/05/2017,Education & Childrens Services,Homefield College,Education and Training Services,"12,543.00",0.00,Education & Training Services,ISP Top-Ups
24/05/2017,Adults & Housing Department,Homefield College,Residential Permanent,"2,031.48",0.00,Residential Care,LD Team 1-Commissioning
12/05/2017,Adults & Housing Department,Help At Home,Personal Care / Generic,526.61,0.00,Home Care,LOC SOUTH - TEAM 2 - Martin House - Commissioning
26/05/2017,Adults & Housing Department,Help At Home,Personal Care / Generic,507.49,0.00,Home Care,WEST - Comm'g - Paisley Road - Team 3
05/05/2017,Adults & Housing Department,Amicare Domiciliary Services Ltd,Personal Care / Generic,665.85,0.00,Home Care,LOC EAST - TEAM 4  - Merlyn Vaz - Commissioning
05/05/2017,Adults & Housing Department,Amicare Domiciliary Services Ltd,Personal Care / Generic,"1,304.10",0.00,Home Care,LOC SOUTH - TEAM 1 - Martin House - Commissioning
05/05/2017,Adults & Housing Department,Amicare Domiciliary Services Ltd,Personal Care / Generic,978.19,0.00,Home Care,EAST - Comm'g - Uppingham Road - East 4
05/05/2017,Adults & Housing Department,Amicare Domiciliary Services Ltd,Personal Care / Generic,507.15,0.00,Home Care,EAST - Comm'g - Springfield Road - East 3
,Adults & Housing Department,Danbury Gardens - Help at Home,Home Care - Extra Care,556.59,0.00,Home Care,LD Team 1-Commissioning
,Adults & Housing Department,Danbury Gardens - Help at Home,Home Care - Extra Care,549.62,0.00,Home Care,LOC EAST - TEAM 3  - Merlyn Vaz - Commissioning
,Adults & Housing Department,Danbury Gardens - Help at Home,Home Care - Extra Care,958.18,0.00,Home Care,EAST - Commissioning - Supported Residents Care Team
,Adults & Housing Department,Danbury Gardens - Help at Home,Home Care - Extra Care,591.78,0.00,Home Care,LOC EAST - TEAM 1 - Merlyn Vaz - Commissioning
24/05/2017,Adults & Housing Department,Direct Health UK Ltd,Personal Care / Generic,619.93,0.00,Home Care,EAST - Comm'g - Merlyn Vaz HC and St Peters - East 1
23/05/2017,Adults & Housing Department,Domiciliary Care Services UK Ltd,Personal Care / Generic,999.60,0.00,Home Care,EAST - Comm'g - Rushey Mead - East 2
23/05/2017,Adults & Housing Department,Domiciliary Care Services UK Ltd,Personal Care / Generic,"1,349.46",0.00,Home Care,EAST - Comm'g - Rushey Mead - East 2
23/05/2017,Adults & Housing Department,Domiciliary Care Services UK Ltd,Personal Care / Generic,"1,492.26",0.00,Home Care,EAST - Comm'g - Rushey Mead - East 2
23/05/2017,Adults & Housing Department,Domiciliary Care Services UK Ltd,Personal Care / Generic,588.61,0.00,Home Care,WEST - Comm'g - Belgrave - Team 1
23/05/2017,Adults & Housing Department,Domiciliary Care Services UK Ltd,Personal Care / Generic,"1,842.12",0.00,Home Care,WEST - Comm'g - Belgrave - Team 1
23/05/2017,Adults & Housing Department,Domiciliary Care Services UK Ltd,Personal Care / Generic,664.02,0.00,Home Care,EAST - Comm'g - Rushey Mead - East 2
23/05/2017,Adults & Housing Department,Domiciliary Care Services UK Ltd,Personal Care / Generic,"1,456.56",0.00,Home Care,EAST - Comm'g - Merlyn Vaz HC and St Peters - East 1
23/05/2017,Adults & Housing Department,Domiciliary Care Services UK Ltd,Personal Care / Generic,540.06,0.00,Home Care,Locality WEST -- Westcotes -- Team 4
05/05/2017,Adults & Housing Department,Westminster Homecare Ltd ),Personal Care / Generic,581.40,0.00,Home Care,Health Transfers - Commissioning - Discharge Team 1
05/05/2017,Adults & Housing Department,Westminster Homecare Ltd ),Personal Care / Generic,"1,152.60",0.00,Home Care,LD Short Term/Unplanned Team - Commissioning
05/05/2017,Adults & Housing Department,Westminster Homecare Ltd ),Personal Care / Generic,"1,041.08",0.00,Home Care,LOC EAST - TEAM 4  - Merlyn Vaz - Commissioning
05/05/2017,Adults & Housing Department,Westminster Homecare Ltd ),Personal Care / Generic,636.48,0.00,Home Care,LOC West - Team 4 - Thurcaston Road - Commissioning
31/05/2017,Adults & Housing Department,Westminster Homecare Ltd ),Personal Care / Generic,"1,337.30",0.00,Home Care,EAST - Comm'g - Rushey Mead - East 2
31/05/2017,Adults & Housing Department,Westminster Homecare Ltd ),Personal Care / Generic,606.68,0.00,Home Care,WEST - Comm'g - Braunstone and Meridian - Team 2
31/05/2017,Adults & Housing Department,Westminster Homecare Ltd ),Personal Care / Generic,"1,477.28",0.00,Home Care,EAST - Comm'g - Springfield Road - East 3
24/05/2017,Adults & Housing Department,HC-One Ltd T/a Cedar Court,Residential Permanent,"1,780.00",0.00,Residential Care,EAST - Commissioning - Supported Residents Care Team
24/05/2017,Adults & Housing Department,HC-One Ltd T/a Cedar Court,Nursing Permanent,"1,736.00",0.00,Nursing Care,EAST - Commissioning - Supported Residents Care Team
24/05/2017,Adults & Housing Department,G B Care Ltd,Nursing Permanent,"1,852.00",0.00,Nursing Care,LOC West - Team 4 - Thurcaston Road - Commissioning
24/05/2017,Adults & Housing Department,CLARENDON MEWS CARE LIMITED,Residential Permanent,"1,900.00",0.00,Residential Care,EAST - Commissioning - Supported Residents Care Team
24/05/2017,Adults & Housing Department,CLARENDON MEWS CARE LIMITED,Residential Permanent,"1,704.00",0.00,Residential Care,EAST - Commissioning - Supported Residents Care Team
24/05/2017,Adults & Housing Department,CLARENDON MEWS CARE LIMITED,Residential Permanent,"1,900.00",0.00,Residential Care,EAST - Commissioning - Supported Residents Care Team
24/05/2017,Adults & Housing Department,CLARENDON MEWS CARE LIMITED,Residential Short Stay,791.14,0.00,Residential Care,Health Transfers - Commissioning - Discharge Team 2
24/05/2017,Adults & Housing Department,CLARENDON MEWS CARE LIMITED,Residential Short Stay,"1,460.57",0.00,Residential Care,Health Transfers - Commissioning - Discharge Team 2
24/05/2017,Adults & Housing Department,Marston Court Ltd T/a Marston Court,Residential Permanent,"1,596.24",0.00,Residential Care,LD Team 2 -Commissioning
24/05/2017,Adults & Housing Department,Marston Court Ltd T/a Marston Court,Residential Permanent,"1,732.00",0.00,Residential Care,LD Team 2 -Commissioning
,Adults & Housing Department,Marston Court Ltd T/a Marston Court,Interim Residential (Delayed Discharges),866.00,0.00,Residential Care,LD Team 1-Commissioning
26/05/2017,Adults & Housing Department,Hartington Road Care Home,Residential Short Stay,"1,732.00",0.00,Residential Care,LD Team 1-Commissioning
24/05/2017,Adults & Housing Department,Deafway,Residential Permanent,"1,780.00",0.00,Residential Care,Locality WEST -- Westcotes -- Team 4
24/05/2017,Adults & Housing Department,Deafway,Residential Permanent,"3,260.00",0.00,Residential Care,Locality WEST -- Westcotes -- Team 4
24/05/2017,Adults & Housing Department,Craegmoor Facilities Co. Ltd t/a Craegmoor Halifax Drive,Residential Permanent,958.80,0.00,Residential Care,LD Team 2 -Commissioning
24/05/2017,Adults & Housing Department,Craegmoor Facilities Co. Ltd t/a Craegmoor Halifax Drive,Residential Permanent,"1,732.00",0.00,Residential Care,LD Team 2 -Commissioning
24/05/2017,Adults & Housing Department,Flora Lodge,Residential Permanent,"1,528.00",0.00,Residential Care,Commissioning - Braunstone Health & Social Care Centre - Adult Mental Health
31/05/2017,Adults & Housing Department,Ark Home Healthcare Ltd,Personal Care / Generic,"1,255.59",0.00,Home Care,Locality WEST -- Westcotes -- Team 4
31/05/2017,Adults & Housing Department,Ark Home Healthcare Ltd,Personal Care / Generic,615.18,0.00,Home Care,LOC WEST - TEAM 2 - Thurcaston Road - Commissioning
31/05/2017,Adults & Housing Department,Ark Home Healthcare Ltd,Personal Care / Generic,567.36,0.00,Home Care,EAST - Comm'g - Rushey Mead - East 2
31/05/2017,Adults & Housing Department,Ark Home Healthcare Ltd,Personal Care / Generic,532.53,0.00,Home Care,Health Transfers - Commissioning - Discharge Team 2
31/05/2017,Adults & Housing Department,Ark Home Healthcare Ltd,Personal Care / Generic,720.74,0.00,Home Care,WEST - Comm'g - Braunstone and Meridian - Team 2
31/05/2017,Adults & Housing Department,Ark Home Healthcare Ltd,Personal Care / Generic,680.75,0.00,Home Care,WEST - Comm'g - Paisley Road - Team 3
31/05/2017,Adults & Housing Department,Ark Home Healthcare Ltd,Personal Care / Generic,729.72,0.00,Home Care,EAST - Comm'g - Uppingham Road - East 4
31/05/2017,Adults & Housing Department,Ark Home Healthcare Ltd,Personal Care / Generic,586.61,0.00,Home Care,LOC WEST - Reablement - Team 2  - Sulgrave Road - Commissioning
31/05/2017,Adults & Housing Department,Ark Home Healthcare Ltd,Personal Care / Generic,"2,146.97",0.00,Home Care,WEST - Comm'g - Braunstone and Meridian - Team 2
24/05/2017,Adults & Housing Department,Holmes House,Residential Permanent,"1,780.00",0.00,Residential Care,EAST - Commissioning - Supported Residents Care Team
24/05/2017,Adults & Housing Department,"Langdale Residential Home, Langdale House Ltd",Nursing Permanent,"1,736.00",0.00,Nursing Care,EAST - Commissioning - Supported Residents Care Team
24/05/2017,Adults & Housing Department,Pine View Care Homes Ltd T/a Groby Lodge,Residential Permanent,"1,704.00",0.00,Residential Care,EAST - Commissioning - Supported Residents Care Team
24/05/2017,Adults & Housing Department,Pine View Care Homes Ltd T/a Groby Lodge,Residential Permanent,"1,704.00",0.00,Residential Care,EAST - Commissioning - Supported Residents Care Team
24/05/2017,Adults & Housing Department,Ayeesha Raj,Residential Permanent,"1,624.00",0.00,Residential Care,LD Team 2 -Commissioning
24/05/2017,Adults & Housing Department,Ayeesha Raj,Residential Permanent,"12,572.40",0.00,Residential Care,LD Team 2 -Commissioning
24/05/2017,Adults & Housing Department,Vishram Ghar,Residential Permanent,"1,704.00",0.00,Residential Care,EAST - Commissioning - Supported Residents Care Team
24/05/2017,Adults & Housing Department,Vishram Ghar,Residential Permanent,"1,900.00",0.00,Residential Care,EAST - Commissioning - Supported Residents Care Team
24/05/2017,Adults & Housing Department,Vishram Ghar,Residential Permanent,"1,704.00",0.00,Residential Care,EAST - Commissioning - Supported Residents Care Team
24/05/2017,Adults & Housing Department,Vishram Ghar,Residential Permanent,"1,704.00",0.00,Residential Care,EAST - Commissioning - Supported Residents Care Team
24/05/2017,Adults & Housing Department,Rushey Mead Manor Care Home,Interim Residential (Delayed Discharges),"1,153.57",0.00,Residential Care,EAST - Comm'g - Merlyn Vaz HC and St Peters - East 1
24/05/2017,Adults & Housing Department,Rushey Mead Manor Care Home,Residential Permanent,"1,704.00",0.00,Residential Care,EAST - Commissioning - Supported Residents Care Team
24/05/2017,Adults & Housing Department,Rushey Mead Manor Care Home,Residential Short Stay,"1,460.57",0.00,Residential Care,Health Transfers - Commissioning - Discharge Team 2
24/05/2017,Adults & Housing Department,Rushey Mead Manor Care Home,Nursing Permanent,"1,852.00",0.00,Nursing Care,EAST - Commissioning - Supported Residents Care Team
24/05/2017,Adults & Housing Department,Rushey Mead Manor Care Home,Residential Permanent,"1,900.00",0.00,Residential Care,EAST - Commissioning - Supported Residents Care Team
24/05/2017,Adults & Housing Department,Rushey Mead Manor Care Home,Nursing Permanent,"1,852.00",0.00,Nursing Care,EAST - Commissioning - Supported Residents Care Team
24/05/2017,Adults & Housing Department,Rushey Mead Manor Care Home,Residential Short Stay,"1,832.14",0.00,Residential Care,Health Transfers - Commissioning - Discharge Team 2
24/05/2017,Adults & Housing Department,Rushey Mead Manor Care Home,Nursing Permanent,"1,852.00",0.00,Nursing Care,EAST - Commissioning - Supported Residents Care Team
24/05/2017,Adults & Housing Department,Rushey Mead Manor Care Home,Residential Short Stay,950.00,0.00,Residential Care,WEST - Comm'g - Braunstone and Meridian - Team 2
24/05/2017,Adults & Housing Department,Rushey Mead Manor Care Home,Residential Permanent,950.00,0.00,Residential Care,EAST - Comm'g - Rushey Mead - East 2
24/05/2017,Adults & Housing Department,Rushey Mead Manor Care Home,Residential Permanent,"1,900.00",0.00,Residential Care,EAST - Comm'g - Rushey Mead - East 2
24/05/2017,Adults & Housing Department,Hicare Ltd,Residential Permanent,"1,900.00",0.00,Residential Care,EAST - Commissioning - Supported Residents Care Team
24/05/2017,Adults & Housing Department,Hicare Ltd,Residential Short Stay,852.00,0.00,Residential Care,LOC WEST - Reablement - Team 1  - Sulgrave Road - Commissioning
24/05/2017,Adults & Housing Department,Hicare Ltd,Residential Permanent,"1,704.00",0.00,Residential Care,EAST - Commissioning - Supported Residents Care Team
24/05/2017,Adults & Housing Department,Hicare Ltd,Residential Permanent,"1,704.00",0.00,Residential Care,EAST - Commissioning - Supported Residents Care Team
24/05/2017,Adults & Housing Department,Hicare Ltd,Residential Permanent,946.96,0.00,Residential Care,EAST - Commissioning - Supported Residents Care Team
24/05/2017,Adults & Housing Department,Hicare Ltd,Residential Permanent,"1,289.29",0.00,Residential Care,EAST - Comm'g - Merlyn Vaz HC and St Peters - East 1
24/05/2017,Adults & Housing Department,Hicare Ltd,Residential Permanent,"1,900.00",0.00,Residential Care,EAST - Commissioning - Supported Residents Care Team
24/05/2017,Adults & Housing Department,Hicare Ltd,Interim Residential (Delayed Discharges),610.71,0.00,Residential Care,Health Transfers - Commissioning - Discharge Team 1
24/05/2017,Adults & Housing Department,Hicare Ltd,Residential Permanent,"1,704.00",0.00,Residential Care,EAST - Commissioning - Supported Residents Care Team
24/05/2017,Adults & Housing Department,Hicare Ltd,Residential Permanent,"1,704.00",0.00,Residential Care,WEST - Comm'g - Paisley Road - Team 3
24/05/2017,Adults & Housing Department,Mere Lodge Ltd T/a Mere Lodge,Residential Permanent,"7,656.76",0.00,Residential Care,Adult Mental Health - Maidstone Road (Under 65 s) - Commissioning
24/05/2017,Adults & Housing Department,Mauricare Ltd,Residential Short Stay,678.57,0.00,Residential Care,WEST - Comm'g - Belgrave - Team 1
24/05/2017,Adults & Housing Department,Prime Life Ltd,Residential Permanent,"1,900.00",0.00,Residential Care,Commissioning - Braunstone Health & Social Care Centre - Adult Mental Health
24/05/2017,Adults & Housing Department,Knighton Manor Ltd,Residential Permanent,"1,732.00",0.00,Residential Care,LD Team 2 -Commissioning
24/05/2017,Adults & Housing Department,Knighton Manor Ltd,Residential Permanent,"1,732.00",0.00,Residential Care,LD Team 2 -Commissioning
24/05/2017,Adults & Housing Department,Prime Life Ltd,Residential Permanent,"1,528.00",0.00,Residential Care,Commissioning - Braunstone Health & Social Care Centre - Adult Mental Health
24/05/2017,Adults & Housing Department,Prime Life Ltd,Residential Short Stay,"1,560.71",0.00,Residential Care,Commissioning Community -Adult Mental Health Assertive Outreach
24/05/2017,Adults & Housing Department,Prime Life Ltd,Residential Permanent,"1,528.00",0.00,Residential Care,Commissioning - Braunstone Health & Social Care Centre - Adult Mental Health
24/05/2017,Adults & Housing Department,Prime Life Ltd,Residential Permanent,"1,528.00",0.00,Residential Care,Commissioning Community - CMHT City East (Merlyn Vaz)
24/05/2017,Adults & Housing Department,Prime Life Ltd,Residential Permanent,"1,528.00",0.00,Residential Care,Commissioning - Braunstone Health & Social Care Centre - Adult Mental Health
,Adults & Housing Department,Primelife Ltd,Nursing Permanent,"1,736.00",0.00,Nursing Care,EAST - Commissioning - Supported Residents Care Team
03/05/2017,Adults & Housing Department,Milligan Court,Residential Short Stay,"8,292.00",0.00,Residential Care,LD Team 2 -Commissioning
24/05/2017,Adults & Housing Department,Milligan Court,Residential Permanent,"5,380.00",0.00,Residential Care,LD Team 1-Commissioning
24/05/2017,Adults & Housing Department,Sanctuary Home Care Limited T/a Skelton Court,Residential Permanent,"1,732.00",0.00,Residential Care,LD Team 2 -Commissioning
24/05/2017,Adults & Housing Department,Sanctuary Home Care Limited T/a Skelton Court,Residential Permanent,"1,732.00",0.00,Residential Care,LD Targeted Reassessment Team-Commissioning
24/05/2017,Adults & Housing Department,Pendene House Residential Home Ltd,Residential Permanent,764.00,0.00,Residential Care,EAST - Commissioning - Supported Residents Care Team
24/05/2017,Adults & Housing Department,Streetscene,Residential Short Stay,"1,428.00",0.00,Residential Care,LOC South -  Substance Misuse  - Commissioning
24/05/2017,Adults & Housing Department,Kingly Care Partnership Ltd,Residential Permanent,"1,759.36",0.00,Residential Care,EAST - Commissioning - Supported Residents Care Team
,Adults & Housing Department,Kingly Care Partnership Ltd,Continuing Health Care Contribution - Nursing Care,"5,484.00",0.00,Continuing Health Care Contribution - Nursing Care,LOC WEST - TEAM 3 - Thurcaston Road - Commissioning
,Adults & Housing Department,Kingly Care Partnership Ltd,Continuing Health Care Contribution - Nursing Care,"2,742.00",0.00,Continuing Health Care Contribution - Nursing Care,LOC WEST - TEAM 3 - Thurcaston Road - Commissioning
24/05/2017,Adults & Housing Department,Prime Life Ltd,Residential Permanent,"2,416.00",0.00,Residential Care,Commissioning Community - Adult Mental Health District Forensic Service (Under 65's)
24/05/2017,Adults & Housing Department,Barkby Road Residential Home,Residential Permanent,"1,624.00",0.00,Residential Care,LD Short Term/Unplanned Team - Commissioning
24/05/2017,Adults & Housing Department,Barkby Road Residential Home,Residential Permanent,"4,524.12",0.00,Residential Care,LD Short Term/Unplanned Team - Commissioning
24/05/2017,Adults & Housing Department,Barkby Road Residential Home,Residential Permanent,"1,624.00",0.00,Residential Care,LD Team 1-Commissioning
24/05/2017,Adults & Housing Department,Barkby Road Residential Home,Residential Permanent,"1,624.00",0.00,Residential Care,LD Team 2 -Commissioning
24/05/2017,Adults & Housing Department,Pine View Care Homes Ltd T/a Silver Birches,Residential Permanent,"1,704.00",0.00,Residential Care,EAST - Commissioning - Supported Residents Care Team
24/05/2017,Adults & Housing Department,Rushcliffe Care Ltd,Residential Permanent,"1,624.00",0.00,Residential Care,LD Targeted Reassessment Team-Commissioning
24/05/2017,Adults & Housing Department,Rushcliffe Care Ltd,Residential Permanent,"1,988.92",0.00,Residential Care,LD Team 2 -Commissioning
24/05/2017,Adults & Housing Department,Rushcliffe Care,Residential Permanent,"1,780.00",0.00,Residential Care,LD Team 2 -Commissioning
24/05/2017,Adults & Housing Department,Rushcliffe Care,Residential Permanent,"2,193.56",0.00,Residential Care,LD Team 2 -Commissioning
24/05/2017,Adults & Housing Department,Prime Life Ltd,Residential Permanent,"1,704.00",0.00,Residential Care,EAST - Commissioning - Supported Residents Care Team
24/05/2017,Adults & Housing Department,Prime Life Ltd,Residential Permanent,"1,704.00",0.00,Residential Care,EAST - Commissioning - Supported Residents Care Team
24/05/2017,Adults & Housing Department,Prime Life Ltd,Residential Permanent,"1,704.00",0.00,Residential Care,EAST - Commissioning - Supported Residents Care Team
24/05/2017,Adults & Housing Department,Diwali Ltd,Residential Permanent,"1,704.00",0.00,Residential Care,EAST - Commissioning - Supported Residents Care Team
24/05/2017,Adults & Housing Department,Diwali Ltd,Residential Permanent,"1,704.00",0.00,Residential Care,Commissioning - Braunstone Health & Social Care Centre - Adult Mental Health
24/05/2017,Adults & Housing Department,Chestnuts (Arnesby) Ltd,Residential Permanent,"2,398.76",0.00,Residential Care,LD Team 2 -Commissioning
17/05/2017,Adults & Housing Department,,Shared Lives - Day Care,"1,105.20",0.00,Shared Lives,LD Short Term/Unplanned Team - Commissioning
30/05/2017,Adults & Housing Department,Always There Homecare Ltd,Personal Care / Generic,833.04,0.00,Home Care,EAST - Comm'g - Springfield Road - East 3
30/05/2017,Adults & Housing Department,Always There Homecare Ltd,Personal Care / Generic,598.08,0.00,Home Care,EAST - Comm'g - Springfield Road - East 3
30/05/2017,Adults & Housing Department,Always There Homecare Ltd,Personal Care / Generic,"1,046.64",0.00,Home Care,WEST - Comm'g - Paisley Road - Team 3
30/05/2017,Adults & Housing Department,Always There Homecare Ltd,Personal Care / Generic,"1,348.05",0.00,Home Care,Locality WEST -- Westcotes -- Team 4
30/05/2017,Adults & Housing Department,Always There Homecare Ltd,Personal Care / Generic,"1,488.08",0.00,Home Care,WEST - Comm'g - Braunstone and Meridian - Team 2
26/05/2017,,North Midland Construction Plc,External Works - Infrastructure,"54,511.28","10,902.26",Transport Infrastructure,City Developments and Neighbourhood
31/05/2017,Adults & Housing Department,Ace Properties,Rent - Other,525.00,0.00,Rent - Other,EAST - Comm'g - Merlyn Vaz HC and St Peters - East 1
26/05/2017,Corporate Resources & Support,G4S Cash Solutions (UK) Ltd,Security & Safety Services,594.00,118.80,Public Order & Security Services,Cashiers
05/05/2017,City Developments and Neighbourhood,Centrebus Ltd,Repairs & Maintenance Vehicles,"1,800.00",360.00,Vehicles Repairs & Maintenance / Parts & Accessories,Clean Bus Technology Fund (CBTF)
23/05/2017,Adults & Housing Department,Technical Surfaces Ltd,Grounds Maintenance,557.00,111.40,Grounds Maintenance,New College - Football Foundation Pavillion
23/05/2017,Corporate Finance,KPMG,External Auditor Fees,732.00,146.40,Financial & Insurance Services,District Audit Fees
26/05/2017,City Developments and Neighbourhood,Platts Harris Ltd,Repair & Maintenance Tools / Equipment,749.60,149.92,Repairs & Maintenance - Equipment & Furniture,Saffron Hill Cemetery
12/05/2017,Education & Childrens Services,Park Retail Ltd T/a Love2Reward,Gift certificates / vouchers / cards,"1,764.00",0.00,Printed & Electronic Media,Controllable Recharges - Financial Services
12/05/2017,Education & Childrens Services,Teaching Personnel Ltd,Education and Training Services,"1,890.00",378.00,Education & Training Services,VST Pupil Premium Plus
26/05/2017,Education & Childrens Services,Teaching Personnel Ltd,Agency Local Government Staff,577.89,115.58,Agency Local Government Staff,Service Support Unit
12/05/2017,Education & Childrens Services,Teaching Personnel Ltd,Agency Local Government Staff,577.89,115.58,Agency Local Government Staff,Service Support Unit
12/05/2017,Education & Childrens Services,Leicester BSF Company 1 Ltd,BSF - Utilities,"19,181.42","3,836.28",BSF - Utilities,BSF Unitary Payments
24/05/2017,Adults & Housing Department,Mauricare (AS) Ltd,Residential Permanent,"1,900.00",0.00,Residential Care,LOC WEST - Reablement - Team 1  - Sulgrave Road - Commissioning
24/05/2017,Adults & Housing Department,Mauricare (AS) Ltd,Residential Permanent,"1,900.00",0.00,Residential Care,EAST - Commissioning - Supported Residents Care Team
,Education & Childrens Services,Kelton Mckenzie - Boxercise4Health,3PP - Voluntary Associations,"1,500.00",0.00,Voluntary Organisations,Voluntary Organisation Youth Procedure
24/05/2017,Adults & Housing Department,Harley House Care Home,Nursing Permanent,"1,852.00",0.00,Nursing Care,EAST - Commissioning - Supported Residents Care Team
24/05/2017,Adults & Housing Department,Harley House Care Home,Nursing Permanent,"1,852.00",0.00,Nursing Care,EAST - Commissioning - Supported Residents Care Team
24/05/2017,Adults & Housing Department,Wycar Leys - Church View,Residential Permanent,"1,732.00",0.00,Residential Care,LD Team 2 -Commissioning
24/05/2017,Adults & Housing Department,Wycar Leys - Church View,Residential Permanent,"4,324.64",0.00,Residential Care,LD Team 2 -Commissioning
26/05/2017,City Developments and Neighbourhood,Safe Lives,Direct Payments,"12,300.00","2,460.00",Other Establishments,Domestic Violence Commissioning
24/05/2017,Adults & Housing Department,SR Care Ltd (The Chestnuts),Residential Permanent,"2,299.12",0.00,Residential Care,LD Team 2 -Commissioning
24/05/2017,Adults & Housing Department,Mymil Ltd T/a Scraptoft Court Care Home,Nursing Permanent,"1,852.00",0.00,Nursing Care,EAST - Commissioning - Supported Residents Care Team
23/05/2017,Education & Childrens Services,Bright Bees Nursery Ltd,SEN Placements,"1,500.00",0.00,Other Agencies,Early Years Top-Ups
23/05/2017,Education & Childrens Services,Bright Bees Nursery Ltd,SEN Placements,"1,500.00",0.00,Other Agencies,Early Years Top-Ups
31/05/2017,City Developments and Neighbourhood,JCW Energy Services Ltd,Servicing,"1,500.00",300.00,Building Services / Repairs & Maintenance  Fixtures & Fittings,Building & Service Maintenance External
17/05/2017,Education & Childrens Services,Pasta King UK Ltd,Catering - Provisions,545.54,0.00,Catering Provisions / Food & Drink,Schools Catering - Sir Jonathan North Community College
26/05/2017,City Developments and Neighbourhood,HMS Decorative Surfacing Ltd,Responsive,"3,452.90",690.58,Transport Infrastructure,City Highways - Operation
26/05/2017,,HMS Decorative Surfacing Ltd,External Works - Infrastructure,"4,851.00",970.20,Transport Infrastructure,City Developments and Neighbourhood
30/05/2017,Corporate Resources & Support,Dr Sharon Pettle,Court Experts,"1,609.10",0.00,Legal Fees & Charges,Legal Disbursements
,Education & Childrens Services,Bluestone Catering Solultions Ltd,Catering Equipment Purchase,"1,696.94",339.39,Equipment Purchase,Schools Catering - Kitchen Main Buy Back
31/05/2017,City Developments and Neighbourhood,Central Construction Services Ltd,Environmental Services,"1,920.00",384.00,Environment Related Services,City Highways - Operation
24/05/2017,Adults & Housing Department,Hayes Park Nursing Home,Nursing Permanent,"1,852.00",0.00,Nursing Care,EAST - Commissioning - Supported Residents Care Team
24/05/2017,Adults & Housing Department,Hayes Park Nursing Home,Nursing Permanent,"1,852.00",0.00,Nursing Care,EAST - Commissioning - Supported Residents Care Team
24/05/2017,Adults & Housing Department,Ryedale House Ltd,Residential Permanent,"1,144.48",0.00,Residential Care,Commissioning Community - Adult Mental Health District Forensic Service (Under 65's)
10/05/2017,Adults & Housing Department,Inclusion healthcare social enterprise CIC,Anchor Centre,"11,599.00",0.00,Drug and Alcohol Services,Criminal Justice Treatment Services - Lot 2
,Adults & Housing Department,Inclusion healthcare social enterprise CIC,Health trainer Program Probation,"12,500.00",0.00,PH Community Dev,"Diet,Physical Activity, Healthy Weight"
05/05/2017,Adults & Housing Department,Action Deafness Ltd,Aids & Adaptations,"1,863.00",0.00,Aids & Adaptations,Adaptations and Assistive Technology
09/05/2017,Corporate Resources & Support,CDW Limited,Materials Purchase,"2,121.28",424.26,Materials Purchase,Server Replacement Funds (IT Server Replacement Fund)
17/05/2017,Education & Childrens Services,Leicester City Parent and Carers Forum,Education and Training Services,"10,000.00",PE,Education & Training Services,SEN Reform Grant
,Corporate Resources & Support,Ben Mills,LCC External Barristers Fees,812.50,162.50,Legal Fees & Charges,Legal Disbursements
05/05/2017,City Developments and Neighbourhood,Jordan Road Resufacing Ltd,3PP - Private Contractors,"71,500.52","14,300.10",Private Contractors,City Highways - Operation
26/05/2017,City Developments and Neighbourhood,Jordan Road Resufacing Ltd,Project - Planned,"2,234.31",446.86,Project - Transport Infrastructure,Highways Maintenance
12/05/2017,Adults & Housing Department,Prism UK Medical Ltd,Aids & Adaptations,517.00,103.40,Aids & Adaptations,Adaptations and Assistive Technology
30/05/2017,Adults & Housing Department,Prism UK Medical Ltd,Repair & Maintenance Plant,577.48,115.50,Repairs & Maintenance - Equipment & Furniture,Adaptations and Assistive Technology
17/05/2017,Adults & Housing Department,Prism UK Medical Ltd,Repair & Maintenance Plant,"2,427.10",485.42,Repairs & Maintenance - Equipment & Furniture,Adaptations and Assistive Technology
24/05/2017,Adults & Housing Department,Whiston Hall Ltd,Residential Permanent,"1,536.00",0.00,Residential Care,EAST - Commissioning - Supported Residents Care Team
17/05/2017,Corporate Resources & Support,Ms Jane Bacon,LCC External Barristers Fees,750.00,150.00,Legal Fees & Charges,Legal Disbursements
12/05/2017,Education & Childrens Services,Little Angelz Day Nursery,Neg Pvt Vol & Ind Providers,"2,718.75",0.00,Voluntary Organisations,3/4 Year Old Nursery Education Grant
12/05/2017,,Lucion Environmental Ltd,Asbestos - Surveys,"1,230.00",246.00,Asbestos,Education and Children's Services
17/05/2017,,Lucion Environmental Ltd,Asbestos - Surveys,600.00,120.00,Asbestos,Education and Children's Services
30/05/2017,Adults & Housing Department,Rosywood Care Services Ltd,Residential Permanent,"7,806.04",0.00,Residential Care,LD Short Term/Unplanned Team - Commissioning
05/05/2017,,Go Travel Solutions,Consultant Fees,"2,250.00",450.00,Consultant Fees,City Developments and Neighbourhood
05/05/2017,City Developments and Neighbourhood,Go Travel Solutions,Consultants Fees,"2,500.00",500.00,Consultant Fees,Head of Transport Strategy
09/05/2017,Education & Childrens Services,MJE Contracts (Leicester) Limited,Alterations,616.23,123.25,Building Works & Repairs/Maintenance/Alterations,Carisbrooke SLC Resources
17/05/2017,City Developments and Neighbourhood,MJE Contracts (Leicester) Limited,Responsive,589.70,117.94,Building Works & Repairs/Maintenance/Alterations,Central Maintenance Fund Non Schools
09/05/2017,Corporate Resources & Support,MJE Contracts (Leicester) Limited,Responsive,750.00,150.00,Building Works & Repairs/Maintenance/Alterations,Coroners
09/05/2017,Education & Childrens Services,MJE Contracts (Leicester) Limited,Responsive,"15,555.56","3,111.11",Building Works & Repairs/Maintenance/Alterations,LAEC Premises
23/05/2017,,MJE Contracts (Leicester) Limited,Fixtures & Fittings,"25,536.85","5,107.37",Fixtures & Fittings,Education and Children's Services
26/05/2017,,MJE Contracts (Leicester) Limited,Building Works - Alterations,739.20,147.84,Building Works - Alterations,Education and Children's Services
,City Developments and Neighbourhood,Leicester District Energy Ltd,Other Energy,"1,273.29",254.66,Other Energy,Leicester District Energy
,City Developments and Neighbourhood,Leicester District Energy Ltd,Other Energy,658.33,131.67,Other Energy,Leicester District Energy
,City Developments and Neighbourhood,Leicester District Energy Ltd,Other Energy,"2,687.90",537.58,Other Energy,Leicester District Energy
,City Developments and Neighbourhood,Leicester District Energy Ltd,Other Energy,"6,659.65",332.98,Other Energy,Leicester District Energy
10/05/2017,City Developments and Neighbourhood,Keltbray Environmental Solutions,Asbestos - Works,"1,600.00",320.00,Asbestos,Building & Service Maintenance External
26/05/2017,City Developments and Neighbourhood,Keltbray Environmental Solutions,Asbestos - Works,"1,600.00",320.00,Asbestos,Central Maintenance Fund - Schools
24/05/2017,Adults & Housing Department,Abberdale House,Residential Permanent,"1,900.00",0.00,Residential Care,WEST - Comm'g - Braunstone and Meridian - Team 2
24/05/2017,Adults & Housing Department,Abberdale House,Residential Short Stay,"1,289.29",0.00,Residential Care,LOC WEST - Reablement - Team 1  - Sulgrave Road - Commissioning
23/05/2017,City Developments and Neighbourhood,Wastecycle Ltd,Tipping charges,834.38,166.88,Environment Related Services,Housing Planning & Major Works Management Team
05/05/2017,Education & Childrens Services,Ash Field Academy,Internal Use Of Grants,"7,447.10",0.00,Other Local Authorities,Special Top-Ups
23/05/2017,Education & Childrens Services,Sacred Heart Catholic Voluntary Academy,Primary Schools Standard Fund,"10,198.00",0.00,Primary Schools Standard Fund,DSG Funded Activities
,City Developments and Neighbourhood,Air Comfort Centre Ltd,Materials Purchase,993.28,198.66,Materials Purchase,Curatorial Services
30/05/2017,Education & Childrens Services,BFS Group Ltd t/a Bidvest Foodservices,Catering - Provisions,"27,161.08",0.00,Catering Provisions / Food & Drink,Catering - School Meals O/H Acc
10/05/2017,Education & Childrens Services,ASD Midlands Ltd,Independent School Fees,"5,175.00",0.00,Independent School Fees,Independent and Non-Maintained Schools
10/05/2017,Education & Childrens Services,ASD Midlands Ltd,Independent School Fees,"6,525.00",0.00,Independent School Fees,Independent and Non-Maintained Schools
16/05/2017,Adults & Housing Department,Asra Housing Association Ltd,Sheltered Housing - ILS,"2,127.69",0.00,Sheltered Housing - ILS,ILS Floating Support
,Corporate Resources & Support,Nadia Mansfield,LCC External Barristers Fees,"2,400.00",480.00,Legal Fees & Charges,Legal Disbursements
12/05/2017,Education & Childrens Services,WH Training & Consultancy Ltd,Education and Training Services,"1,065.00",0.00,Education & Training Services,RE & Standing Advisory Council Religious Education
24/05/2017,Adults & Housing Department,Abbotsford Care Ltd T/a Diamond House,Residential Permanent,"1,704.00",0.00,Residential Care,WEST - Comm'g - Belgrave - Team 1
24/05/2017,Adults & Housing Department,Abbotsford Care Ltd T/a Diamond House,Residential Permanent,596.00,0.00,Residential Care,EAST - Commissioning - Supported Residents Care Team
24/05/2017,Adults & Housing Department,Abbotsford Care Ltd T/a Diamond House,Residential Permanent,"1,900.00",0.00,Residential Care,EAST - Commissioning - Supported Residents Care Team
24/05/2017,Adults & Housing Department,Abbotsford Care Ltd T/a Diamond House,Residential Permanent,"1,704.00",0.00,Residential Care,EAST - Commissioning - Supported Residents Care Team
17/05/2017,Adults & Housing Department,Accredo Support & Development Ltd FA SL&FSB,DAY SUPPORT,"1,510.95",0.00,LD Supported Living,LD Team 1-Commissioning
17/05/2017,Adults & Housing Department,Accredo Support & Development Ltd FA SL&FSB,DAY SUPPORT,"3,156.67",0.00,LD Supported Living,LD Short Term/Unplanned Team - Commissioning
17/05/2017,Adults & Housing Department,Accredo Support & Development Ltd FA SL&FSB,DAY SUPPORT,"1,036.08",0.00,LD Supported Living,LD Team 2 -Commissioning
17/05/2017,Adults & Housing Department,Accredo Support & Development Ltd FA SL&FSB,WAKING NIGHT SUPPORT,"2,800.98",0.00,LD Supported Living,LD Team 1-Commissioning
17/05/2017,Adults & Housing Department,Accredo Support & Development Ltd FA SL&FSB,DAY SUPPORT,"3,021.90",0.00,LD Supported Living,LD Short Term/Unplanned Team - Commissioning
17/05/2017,Adults & Housing Department,Accredo Support & Development Ltd FA SL&FSB,Sleeping In Night Support,"1,111.32",0.00,Supported Living,LD Team 2 -Commissioning
24/05/2017,Adults & Housing Department,Creative Support Ltd FA SL & FSB,Supported Living - Day Intensive,"1,490.22",0.00,Supported Living,LD Team 1-Commissioning
,Adults & Housing Department,Creative Support Ltd FA SL & FSB,Day Support Hours,640.80,0.00,Supported Living,Adult Mental Health - Maidstone Road (Under 65 s) - Commissioning
,Adults & Housing Department,Creative Support Ltd FA SL & FSB,DAY SUPPORT,832.20,0.00,LD Supported Living,LD Team 2 -Commissioning
,Adults & Housing Department,Creative Support Ltd FA SL & FSB,DAY SUPPORT,514.58,0.00,LD Supported Living,LD Team 2 -Commissioning
,Adults & Housing Department,Creative Support Ltd FA SL & FSB,DAY SUPPORT,"1,501.50",0.00,LD Supported Living,LD Team 1-Commissioning
,Adults & Housing Department,Creative Support Ltd FA SL & FSB,DAY SUPPORT,622.05,0.00,MH Supported Living,Adult Mental Health - Maidstone Road (Under 65 s) - Commissioning
26/05/2017,Adults & Housing Department,Creative Support Ltd FA SL & FSB,DAY SUPPORT,778.80,0.00,MH Supported Living,Adult Mental Health - Maidstone Road (Under 65 s) - Commissioning
24/05/2017,Adults & Housing Department,Creative Support Ltd FA SL & FSB,DAY SUPPORT,778.80,0.00,MH Supported Living,Adult Mental Health - Maidstone Road (Under 65 s) - Commissioning
24/05/2017,Adults & Housing Department,Leicestershire County Care Ltd t/a Kirby House,Residential Permanent,"1,580.00",0.00,Residential Care,EAST - Commissioning - Supported Residents Care Team
,Adults & Housing Department,Private Home Care Uk Ltd FA SL&FSB,Personal Care / Generic,624.36,0.00,Home Care,EAST - Commissioning - Supported Residents Care Team
,Adults & Housing Department,Private Home Care Uk Ltd FA SL&FSB,Personal Care / Generic,569.52,0.00,Home Care,LD Targeted Reassessment Team-Commissioning
,Adults & Housing Department,Private Home Care Uk Ltd FA SL&FSB,Personal Care / Generic,640.71,0.00,Home Care,EAST - Commissioning - Supported Residents Care Team
17/05/2017,Adults & Housing Department,Lifeways Community Care Ltd FA SL&FSB,DAY SUPPORT,778.67,0.00,LD Supported Living,LD Team 2 -Commissioning
17/05/2017,Adults & Housing Department,Lifeways Community Care Ltd FA SL&FSB,DAY SUPPORT,"1,473.15",0.00,LD Supported Living,LD Targeted Reassessment Team-Commissioning
23/05/2017,Adults & Housing Department,Lifeways Community Care Ltd FA SL&FSB,DAY SUPPORT,"3,036.60",0.00,LD Supported Living,LD Team 1-Commissioning
24/05/2017,Adults & Housing Department,Lifeways Community Care Ltd FA SL&FSB,DAY SUPPORT,996.13,0.00,LD Supported Living,LD Team 2 -Commissioning
24/05/2017,Adults & Housing Department,Lifeways Community Care Ltd FA SL&FSB,DAY SUPPORT,"3,821.04",0.00,LD Supported Living,LD Targeted Reassessment Team-Commissioning
24/05/2017,Adults & Housing Department,Lifeways Community Care Ltd FA SL&FSB,DAY SUPPORT,867.56,0.00,LD Supported Living,LD Short Term/Unplanned Team - Commissioning
24/05/2017,Adults & Housing Department,Lifeways Community Care Ltd FA SL&FSB,WAKING NIGHT SUPPORT,563.94,0.00,LD Supported Living,LD Team 2 -Commissioning
24/05/2017,Adults & Housing Department,Lifeways Community Care Ltd FA SL&FSB,WAKING NIGHT SUPPORT,574.79,0.00,LD Supported Living,LD Targeted Reassessment Team-Commissioning
24/05/2017,Adults & Housing Department,Lifeways Community Care Ltd FA SL&FSB,WAKING NIGHT SUPPORT,574.79,0.00,LD Supported Living,LD Targeted Reassessment Team-Commissioning
24/05/2017,Adults & Housing Department,Lifeways Community Care Ltd FA SL&FSB,WAKING NIGHT SUPPORT,574.79,0.00,LD Supported Living,LD Team 2 -Commissioning
24/05/2017,Adults & Housing Department,Lifeways Community Care Ltd FA SL&FSB,DAY SUPPORT,"4,139.19",0.00,LD Supported Living,LD Targeted Reassessment Team-Commissioning
,City Developments and Neighbourhood,Snackline Direct Ltd,Catering - Provisions,"1,066.80",213.36,Catering Provisions / Food & Drink,DMH - Bar and Catering
,City Developments and Neighbourhood,De Lage Landen Leasing Ltd,IT Hardware,"2,058.37",411.67,IT Hardware,Head of Transport Strategy
24/05/2017,Adults & Housing Department,Ideal Care Homes Ltd T/a Beaumont Hall,Residential Permanent,"1,704.00",0.00,Residential Care,EAST - Commissioning - Supported Residents Care Team
10/05/2017,City Developments and Neighbourhood,D-Tech International Ltd,Upgrade costs - Software,"3,780.00",756.00,Repairs & Maintenance  IT Software,Libraries Network
26/05/2017,Corporate Resources & Support,Stor A File,Transportation and Storage and Mail Services,631.18,126.24,Transportation & Storage Services,Service Support
24/05/2017,City Developments and Neighbourhood,Molson Coors,Catering - Provisions,"7,563.42","1,512.68",Catering Provisions / Food & Drink,DMH - Bar and Catering
31/05/2017,City Developments and Neighbourhood,Molson Coors,Catering - Provisions,"1,184.72",236.94,Catering Provisions / Food & Drink,DMH - Bar and Catering
24/05/2017,Adults & Housing Department,Cyngor Alcohol Information Service Ltd t/a CAIS / Ty'n Rodyn,Residential Short Stay,"1,432.00",0.00,Residential Care,LOC South -  Substance Misuse  - Commissioning
,Adults & Housing Department,Public Health England,Membership and Subscriptions,944.44,0.00,Corporate Membership & Subscriptions,Public Health Team
10/05/2017,Adults & Housing Department,Croft Hotel,Accommodation Expenses,840.00,168.00,Accommodation Expenses,LOC EAST - TEAM 2  - Eastern Lodge - Commissioning
12/05/2017,City Developments and Neighbourhood,Close Circuit Security Services Ltd (CCSS),Project - Planned,"7,863.43","1,572.69",Project - Repairs / Maintenance / Alterations,Contractor Repair & Maintenance projects
17/05/2017,Education & Childrens Services,Key Transitions Ltd,Accommodation - Supported Accommodation,"1,709.43",341.89,Other Establishments,LAC Semi-Independent  Accommodation
09/05/2017,Education & Childrens Services,Horizon Care & Education Group Ltd,Independent School Fees,"20,085.00",0.00,Independent School Fees,Independent and Non-Maintained Schools
,Education & Childrens Services,Horizon Care & Education Group Ltd,Residential Placements,"13,228.06",0.00,Other Agencies,Externally Commissioned Placements
,Education & Childrens Services,Horizon Care & Education Group Ltd,Residential Placements,"12,621.34",0.00,Other Agencies,Externally Commissioned Placements
16/05/2017,City Developments and Neighbourhood,Ace Cleaning Company (Leicester) Ltd,External Building Cleaning Contractors,725.72,145.14,External Building Cleaning Contractors,Building Cleaning Operational - Cover Team
,Adults & Housing Department,Help at Home (Previously Mears Care Ltd),Personal Care / Generic,771.98,0.00,Home Care,WEST - Comm'g - Braunstone and Meridian - Team 2
,Adults & Housing Department,Help at Home (Previously Mears Care Ltd),Personal Care / Generic,520.95,0.00,Home Care,EAST - Comm'g - Merlyn Vaz HC and St Peters - East 1
24/05/2017,Adults & Housing Department,Choices Care Ltd,Personal Care / Generic,641.13,0.00,Home Care,LOC WEST - Reablement - Team 2  - Sulgrave Road - Commissioning
24/05/2017,Adults & Housing Department,Choices Care Ltd,Personal Care / Generic,783.72,0.00,Home Care,WEST - Comm'g - Belgrave - Team 1
24/05/2017,Adults & Housing Department,Choices Care Ltd,Personal Care / Generic,604.44,0.00,Home Care,WEST - Comm'g - Braunstone and Meridian - Team 2
24/05/2017,Adults & Housing Department,Rethink Mental Illness T/a Shipley Lodge,Residential Permanent,"2,234.60",0.00,Residential Care,Commissioning Community - Adult Mental Health District Forensic Service (Under 65's)
03/05/2017,City Developments and Neighbourhood,The Dyslexia Association,Training,780.00,0.00,Employee Training,Business Support
23/05/2017,Adults & Housing Department,Universal Care Services (UK) Ltd,Personal Care / Generic,577.42,0.00,Home Care,WEST - Comm'g - Paisley Road - Team 3
23/05/2017,Adults & Housing Department,Universal Care Services (UK) Ltd,Personal Care / Generic,576.09,0.00,Home Care,WEST - Comm'g - Paisley Road - Team 3
26/05/2017,City Developments and Neighbourhood,Grays Coffee Shop & Kitchen,External Catering Charges,"1,105.50",221.10,External Catering Charges,Leicester Creative Business Depot
,Education & Childrens Services,Portland College,Education and Training Services,"5,396.45",0.00,Education & Training Services,ISP Top-Ups
16/05/2017,Education & Childrens Services,P & S Electrical (South East) Ltd T/a P & S Electrical,Servicing,"1,185.10",237.02,Building Services / Repairs & Maintenance  Fixtures & Fittings,LAEC Premises
30/05/2017,,William Bailey (Ripley) Ltd,Fixtures & Fittings,"27,305.90","5,461.18",Fixtures & Fittings,Housing HRA
31/05/2017,Adults & Housing Department,Staffs & Stoke Partnership NHS Trust,Training,"7,650.00",0.00,Sexual Health Services (ISHS),Sexual Health
26/05/2017,Corporate Resources & Support,Ms Anna Tkaczynska,LCC External Barristers Fees,"1,000.00",200.00,Legal Fees & Charges,Legal Disbursements
24/05/2017,Adults & Housing Department,East Coast Recovery,Residential Short Stay,702.00,0.00,Residential Care,LOC South -  Substance Misuse  - Commissioning
24/05/2017,Adults & Housing Department,East Coast Recovery,Residential Short Stay,"1,432.00",0.00,Residential Care,LOC South -  Substance Misuse  - Commissioning
24/05/2017,Adults & Housing Department,Abbey Healthcare T/a Aaron Court,Nursing Permanent,"1,852.00",0.00,Nursing Care,EAST - Commissioning - Supported Residents Care Team
24/05/2017,Adults & Housing Department,Abbey Healthcare T/a Aaron Court,Nursing Permanent,"1,852.00",0.00,Nursing Care,EAST - Commissioning - Supported Residents Care Team
26/05/2017,Corporate Resources & Support,Redstor Ltd,IT Hardware,"3,600.00",720.00,IT Hardware,Traded Services
24/05/2017,Adults & Housing Department,JJ & S (Chippenham) Ltd T/a Sandmar Residential Care Home,Residential Permanent,"1,724.00",0.00,Residential Care,Commissioning - Braunstone Health & Social Care Centre - Adult Mental Health
23/05/2017,Corporate Resources & Support,Verticality Ltd,Advertising,629.00,125.80,Recruitment Advertising,Partnerships Planning & Performance
24/05/2017,Adults & Housing Department,STONESBY HOUSE LTD,Residential Permanent,"1,900.00",0.00,Residential Care,EAST - Commissioning - Supported Residents Care Team
24/05/2017,Adults & Housing Department,St George's Healthcare NHS Trust,Nursing Respite,"1,852.00",0.00,Nursing Care,Health Transfers - Commissioning - Discharge Team 1
24/05/2017,Corporate Resources & Support,Joanna Chadwick,LCC External Barristers Fees,875.00,175.00,Legal Fees & Charges,Legal Disbursements
05/05/2017,Corporate Resources & Support,Cyber Media Solutions Ltd,Annual Maintenance - Software,"1,125.00",225.00,Repairs & Maintenance  IT Software,Service Support
10/05/2017,Education & Childrens Services,Capital Bytes Ltd,Internet Charges,"23,699.00","4,739.80",Internet Charges,East Midlands Broadband Consortium School Connectivity
26/05/2017,City Developments and Neighbourhood,EA Foulds Limited,Responsive,"3,920.00",784.00,Building Services / Repairs & Maintenance  Fixtures & Fittings,City Wide Repairs
23/05/2017,Education & Childrens Services,Durham County Council,Books,705.82,141.16,Printed & Electronic Media,YOS Team 5
24/05/2017,Adults & Housing Department,ABBEY HOUSE,Residential Permanent,"1,900.00",0.00,Residential Care,EAST - Commissioning - Supported Residents Care Team
24/05/2017,Adults & Housing Department,ABBEY HOUSE,Residential Permanent,"1,704.00",0.00,Residential Care,EAST - Commissioning - Supported Residents Care Team
24/05/2017,Adults & Housing Department,ABBEY HOUSE,Interim Residential (Delayed Discharges),950.00,0.00,Residential Care,Health Transfers - Commissioning - Discharge Team 1
24/05/2017,Adults & Housing Department,ABBEY HOUSE,Interim Residential (Delayed Discharges),950.00,0.00,Residential Care,Health Transfers - Commissioning - Discharge Team 1
24/05/2017,Adults & Housing Department,ABBEY HOUSE,Interim Residential (Delayed Discharges),"1,425.00",0.00,Residential Care,WEST - Comm'g - Braunstone and Meridian - Team 2
24/05/2017,Adults & Housing Department,ABBEY HOUSE,Residential Permanent,"1,704.00",0.00,Residential Care,EAST - Commissioning - Supported Residents Care Team
24/05/2017,Adults & Housing Department,ABBEY HOUSE,Residential Permanent,"1,704.00",0.00,Residential Care,EAST - Commissioning - Supported Residents Care Team
24/05/2017,Adults & Housing Department,ABBEY HOUSE,Residential Short Stay,882.14,0.00,Residential Care,Health Transfers - Commissioning - Discharge Team 2
24/05/2017,Adults & Housing Department,COOPER HOUSE,Residential Permanent,"1,704.00",0.00,Residential Care,EAST - Commissioning - Supported Residents Care Team
24/05/2017,Adults & Housing Department,COOPER HOUSE,Residential Short Stay,950.00,0.00,Residential Care,Locality WEST -- Westcotes -- Team 4
24/05/2017,Adults & Housing Department,COOPER HOUSE,Residential Short Stay,"1,900.00",0.00,Residential Care,Locality WEST -- Westcotes -- Team 4
24/05/2017,Adults & Housing Department,COOPER HOUSE,Residential Permanent,"1,704.00",0.00,Residential Care,WEST - Comm'g - Paisley Road - Team 3
,Adults & Housing Department,COOPER HOUSE,Residential Permanent,547.71,0.00,Residential Care,WEST - Comm'g - Paisley Road - Team 3
,Corporate Resources & Support,Info Exchange Limited/Alcumus Compliance,Annual Maintenance - Software,"1,200.00",240.00,Repairs & Maintenance  IT Software,Corporate Health & Safety
23/05/2017,Education & Childrens Services,CCS Media,IT Hardware,772.62,154.52,IT Hardware,Youth Service Operation
17/05/2017,Adults & Housing Department,JW CARE SERVICES (UK) LTD,3rd party engaged consultants to be re-imbursed,"1,000.00",0.00,Consultant Fees,DOLS
17/05/2017,Adults & Housing Department,,Shared Lives - Day Care,550.00,0.00,Shared Lives,LD Team 2 -Commissioning
12/05/2017,Education & Childrens Services,Millcrane Ltd,Consultants Fees,"1,500.00",300.00,Consultant Fees,OFSTED - One-off Costs
23/05/2017,,Energy Saving Lighting (UK) Ltd,Fixtures & Fittings,"2,218.00",443.60,Fixtures & Fittings,Resources and Support
12/05/2017,,Chris Siddons Building and Property Repair,Building Works - Alterations,"11,404.75",0.00,Building Works - Alterations,Housing GF
12/05/2017,,Chris Siddons Building and Property Repair,Building Works - Alterations,"5,740.00",0.00,Building Works - Alterations,Housing GF
23/05/2017,Education & Childrens Services,baca project,Accommodation - Supported Accommodation,"2,357.14",0.00,Other Establishments,LAC Semi-Independent  Accommodation
17/05/2017,Corporate Resources & Support,DK Independent Social Work Ltd,Court Experts,"1,797.10",0.00,Legal Fees & Charges,Legal Disbursements
,Corporate Resources & Support,Ms Sara Davis,LCC External Barristers Fees,850.00,170.00,Legal Fees & Charges,Legal Disbursements
26/05/2017,Adults & Housing Department,Bonney Care Agency Ltd,Interim Residential (Delayed Discharges),"1,095.00",0.00,Residential Care,Locality WEST -- Westcotes -- Team 4
26/05/2017,Adults & Housing Department,Prepaid Financial Services,Management & Business & Administrative Services,"2,430.74",0.00,Management & Business & Administrative Services,Generic ASC & Safeguarding
24/05/2017,Adults & Housing Department,Arbor House,Residential Permanent,"1,704.00",0.00,Residential Care,EAST - Commissioning - Supported Residents Care Team
24/05/2017,Adults & Housing Department,Arbor House,Residential Permanent,"1,704.00",0.00,Residential Care,EAST - Commissioning - Supported Residents Care Team
24/05/2017,Adults & Housing Department,Arbor House,Residential Permanent,"1,704.00",0.00,Residential Care,EAST - Commissioning - Supported Residents Care Team
24/05/2017,Adults & Housing Department,Arbor House,Residential Short Stay,"1,460.57",0.00,Residential Care,EAST - Comm'g - Springfield Road - East 3
24/05/2017,Adults & Housing Department,Arbor House,Interim Residential (Delayed Discharges),950.00,0.00,Residential Care,EAST - Comm'g - Merlyn Vaz HC and St Peters - East 1
26/05/2017,Corporate Resources & Support,Critiqom Limited,Postage,"14,428.63","2,885.73",Postage,Revenues & Benefits - Operations
,Corporate Resources & Support,Critiqom Limited,Printing,"3,377.35",675.47,Printing & Copying,Revenues & Benefits - Operations
,Corporate Resources & Support,Critiqom Limited,Postage,"6,228.28","1,245.66",Postage,Revenues & Benefits - Operations
12/05/2017,,H-K-L Specialists Ltd,Building Works - Alterations,"16,767.62","3,353.52",Building Works - Alterations,Education and Children's Services
24/05/2017,Education & Childrens Services,Prospects for Young People Ltd,Accommodation - Supported Accommodation,"7,143.95",0.00,Other Establishments,LAC Semi-Independent  Accommodation
,Adults & Housing Department,OXYGEN,Residential Short Stay,869.43,0.00,Residential Care,LOC South -  Substance Misuse  - Commissioning
24/05/2017,Adults & Housing Department,ORCHARD MANOR VIEW,Residential Permanent,"1,900.00",0.00,Residential Care,EAST - Commissioning - Supported Residents Care Team
,City Developments and Neighbourhood,United Against Violence and Abuse,Direct Payments,"175,525.00",0.00,Other Establishments,"LLR (Leicester, Leicestershire and Rutland) Domestic & Sexual Violence Commissioning"
05/05/2017,Adults & Housing Department,In House First Aid & Lifeguard Training,Security & Safety Services,800.00,PE,Public Order & Security Services,Leicester Leys Leisure Centre
05/05/2017,Adults & Housing Department,STREETGAMES UK,Training,598.00,0.00,Employee Training,Sports Development
12/05/2017,Adults & Housing Department,Turning Point (Services) Ltd,Leicestershire Partnership Trust - Drug Services,"412,252.00",0.00,Drug and Alcohol Services,Criminal Justice Treatment Services - Lot 2
,City Developments and Neighbourhood,M & M Motors,Repairs & Maintenance Vehicles,546.42,PE,Vehicles Repairs & Maintenance / Parts & Accessories,Workshop
17/05/2017,City Developments and Neighbourhood,ZEPPELIN TRADING CO LTD,Repairs & Maintenance Vehicles,"2,015.00",403.00,Vehicles Repairs & Maintenance / Parts & Accessories,Workshop
,Education & Childrens Services,Sue Poole / SP Education Ltd,Education and Training Services,"1,575.00",0.00,Education & Training Services,LESP DSG
24/05/2017,Adults & Housing Department,GWENDOLEN ROAD CARE HOME,Residential Short Stay,"1,091.57",0.00,Residential Care,Adult Mental Health - Maidstone Road (Under 65 s) - Commissioning
24/05/2017,Adults & Housing Department,GWENDOLEN ROAD CARE HOME,Residential Short Stay,"1,900.00",0.00,Residential Care,Adult Mental Health - Maidstone Road (Under 65 s) - Commissioning
24/05/2017,Adults & Housing Department,GWENDOLEN ROAD CARE HOME,Residential Permanent,"1,732.00",0.00,Residential Care,LD Team 1-Commissioning
24/05/2017,Adults & Housing Department,GWENDOLEN ROAD CARE HOME,Residential Permanent,"1,732.00",0.00,Residential Care,LD Short Term/Unplanned Team - Commissioning
24/05/2017,Adults & Housing Department,BARCLAY HOUSE,Residential Permanent,"1,855.20",0.00,Residential Care,LD Team 2 -Commissioning
24/05/2017,Adults & Housing Department,BARCLAY HOUSE,Residential Permanent,"1,855.20",0.00,Residential Care,LD Team 2 -Commissioning
23/05/2017,Education & Childrens Services,Humberstone Infant Academy,Primary Schools Standard Fund,"29,270.00",0.00,Primary Schools Standard Fund,DSG Funded Activities
26/05/2017,City Developments and Neighbourhood,Profile Security Services Limited,Security & Safety Services,"3,389.52",677.90,Public Order & Security Services,Meynells Gorse Park & Ride
12/05/2017,Education & Childrens Services,M & M Cabs Ltd,Employee Taxi Travel Expense,"1,509.50",301.90,Taxi Travel Expense,Operational Transport Ad Hoc
09/05/2017,Education & Childrens Services,S Taxis,Employee Taxi Travel Expense,"3,310.00",0.00,Taxi Travel Expense,Operational Transport Ad Hoc
16/05/2017,Education & Childrens Services,S Taxis,Employee Taxi Travel Expense,"1,494.00",0.00,Taxi Travel Expense,Operational Transport Ad Hoc
03/05/2017,Education & Childrens Services,S Taxis,Employee Taxi Travel Expense,860.00,0.00,Taxi Travel Expense,Operational Transport Ad Hoc
16/05/2017,Education & Childrens Services,S Taxis,Employee Taxi Travel Expense,785.00,0.00,Taxi Travel Expense,Operational Transport Ad Hoc
26/05/2017,Education & Childrens Services,,Accommodation Costs,595.00,0.00,Project - Higher Education,LAC - Higher Education
,City Developments and Neighbourhood,ASD Ltd (trading as Kloeckner Metals UK),Materials Purchase,651.02,130.20,Materials Purchase,Metalwork (RM3)
26/05/2017,Education & Childrens Services,Thurnby Lodge Primary Academy,DCB Allocation,"21,398.92",0.00,Payments To Schools,Local Management Of Schools Contingency
26/05/2017,Education & Childrens Services,ASA Transport Services Ltd,Employee Taxi Travel Expense,"7,643.84","1,528.77",Taxi Travel Expense,Operational Transport Ad Hoc
24/05/2017,City Developments and Neighbourhood,TRUCK LOADERS LIMITED,Repairs & Maintenance Vehicles,"5,623.82","1,124.76",Vehicles Repairs & Maintenance / Parts & Accessories,Workshop
26/05/2017,Education & Childrens Services,RHK EDUCATION,Education and Training Services,"2,500.00",0.00,Education & Training Services,Federated Pupils Referral Unit Curriculum
31/05/2017,Corporate Resources & Support,Ms Myriam Stacey,LCC External Barristers Fees,"6,166.75","1,233.35",Legal Fees & Charges,Legal Disbursements
09/05/2017,Corporate Resources & Support,Mr Kevin Barry,LCC External Barristers Fees,"36,887.87","7,377.57",Legal Fees & Charges,Legal Disbursements
24/05/2017,Adults & Housing Department,Woodthorpe Lodge-Craegmoor Facility Company Ltd,Residential Permanent,950.00,0.00,Residential Care,Commissioning Community - Adult Mental Health District Forensic Service (Under 65's)
05/05/2017,Education & Childrens Services,Cygnet (Surrey) Ltd � Mark Ground (CSO),Other Local Authorities,"2,664.00",0.00,Other Local Authorities,Special Top-Ups
12/05/2017,Corporate Resources & Support,Probos Pronmotions Ltd,Advertising,895.00,179.00,Recruitment Advertising,Recruitment Administration
23/05/2017,Education & Childrens Services,Alpine Health Limited,Accommodation - Supported Accommodation,"2,671.43",0.00,Other Establishments,LAC Semi-Independent  Accommodation
26/05/2017,Education & Childrens Services,Alpine Health Limited,Accommodation - Supported Accommodation,"1,916.57",0.00,Other Establishments,LAC Semi-Independent  Accommodation
17/05/2017,Education & Childrens Services,ESPO,Equipment Purchase,597.42,119.48,Equipment Purchase,Contact Service
17/05/2017,Corporate Resources & Support,ESPO,Equipment Purchase,670.00,134.00,Equipment Purchase,Corporate Counter Fraud Team
,City Developments and Neighbourhood,ESPO,Stationery,630.76,126.15,Stationery & Office Supplies,Leicester to Work
24/05/2017,City Developments and Neighbourhood,AB Adcock,Materials Purchase,"1,037.00",207.40,Materials Purchase,Landscape Services Citywide
,City Developments and Neighbourhood,AB Adcock,Landscaping,"2,125.00",425.00,Grounds Maintenance,Landscape Services Citywide
17/05/2017,City Developments and Neighbourhood,Aggregate Industries UK Ltd,Materials Purchase,"1,423.25",284.65,Materials Purchase,City Highways - Operation
05/05/2017,Corporate Resources & Support,Alfred Willday & Son Ltd,Printing,"2,135.00",427.00,Printing & Copying,Marketing & Brand Management Operations
26/05/2017,City Developments and Neighbourhood,Aqua-Jet Specialist Drainage Contractors Ltd,Responsive,"7,244.00","1,448.80",Building Works & Repairs/Maintenance/Alterations,Central Maintenance Fund Non Schools
26/05/2017,Education & Childrens Services,Arriva Midlands Ltd,Employee Public Transport Expenses,657.50,0.00,Public Transport Expenses,CYPS Business
12/05/2017,Adults & Housing Department,The Monday Club Leicestershire Ltd,Other (Social Group),"2,500.00",0.00,VCS - Adults & Older People,Voluntary Community Sector Services
,City Developments and Neighbourhood,ATS Euromaster Ltd,Vehicle Running Cost - Tyres,"2,691.94",538.39,Vehicle Running Cost - Tyres,C.V.P. Transport
09/05/2017,Corporate Resources & Support,Mrs Christine Kriehn T/a Audio Verbatim Transcription Services,Transcription Fees,616.00,123.20,Management & Business & Administrative Services,Legal Disbursements
09/05/2017,,B & A Construction (Leic) Ltd,Building Works - Alterations,"106,863.58","21,372.72",Building Works - Alterations,Housing HRA
17/05/2017,City Developments and Neighbourhood,Biffa Waste Services Ltd,Biffa Other Services,"2,188.81",437.76,Private Contractors,Public Finance Investment Waste Management
23/05/2017,City Developments and Neighbourhood,Biffa Waste Services Ltd,Biffa Other Services,"14,498.67","2,899.73",Private Contractors,Public Finance Investment Waste Management
23/05/2017,City Developments and Neighbourhood,Biffa Waste Services Ltd,Biffa Other Services,"14,498.67","2,899.73",Private Contractors,Public Finance Investment Waste Management
03/05/2017,City Developments and Neighbourhood,Bt Payment Services Ltd,Planned,"5,617.58","1,123.52",Transport Infrastructure,Signals Maintenance - Leicester City
03/05/2017,City Developments and Neighbourhood,Bt Payment Services Ltd,Planned,"1,918.00",383.60,Transport Infrastructure,Signals County
23/05/2017,City Developments and Neighbourhood,Bt Payment Services Ltd,Planned,"2,139.69",427.94,Transport Infrastructure,Signals Maintenance - Leicester City
23/05/2017,City Developments and Neighbourhood,Bt Payment Services Ltd,Planned,880.50,176.10,Transport Infrastructure,Urban Traffic Control Suspense
05/05/2017,City Developments and Neighbourhood,Bunzl UK Ltd t/a Bunzl Catering Supplies,Equipment Purchase,637.56,127.51,Equipment Purchase,DMH - Bar and Catering
26/05/2017,City Developments and Neighbourhood,Call Connect Services Ltd,Planned,570.00,114.00,Building Works & Repairs/Maintenance/Alterations,St Marks NHO
30/05/2017,Education & Childrens Services,ANGELS PRESCHOOL,SEN Placements,"1,500.00",0.00,Other Agencies,Early Years Top-Ups
30/05/2017,Education & Childrens Services,Chatterbox Pre-School,SEN Placements,"1,000.00",0.00,Other Agencies,Early Years Top-Ups
24/05/2017,City Developments and Neighbourhood,Cleta,Twinning Association Grants,"4,093.00",0.00,Voluntary Organisations,Overseas Link
,City Developments and Neighbourhood,Cooleraid Ltd,Equipment Hire/Lease,"1,144.00",228.80,Equipment Hire / Lease,Blackbird Road Site (RM1)
24/05/2017,City Developments and Neighbourhood,Oliveti Construction Ltd,Responsive,815.63,163.13,Building Works & Repairs/Maintenance/Alterations,Central Maintenance Fund Non Schools
23/05/2017,City Developments and Neighbourhood,Oliveti Construction Ltd,Responsive,"5,016.20","1,003.24",Building Works & Repairs/Maintenance/Alterations,Buildings
24/05/2017,City Developments and Neighbourhood,Oliveti Construction Ltd,Responsive,"1,312.08",262.42,Building Works & Repairs/Maintenance/Alterations,Vacant Premises
12/05/2017,,Oliveti Construction Ltd,Building Works - Alterations,"6,733.60",0.00,Building Works - Alterations,Housing GF
23/05/2017,City Developments and Neighbourhood,Oliveti Construction Ltd,Responsive,969.75,193.95,Building Works & Repairs/Maintenance/Alterations,General Corporate Estate
,City Developments and Neighbourhood,Oliveti Construction Ltd,Asbestos - Works,"10,909.15","2,181.83",Asbestos,Central Maintenance Fund - Schools
30/05/2017,City Developments and Neighbourhood,Oliveti Construction Ltd,Responsive,908.38,181.68,Building Works & Repairs/Maintenance/Alterations,Central Maintenance Fund Non Schools
26/05/2017,Education & Childrens Services,Compass Fostering Central Ltd,Independent Foster Agencies,"2,951.75",0.00,Other Agencies,Independent Fostering Agencies
23/05/2017,Education & Childrens Services,Compass Fostering Central Ltd,Independent Foster Agencies,"3,107.10",0.00,Other Agencies,Independent Fostering Agencies
26/05/2017,Education & Childrens Services,Compass Fostering Central Ltd,Independent Foster Agencies,"3,001.42",0.00,Other Agencies,Independent Fostering Agencies
26/05/2017,Education & Childrens Services,Compass Fostering Central Ltd,Independent Foster Agencies,"3,193.00",0.00,Other Agencies,LAC - UASC 16/17
30/05/2017,Education & Childrens Services,Compass Fostering Central Ltd,Independent Foster Agencies,"3,050.14",0.00,Other Agencies,Independent Fostering Agencies
30/05/2017,Education & Childrens Services,Compass Fostering Central Ltd,Independent Foster Agencies,"2,945.00",0.00,Other Agencies,Independent Fostering Agencies
16/05/2017,Corporate Resources & Support,Disclosure & Barring Service,DBS Checks,"6,670.00",0.00,DBS Checks,Payroll
10/05/2017,City Developments and Neighbourhood,Dawson Rentals Sweepers,Hire Vehicles,"1,860.00",372.00,Hire Vehicles,Hire Vehicles
17/05/2017,City Developments and Neighbourhood,Duval FM Ltd.,Security & Safety Services,931.20,186.24,Public Order & Security Services,York House Granby St
30/05/2017,Education & Childrens Services,Dudley Lodge,Parenting Assessments,"8,138.57",0.00,Other Agencies,Externally Commissioned Placements
12/05/2017,Education & Childrens Services,Foster Care Associates Ltd,Independent Foster Agencies,"6,288.00","1,257.60",Other Agencies,Independent Fostering Agencies
09/05/2017,Education & Childrens Services,Freedom Link Study Support Ltd,Management & Business & Administrative Services,"10,215.00","2,043.00",Management & Business & Administrative Services,English Maths & ESOL
,Education & Childrens Services,Freedom Link Study Support Ltd,Aids & Adaptations,"2,895.50",579.10,Aids & Adaptations,English Maths & ESOL
26/05/2017,City Developments and Neighbourhood,FWT Studios Ltd (t/a FWT),Printing,"12,530.00","2,506.00",Printing & Copying,Bus Stops & Shelters Management
05/05/2017,,Uk Gas Services Ltd,Fixtures & Fittings,"7,020.57","1,404.11",Fixtures & Fittings,Housing HRA
17/05/2017,City Developments and Neighbourhood,Jewson Ltd t/a Graham The Plumbers Merchant,Equipment Purchase,746.55,149.31,Equipment Purchase,Management & Admin (Gas)
10/05/2017,City Developments and Neighbourhood,Personnel Hygiene Services Ltd t/a PHS / Washroom Services / Wastemanagement / Datashred,Repair & Maintenance Tools / Equipment,995.00,199.00,Repairs & Maintenance - Equipment & Furniture,Retail Markets
05/05/2017,Adults & Housing Department,Guru Nanak Community Centre,Day Care /Community Opportunities,500.70,0.00,Day Care /Community Opportunities,WEST - Comm'g - Belgrave - Team 1
,City Developments and Neighbourhood,Hawthorn Theatrical Ltd,Equipment lease/hire for recharge,"4,680.00",936.00,Equipment Hire / Lease,DMH Technical
30/05/2017,Education & Childrens Services,Hand In Hand Preschool,SEN Placements,"1,500.00",0.00,Other Agencies,Early Years Top-Ups
05/05/2017,,Arcadis LLP,Consultant Fees,"17,637.32","3,527.46",Consultant Fees,City Developments and Neighbourhood
09/05/2017,,Arcadis LLP,Engineering Consultancy / Consultants Services,"4,190.00",838.00,Engineering & Research & Technology Based Services,Education and Children's Services
23/05/2017,,Arcadis LLP,Consultant Fees,"3,564.00",712.80,Consultant Fees,City Developments and Neighbourhood
05/05/2017,City Developments and Neighbourhood,Arcadis LLP,Financial Services,"2,000.00",400.00,Financial & Insurance Services,Enterprising Leicester Investment Fund
,City Developments and Neighbourhood,Arcadis LLP,Consultants Fees,"8,400.00","1,680.00",Consultant Fees,11 - 19 Programme
30/05/2017,Education & Childrens Services,Hamilton Hilltop Nursery Sch,SEN Placements,600.00,0.00,Other Agencies,Early Years Top-Ups
12/05/2017,Adults & Housing Department,Anchor Trust,Sheltered Housing - ILS,"3,437.10",0.00,Sheltered Housing - ILS,ILS Floating Support
12/05/2017,Education & Childrens Services,Highfields Cars,Employee Taxi Travel Expense,615.00,123.00,Taxi Travel Expense,Operational Transport Ad Hoc
31/05/2017,Education & Childrens Services,Hopwells Ltd,Catering - Provisions,"21,775.65","4,355.13",Catering Provisions / Food & Drink,Catering - School Meals O/H Acc
,Education & Childrens Services,Hopwells Ltd,Catering - Provisions,"2,705.65",541.13,Catering Provisions / Food & Drink,Catering - School Meals O/H Acc
23/05/2017,Adults & Housing Department,Castle Park Hotel Trading Ltd T/a Castle Park,Accommodation Expenses,"2,566.67",513.33,Accommodation Expenses,AMH Team 3 -Commissioning
26/05/2017,City Developments and Neighbourhood,Idox Software Ltd,Licences,950.00,190.00,Licences,Service Support & Intelligence
23/05/2017,City Developments and Neighbourhood,Integrated Water Services Ltd,Water Hygiene - Surveys,571.00,114.20,Water Hygiene,Building & Service Maintenance External
17/05/2017,City Developments and Neighbourhood,Integrated Water Services Ltd,Water Hygiene - Surveys,599.00,119.80,Water Hygiene,Building & Service Maintenance External
23/05/2017,City Developments and Neighbourhood,Integrated Water Services Ltd,Servicing,571.00,114.20,Building Services / Repairs & Maintenance  Fixtures & Fittings,Schools Buy Back Board
23/05/2017,City Developments and Neighbourhood,Grafton Merchanting GB Ltd trading as Jackson Buildbase Grantham,Responsive,572.06,114.41,Building Works & Repairs/Maintenance/Alterations,Stock Procurement
17/05/2017,Education & Childrens Services,Jay Fostering Ltd,Independent Foster Agencies,"1,712.28",0.00,Other Agencies,Independent Fostering Agencies
17/05/2017,Education & Childrens Services,Jay Fostering Ltd,Independent Foster Agencies,"1,712.28",0.00,Other Agencies,Independent Fostering Agencies
30/05/2017,Education & Childrens Services,Jay Fostering Ltd,Independent Foster Agencies,"3,500.83",0.00,Other Agencies,Independent Fostering Agencies
30/05/2017,Education & Childrens Services,Jay Fostering Ltd,Independent Foster Agencies,"3,173.47",0.00,Other Agencies,Independent Fostering Agencies
30/05/2017,Education & Childrens Services,Jay Fostering Ltd,Independent Foster Agencies,"3,500.83",0.00,Other Agencies,Independent Fostering Agencies
30/05/2017,Education & Childrens Services,Jay Fostering Ltd,Independent Foster Agencies,"3,340.56",0.00,Other Agencies,Independent Fostering Agencies
24/05/2017,Corporate Resources & Support,JCDecaux Ltd,Printing,777.00,155.40,Printing & Copying,Communications and Marketing Management
23/05/2017,City Developments and Neighbourhood,Kingsmead Marquees Ltd,Community Expenditure,"1,008.00",201.60,Community Expenditure,Parks Development East
30/05/2017,Education & Childrens Services,Knighton Day Nursery,SEN Placements,"2,000.00",0.00,Other Agencies,Early Years Top-Ups
,,Leicestershire County Council,Management & Business Professionals & Administrative Services,"8,864.02","1,772.80",Management & Business & Administrative Services,City Developments and Neighbourhood
12/05/2017,Education & Childrens Services,Leicestershire County Council,Transport Costs of Child / Carer,680.00,0.00,Other Agencies,LAC Team 3
,,Leicestershire County Council,Engineering & Research & Technology Based Services,"3,650.00",730.00,Engineering & Research & Technology Based Services,City Developments and Neighbourhood
30/05/2017,Adults & Housing Department,Leicestershire County Council,Direct Payments,"2,909.25",581.85,Other Establishments,Drugs and Alcohol Infrastructure
31/05/2017,Adults & Housing Department,Leicestershire Partnership NHS Trust,Weight Management - Pregnancy,"56,811.33",0.00,Healthy Weight  - Adult,"Diet,Physical Activity, Healthy Weight"
17/05/2017,City Developments and Neighbourhood,Leicester Rajkot Twinning Ass,Rajkot,"1,260.00",0.00,Voluntary Organisations,Overseas Link
23/05/2017,Adults & Housing Department,LASS -Responding to the challenges of Health and HIV,HIV reducing stigma,"37,282.25",0.00,SH Advice /prevention/promotion,Sexual Health
,City Developments and Neighbourhood,Lift & Engineering Services Ltd,Servicing,"5,747.00","1,149.40",Building Services / Repairs & Maintenance  Fixtures & Fittings,Contractor Repair & Maintenance projects
,City Developments and Neighbourhood,Lift & Engineering Services Ltd,Servicing,"5,302.00","1,060.40",Building Services / Repairs & Maintenance  Fixtures & Fittings,Central Maintenance Fund Non Schools
10/05/2017,,Lowe Electrical,Building Works - Alterations,947.66,189.53,Building Works - Alterations,Education and Children's Services
09/05/2017,,Lowe Electrical,Fixtures & Fittings,"14,968.76","2,993.75",Fixtures & Fittings,Education and Children's Services
10/05/2017,City Developments and Neighbourhood,Lowe Electrical,Servicing,530.87,106.17,Building Services / Repairs & Maintenance  Fixtures & Fittings,Central Maintenance Fund Non Schools
10/05/2017,City Developments and Neighbourhood,Lowe Electrical,Alterations,"2,237.99",447.60,Building Services / Repairs & Maintenance  Fixtures & Fittings,The Guildhall
17/05/2017,City Developments and Neighbourhood,Lowe Electrical,Responsive,535.48,107.10,Building Services / Repairs & Maintenance  Fixtures & Fittings,Central Maintenance Fund Non Schools
23/05/2017,City Developments and Neighbourhood,Lowe Electrical,Responsive,"2,159.90",431.98,Building Services / Repairs & Maintenance  Fixtures & Fittings,Central Maintenance Fund Non Schools
17/05/2017,Education & Childrens Services,Lowe Electrical,Responsive,519.49,103.90,Building Services / Repairs & Maintenance  Fixtures & Fittings,Beaumont Leys Sure Start
17/05/2017,City Developments and Neighbourhood,Lowe Electrical,Responsive,712.85,142.57,Building Services / Repairs & Maintenance  Fixtures & Fittings,Central Maintenance Fund Non Schools
17/05/2017,City Developments and Neighbourhood,Lowe Electrical,Responsive,"2,210.49",442.10,Building Services / Repairs & Maintenance  Fixtures & Fittings,Central Maintenance Fund Non Schools
23/05/2017,,Lowe Electrical,Fixtures & Fittings,"26,257.91","5,251.58",Fixtures & Fittings,Education and Children's Services
23/05/2017,City Developments and Neighbourhood,Lowe Electrical,Responsive,"1,139.67",227.93,Building Services / Repairs & Maintenance  Fixtures & Fittings,Abbey Pumping Station
24/05/2017,,Lowe Electrical,Fixtures & Fittings,"14,329.43","2,865.89",Fixtures & Fittings,Education and Children's Services
24/05/2017,City Developments and Neighbourhood,Lowe Electrical,Electricity at Work - Works,"3,578.99",715.80,Electricity at Work,Schools Buy Back Board
23/05/2017,City Developments and Neighbourhood,Lowe Electrical,Responsive,"1,461.04",292.21,Building Services / Repairs & Maintenance  Fixtures & Fittings,Central Maintenance Fund Non Schools
09/05/2017,City Developments and Neighbourhood,Lowe Electrical,Responsive,834.59,166.92,Building Services / Repairs & Maintenance  Fixtures & Fittings,Central Maintenance Fund Non Schools
30/05/2017,City Developments and Neighbourhood,Lowe Electrical,Responsive,561.41,112.28,Building Services / Repairs & Maintenance  Fixtures & Fittings,Schools Buy Back Board
30/05/2017,,Lowe Electrical,Fixtures & Fittings,746.23,149.25,Fixtures & Fittings,Education and Children's Services
,City Developments and Neighbourhood,Marshalls Mono Ltd t/a Marshalls Street Furniture,Responsive,"1,979.20",395.84,Building Works & Repairs/Maintenance/Alterations,Stock Procurement
09/05/2017,,Maber Associates Limited,Consultant Fees,825.00,165.00,Consultant Fees,City Developments and Neighbourhood
24/05/2017,Adults & Housing Department,Royal Mencap Society,Residential Permanent,"2,184.00",0.00,Residential Care,LD Team 1-Commissioning
24/05/2017,Adults & Housing Department,Royal Mencap Society,Residential Permanent,"2,986.40",0.00,Residential Care,LD Short Term/Unplanned Team - Commissioning
24/05/2017,Adults & Housing Department,Royal Mencap Society,Residential Permanent,"3,556.52",0.00,Residential Care,LD Team 1-Commissioning
26/05/2017,Adults & Housing Department,Mosaic Shaping(Dis Serv)Main,Consultants Fees,711.75,0.00,Consultant Fees,DOLS
26/05/2017,Adults & Housing Department,Mosaic Shaping(Dis Serv)Main,Consultants Fees,630.40,0.00,Consultant Fees,DOLS
26/05/2017,Education & Childrens Services,National Fostering Agency,Independent Foster Agencies,"1,242.84",0.00,Other Agencies,Independent Fostering Agencies
26/05/2017,Education & Childrens Services,National Fostering Agency,Parenting Assessments,"2,410.32",0.00,Other Agencies,Externally Commissioned Placements
09/05/2017,City Developments and Neighbourhood,Newline Midlands Ltd,Equipment Hire/Lease,"1,048.50",209.70,Equipment Hire / Lease,City Highways - Operation
17/05/2017,City Developments and Neighbourhood,Newline Midlands Ltd,Equipment Hire/Lease,"1,470.00",294.00,Equipment Hire / Lease,City Highways - Operation
26/05/2017,City Developments and Neighbourhood,Nilfisk- Advance Ltd,Equipment Purchase,"1,235.70",247.14,Equipment Purchase,Gilroes Crematorium
05/05/2017,City Developments and Neighbourhood,Norman & Underwood (Glazing Systems) Ltd,Vandalism,633.21,126.64,Building Works & Repairs/Maintenance/Alterations,Schools Buy Back Board
23/05/2017,,Nottingham City Council,IT Software,"23,900.00","4,780.00",IT Software,City Developments and Neighbourhood
17/05/2017,Education & Childrens Services,North Warwickshire & South Leicestershire College,Education and Training Services,960.00,0.00,Education & Training Services,VESA 13-19 Support Agency
17/05/2017,Education & Childrens Services,North Warwickshire & South Leicestershire College,Education and Training Services,832.50,0.00,Education & Training Services,VESA 13-19 Support Agency
26/05/2017,Adults & Housing Department,Nottingham Rehab Ltd t/a NRS Healthcare,ICES Spare parts,"21,911.76","4,382.35",Voluntary Organisations,Integrated community Equipment Service
26/05/2017,Adults & Housing Department,Nottingham Rehab Ltd t/a NRS Healthcare,ICES Repairs,"8,406.00","1,681.20",Voluntary Organisations,Integrated community Equipment Service
23/05/2017,Adults & Housing Department,Nottingham Rehab Ltd t/a NRS Healthcare,Special Equipment Purchase,"2,215.43",443.09,Voluntary Organisations,Integrated community Equipment Service
23/05/2017,Education & Childrens Services,Park Lodge Project,Accommodation - Supported Accommodation,"1,420.00",0.00,Other Establishments,LAC Semi-Independent  Accommodation
23/05/2017,Education & Childrens Services,Park Lodge Project,Accommodation - Supported Accommodation,"5,100.00",0.00,Other Establishments,UASC National Rate
,City Developments and Neighbourhood,PRS for Music Limited,Performing Rights Society Fees,"1,580.50",316.10,Performance Costs,De Montfort Hall
16/05/2017,City Developments and Neighbourhood,Leicester Arts Centre Ltd (t/a Phoenix Arts),Rent - Other,"11,134.87","2,226.97",Rent - Other,Phoenix Square Workspace
,Adults & Housing Department,Pivotell Ltd,Aids & Adaptations,"2,932.00",586.40,Aids & Adaptations,Adaptations and Assistive Technology
30/05/2017,Education & Childrens Services,Play Days Nursery Ltd,SEN Placements,"1,500.00",0.00,Other Agencies,Early Years Top-Ups
16/05/2017,City Developments and Neighbourhood,Pitney Bowes Ltd t/a Postage By Phone-Pitney Bowes,Repair & Maintenance Tools / Equipment,"4,329.11",865.82,Repairs & Maintenance - Equipment & Furniture,Post Room
30/05/2017,Education & Childrens Services,Pre-School Learning Alliance (Leicestershire),SEN Placements,"1,500.00",0.00,Other Agencies,Early Years Top-Ups
30/05/2017,Education & Childrens Services,Pre-School Learning Alliance (Leicestershire),SEN Placements,"1,500.00",0.00,Other Agencies,Early Years Top-Ups
09/05/2017,City Developments and Neighbourhood,Premier Waste And Recycling,Responsive,"3,226.68",645.34,Building Works & Repairs/Maintenance/Alterations,Private Sector Housing
26/05/2017,City Developments and Neighbourhood,Premier Security Services Ltd T/a Regent Samsic,Security & Safety Services,579.52,115.90,Public Order & Security Services,Halford House
23/05/2017,,Property Maintenance Services Ltd,Building Works - Alterations,"4,461.00",0.00,Building Works - Alterations,Housing GF
10/05/2017,City Developments and Neighbourhood,Readings Property Group Limited,Engineering / Research / Technology / Science Services,"1,200.00",240.00,Engineering / Research / Technology / Science Services,Right To Buy
,Education & Childrens Services,Total Produce Foodservice,Catering - Provisions,"7,144.09",0.00,Catering Provisions / Food & Drink,Catering - School Meals O/H Acc
,Education & Childrens Services,Ricoh UK Ltd,Photocopier lease / rental,555.45,111.09,Equipment Hire / Lease,The Phoenix Centre
17/05/2017,City Developments and Neighbourhood,Rossells Locksmiths Ltd,Equipment Purchase,647.50,129.50,Equipment Purchase,PREMISES SUPPORT
05/05/2017,City Developments and Neighbourhood,Rossells Locksmiths Ltd,Equipment Purchase,647.50,129.50,Equipment Purchase,PREMISES SUPPORT
16/05/2017,Education & Childrens Services,Randstad Education Ltd,Agency Local Government Staff,704.10,140.82,Agency Local Government Staff,Early Years Support Team
24/05/2017,Education & Childrens Services,Randstad Education Ltd,Agency Local Government Staff,615.90,123.18,Agency Local Government Staff,Arc/Phoenix Unit
26/05/2017,Education & Childrens Services,Randstad Education Ltd,Agency Local Government Staff,536.45,107.29,Agency Local Government Staff,Service Support Unit
24/05/2017,City Developments and Neighbourhood,AT Services Ltd,Responsive,"1,506.68",301.34,Building Services / Repairs & Maintenance  Fixtures & Fittings,Town Hall
09/05/2017,Adults & Housing Department,AT Services Ltd,Servicing,645.48,129.10,Building Services / Repairs & Maintenance  Fixtures & Fittings,New Parks Leisure Centre
17/05/2017,,AT Services Ltd,Water Hygiene - Works,"9,990.61","1,998.12",Water Hygiene,Resources and Support
03/05/2017,City Developments and Neighbourhood,AT Services Ltd,Project - Responsive,713.88,142.78,Project - R&M Fixtures & Fittings,Contractor Repair & Maintenance projects
09/05/2017,City Developments and Neighbourhood,AT Services Ltd,Servicing,880.20,176.04,Building Services / Repairs & Maintenance  Fixtures & Fittings,Schools Buy Back Board
12/05/2017,,AT Services Ltd,Water Hygiene - Works,"1,271.42",254.28,Water Hygiene,Education and Children's Services
31/05/2017,City Developments and Neighbourhood,AT Services Ltd,Servicing,821.52,164.30,Building Services / Repairs & Maintenance  Fixtures & Fittings,Schools Buy Back Board
,City Developments and Neighbourhood,AT Services Ltd,Responsive,"1,581.98",316.40,Building Services / Repairs & Maintenance  Fixtures & Fittings,Central Maintenance Fund Non Schools
,City Developments and Neighbourhood,AT Services Ltd,Project - Responsive,"1,311.70",262.34,Project - R&M Fixtures & Fittings,Contractor Repair & Maintenance projects
,City Developments and Neighbourhood,AT Services Ltd,Project - Responsive,"1,591.64",318.33,Project - R&M Fixtures & Fittings,Contractor Repair & Maintenance projects
31/05/2017,City Developments and Neighbourhood,AT Services Ltd,Servicing,"2,669.94",533.99,Building Services / Repairs & Maintenance  Fixtures & Fittings,Schools Buy Back Board
23/05/2017,Education & Childrens Services,Senad Ltd,Independent School Fees,"76,271.30",0.00,Independent School Fees,Independent and Non-Maintained Schools
23/05/2017,City Developments and Neighbourhood,"The SES Group, Show & Event Security Services Ltd",Security & Safety Services,780.00,156.00,Public Order & Security Services,Stewards Casuals
,City Developments and Neighbourhood,E H Smith (Builders Merchant) Ltd,Materials Purchase,577.40,115.48,Materials Purchase,Landscape Services Citywide
,City Developments and Neighbourhood,E H Smith (Builders Merchant) Ltd,Planned,715.72,143.14,Building Works & Repairs/Maintenance/Alterations,Blackbird Road Site (RM1)
26/05/2017,Education & Childrens Services,Sutherland House (Trading) Ltd,Independent School Fees,"4,800.00",960.00,Independent School Fees,Independent and Non-Maintained Schools
12/05/2017,City Developments and Neighbourhood,Tarmac Ltd,Materials Purchase,772.49,154.50,Materials Purchase,Stock Procurement
31/05/2017,City Developments and Neighbourhood,Tarmac Ltd,Materials Purchase,524.97,104.99,Materials Purchase,Stock Procurement
26/05/2017,City Developments and Neighbourhood,Tarmac Ltd,Materials Purchase,"1,288.45",257.69,Materials Purchase,Stock Procurement
24/05/2017,City Developments and Neighbourhood,Thomas Cassie & Sons,Responsive,"1,595.09",319.02,Building Works & Repairs/Maintenance/Alterations,Central Maintenance Fund Non Schools
17/05/2017,City Developments and Neighbourhood,Thomas Cassie & Sons,Responsive,"4,036.77",807.35,Building Works & Repairs/Maintenance/Alterations,General Corporate Estate
30/05/2017,City Developments and Neighbourhood,Thomas Cassie & Sons,Responsive,838.55,167.71,Building Works & Repairs/Maintenance/Alterations,Schools Buy Back Board
05/05/2017,City Developments and Neighbourhood,Total Gas & Power Ltd,Gas Bills,795.41,39.77,Project - Gas,Sheltered Accommodation
05/05/2017,City Developments and Neighbourhood,Total Gas & Power Ltd,Gas Bills,566.92,28.35,Project - Gas,Sheltered Accommodation
05/05/2017,City Developments and Neighbourhood,Total Gas & Power Ltd,Gas Bills,544.76,27.24,Project - Gas,Sheltered Accommodation
05/05/2017,City Developments and Neighbourhood,Total Gas & Power Ltd,Gas Bills,740.19,148.04,Gas Utilities,Buildings
05/05/2017,City Developments and Neighbourhood,Total Gas & Power Ltd,Gas Bills,720.75,144.15,Gas Utilities,Leycroft Road Depot Management
05/05/2017,City Developments and Neighbourhood,Total Gas & Power Ltd,Gas Bills,"1,201.46",240.29,Gas Utilities,Vulcan House
,City Developments and Neighbourhood,Total Gas & Power Ltd,Electricity Bills,786.06,157.21,Electricity Utilities,Lighting Energy
31/05/2017,City Developments and Neighbourhood,Total Gas & Power Ltd,Electricity Bills,"2,200.28",440.06,Electricity Utilities,Haymarket Bus Station
31/05/2017,City Developments and Neighbourhood,Total Gas & Power Ltd,Electricity Bills,"3,603.07",720.61,Electricity Utilities,Blackbird Road Site (RM1)
31/05/2017,City Developments and Neighbourhood,Total Gas & Power Ltd,Electricity Bills,"2,465.68",123.28,Electricity Utilities,Dawn Centre Accommodation
31/05/2017,Adults & Housing Department,Total Gas & Power Ltd,Electricity Bills,832.66,166.53,Electricity Utilities,Aylestone Recreation Ground - Football Foundation Pavillion
31/05/2017,Adults & Housing Department,Total Gas & Power Ltd,Electricity Bills,"2,886.45",577.29,Electricity Utilities,Cossington Street Sports Centre
31/05/2017,City Developments and Neighbourhood,Total Gas & Power Ltd,Electricity Bills,"1,573.88",314.78,Electricity Utilities,Beaumont Leys Library & Beaumont Way (Childrens Centre)
31/05/2017,City Developments and Neighbourhood,Total Gas & Power Ltd,Electricity Bills,785.67,157.13,Electricity Utilities,New Parks Centre
,City Developments and Neighbourhood,Total Gas & Power Ltd,Gas Bills,514.97,25.75,Gas Utilities,Blackbird Road Site (RM1)
,City Developments and Neighbourhood,Total Gas & Power Ltd,Gas Bills,505.97,101.19,Gas Utilities,Stores
,City Developments and Neighbourhood,Total Gas & Power Ltd,Gas Bills,"23,814.32","1,190.72",Gas Utilities,Leicester District Energy
,Adults & Housing Department,Total Gas & Power Ltd,Gas Bills,"2,226.76",445.35,Gas Utilities,Evington Leisure Centre
,City Developments and Neighbourhood,Total Gas & Power Ltd,Gas Bills,"1,230.75",246.15,Gas Utilities,Vulcan House
,City Developments and Neighbourhood,Total Gas & Power Ltd,Gas Bills,918.22,183.64,Gas Utilities,Leicester Creative Business Depot
,City Developments and Neighbourhood,Total Gas & Power Ltd,Gas Bills,"32,760.69","1,638.03",Gas Utilities,Leicester District Energy
,City Developments and Neighbourhood,Total Gas & Power Ltd,Gas Bills,657.04,32.85,Project - Gas,Sheltered Accommodation
,City Developments and Neighbourhood,Total Gas & Power Ltd,Gas Bills,"46,845.46","2,342.27",Gas Utilities,Leicester District Energy
,City Developments and Neighbourhood,Total Gas & Power Ltd,Gas Bills,"1,050.00",210.00,Gas Utilities,Blackbird Road Site (RM1)
,Corporate Resources & Support,University Hospitals of Leicester NHS Trust,Mortuary Services,"10,349.52","2,069.90",Funeral Services,Coroners
10/05/2017,Corporate Resources & Support,Weightmans LLP,LCC Ext Solicitors Costs,"1,763.50",352.70,Legal Fees & Charges,Employers Liability
24/05/2017,Corporate Resources & Support,Weightmans LLP,LCC Ext Solicitors Costs,943.00,188.60,Legal Fees & Charges,Public Liability
26/05/2017,Corporate Resources & Support,Weightmans LLP,LCC Ext Solicitors Costs,"2,325.90",465.18,Legal Fees & Charges,Employers Liability
12/05/2017,Education & Childrens Services,Westcotes House Ltd,Accommodation - Service User Flats,"1,705.00",341.00,Other Establishments,LAC - Person From Abroad
12/05/2017,Education & Childrens Services,Westcotes House Ltd,Accommodation - Service User Flats,"1,705.00",341.00,Other Establishments,LAC - Person From Abroad
,City Developments and Neighbourhood,Westbury Industrial Supplies Ltd,PPE / Protective Clothing,538.92,107.78,Equipment Purchase,Stock Procurement
17/05/2017,City Developments and Neighbourhood,William Freer Ltd,Responsive,"4,177.63",835.53,Building Services / Repairs & Maintenance  Fixtures & Fittings,Schools Buy Back Board
16/05/2017,City Developments and Neighbourhood,Antalis Ltd,Paper Purchase,"1,766.25",353.25,Paper Purchase,City Hall (Attenborough House)
24/05/2017,Education & Childrens Services,Youth Justice Board Of England & Wales,Residential Secure Remand Placements,"3,363.00",0.00,Other Agencies,Young Offenders Institutes - Accommodation
,Education & Childrens Services,Youth Justice Board Of England & Wales,Residential Secure Remand Placements,"16,080.00",0.00,Other Agencies,Young Offenders Institutes - Accommodation
26/05/2017,Education & Childrens Services,A Zoom Ltd,Employee Taxi Travel Expense,880.00,176.00,Taxi Travel Expense,NHS Taxi Costs
30/05/2017,Education & Childrens Services,Active 8 Care Ltd,Residential Placements,"16,164.33",0.00,Other Agencies,Externally Commissioned Placements
16/05/2017,City Developments and Neighbourhood,North West Leics.Dist.Council,Management & Business & Administrative Services,"8,747.00",0.00,Management & Business & Administrative Services,LLEP Strategy & Intelligence
26/05/2017,Adults & Housing Department,Tew Hands Interpreting Ltd.,Survey Fees,"3,009.38",0.00,Management & Business & Administrative Services,WEST - Team - Access to Work
24/05/2017,Education & Childrens Services,Yorkshire Adoption Agency Ltd,Membership and Subscriptions,"5,000.00",0.00,Corporate Membership & Subscriptions,Adoption Support Team
24/05/2017,Adults & Housing Department,Craegmoor Facilities Co Ltd t/a Craegmoor Tithe Barn & Stable Cottage,Residential Permanent,"6,628.00",0.00,Residential Care,LOC SOUTH - TEAM 3 - Braunstone - Commissioning
24/05/2017,Adults & Housing Department,Royal Society For The Blind,Residential Permanent,"1,900.00",0.00,Residential Care,EAST - Commissioning - Supported Residents Care Team
24/05/2017,Adults & Housing Department,Royal Society For The Blind,Residential Permanent,"1,704.00",0.00,Residential Care,EAST - Commissioning - Supported Residents Care Team
24/05/2017,Adults & Housing Department,Craegmoor Facilities Co Ltd t/a Craegmoor Landsdowne Road,Residential Permanent,"1,732.00",0.00,Residential Care,LD Team 2 -Commissioning
24/05/2017,Adults & Housing Department,Craegmoor Facilities Co Ltd t/a Craegmoor Landsdowne Road,Residential Permanent,"1,732.00",0.00,Residential Care,LD Team 2 -Commissioning
24/05/2017,Adults & Housing Department,Craegmoor Facilities Co Ltd t/a Craegmoor Landsdowne Road,Residential Permanent,"1,732.00",0.00,Residential Care,LD Team 2 -Commissioning
24/05/2017,Adults & Housing Department,Prime Life Plc,Residential Permanent,"1,528.00",0.00,Residential Care,Adult Mental Health - Maidstone Road (Under 65 s) - Commissioning
24/05/2017,Adults & Housing Department,Prime Life Plc,Residential Permanent,"1,900.00",0.00,Residential Care,Adult Mental Health - Maidstone Road (Under 65 s) - Commissioning
24/05/2017,Adults & Housing Department,Prime Life Plc,Residential Permanent,"1,900.00",0.00,Residential Care,EAST - Commissioning - Supported Residents Care Team
24/05/2017,Adults & Housing Department,Prime Life Plc,Residential Permanent,"1,704.00",0.00,Residential Care,EAST - Commissioning - Supported Residents Care Team
24/05/2017,Adults & Housing Department,Prime Life Plc,Residential Permanent,"1,528.00",0.00,Residential Care,Adult Mental Health - Maidstone Road (Under 65 s) - Commissioning
24/05/2017,Adults & Housing Department,Welford Court Ltd,Residential Permanent,672.00,0.00,Residential Care,EAST - Commissioning - Supported Residents Care Team
24/05/2017,Adults & Housing Department,Ashleigh Nursing Home,Nursing Permanent,"1,852.00",0.00,Nursing Care,EAST - Commissioning - Supported Residents Care Team
24/05/2017,Adults & Housing Department,Ashleigh Nursing Home,Nursing Permanent,"1,852.00",0.00,Nursing Care,EAST - Commissioning - Supported Residents Care Team
24/05/2017,Adults & Housing Department,Baron Park Nursing Home,Nursing Permanent,"1,736.00",0.00,Nursing Care,EAST - Commissioning - Supported Residents Care Team
24/05/2017,Adults & Housing Department,Baron Park Nursing Home,Nursing Permanent,"1,736.00",0.00,Nursing Care,EAST - Commissioning - Supported Residents Care Team
24/05/2017,Adults & Housing Department,Hamilton House,Residential Permanent,"1,528.00",0.00,Residential Care,Adult Mental Health - Maidstone Road (Under 65 s) - Commissioning
,Adults & Housing Department,Prime Life Plc,Residential Permanent,"1,528.00",0.00,Residential Care,Adult Mental Health - Maidstone Road (Under 65 s) - Commissioning
24/05/2017,Adults & Housing Department,D.H. & S.C. Davies,Residential Permanent,"1,528.00",0.00,Residential Care,Commissioning Community - CMHT City East (Merlyn Vaz)
24/05/2017,Adults & Housing Department,D.H. & S.C. Davies,Residential Permanent,"1,528.00",0.00,Residential Care,Commissioning Community - CMHT City East (Merlyn Vaz)
24/05/2017,Adults & Housing Department,D.H. & S.C. Davies,Residential Permanent,"1,900.00",0.00,Residential Care,Commissioning Community - CMHT City East (Merlyn Vaz)
24/05/2017,Adults & Housing Department,Devonshire Court,Residential Permanent,"1,780.00",0.00,Residential Care,EAST - Commissioning - Supported Residents Care Team
24/05/2017,Adults & Housing Department,Melbourne Home,Residential Permanent,"1,900.00",0.00,Residential Care,EAST - Commissioning - Supported Residents Care Team
24/05/2017,Adults & Housing Department,Sanctuary Care Ltd t/a Asra House,Residential Permanent,"1,704.00",0.00,Residential Care,EAST - Commissioning - Supported Residents Care Team
24/05/2017,Adults & Housing Department,Sanctuary Care Ltd t/a Asra House,Residential Permanent,"1,704.00",0.00,Residential Care,LOC WEST - Reablement - Team 2  - Sulgrave Road - Commissioning
24/05/2017,Adults & Housing Department,Stonesby Lodge,Residential Permanent,"1,528.00",0.00,Residential Care,Adult Mental Health - Maidstone Road (Under 65 s) - Commissioning
24/05/2017,Adults & Housing Department,Hunters Lodge,Residential Permanent,692.00,0.00,Residential Care,Commissioning - Braunstone Health & Social Care Centre - Adult Mental Health
24/05/2017,Adults & Housing Department,Gratia Residential Care Home Ltd,Residential Permanent,728.00,0.00,Residential Care,LD Targeted Reassessment Team-Commissioning
24/05/2017,Adults & Housing Department,Gratia Residential Care Home Ltd,Residential Permanent,"1,900.00",0.00,Residential Care,LD Targeted Reassessment Team-Commissioning
24/05/2017,Adults & Housing Department,Westcotes Rest Home,Residential Permanent,"1,704.00",0.00,Residential Care,EAST - Commissioning - Supported Residents Care Team
24/05/2017,Adults & Housing Department,Westcotes Rest Home,Residential Permanent,"1,704.00",0.00,Residential Care,EAST - Commissioning - Supported Residents Care Team
24/05/2017,Adults & Housing Department,Westcotes Rest Home,Residential Permanent,"1,900.00",0.00,Residential Care,EAST - Commissioning - Supported Residents Care Team
24/05/2017,Adults & Housing Department,Westcotes Rest Home,Residential Permanent,"1,704.00",0.00,Residential Care,LOC WEST - Reablement - Team 2  - Sulgrave Road - Commissioning
24/05/2017,Adults & Housing Department,Venetia House,Residential Permanent,"1,470.00",0.00,Residential Care,Adult Mental Health - Maidstone Road (Under 65 s) - Commissioning
24/05/2017,Adults & Housing Department,Prime Life Plc,Residential Permanent,"1,908.00",0.00,Residential Care,EAST - Commissioning - Supported Residents Care Team
24/05/2017,Adults & Housing Department,Ashton Lodge,Residential Permanent,"1,900.00",0.00,Residential Care,EAST - Commissioning - Supported Residents Care Team
24/05/2017,Adults & Housing Department,Ashton Lodge,Residential Short Stay,"1,095.43",0.00,Residential Care,WEST - Comm'g - Belgrave - Team 1
24/05/2017,Adults & Housing Department,Ashton Lodge,Residential Permanent,"1,528.00",0.00,Residential Care,Commissioning - Braunstone Health & Social Care Centre - Adult Mental Health
24/05/2017,Adults & Housing Department,Ashton Lodge,Residential Permanent,"1,704.00",0.00,Residential Care,EAST - Commissioning - Supported Residents Care Team
24/05/2017,Adults & Housing Department,Elliott Rest Homes,Residential Permanent,"1,528.00",0.00,Residential Care,Adult Mental Health - Maidstone Road (Under 65 s) - Commissioning
24/05/2017,Adults & Housing Department,Nottingham community  Housing Association (Carefirst),Residential Permanent,"1,704.00",0.00,Residential Care,EAST - Commissioning - Supported Residents Care Team
24/05/2017,Adults & Housing Department,Samalodge Ltd T/A Anita Jane�s Lodge,Residential Permanent,"1,704.00",0.00,Residential Care,EAST - Commissioning - Supported Residents Care Team
24/05/2017,Adults & Housing Department,Samalodge Ltd T/A Anita Jane�s Lodge,Residential Short Stay,"1,309.71",0.00,Residential Care,Commissioning Community - CMHT City East (Merlyn Vaz)
24/05/2017,Adults & Housing Department,Prime Life Plc,Nursing Permanent,"1,852.00",0.00,Nursing Care,EAST - Commissioning - Supported Residents Care Team
24/05/2017,Adults & Housing Department,Prime Life Plc,Residential Permanent,"1,900.00",0.00,Residential Care,EAST - Commissioning - Supported Residents Care Team
24/05/2017,Adults & Housing Department,Prime Life Plc,Residential Permanent,"1,140.00",0.00,Residential Care,EAST - Commissioning - Supported Residents Care Team
10/05/2017,Adults & Housing Department,Pearlcare Glenfield Ltd (CLOSED: VAT REG),Residential Short Stay,912.00,0.00,Residential Care,WEST - Comm'g - Belgrave - Team 1
24/05/2017,Adults & Housing Department,Satya Nivas Residential Home,Residential Permanent,"1,732.00",0.00,Residential Care,LD Team 2 -Commissioning
24/05/2017,Adults & Housing Department,Satya Nivas Residential Home,Residential Permanent,"1,732.00",0.00,Residential Care,LD Short Term/Unplanned Team - Commissioning
24/05/2017,Adults & Housing Department,Satya Nivas Residential Home,Residential Permanent,"1,344.00",0.00,Residential Care,LD Short Term/Unplanned Team - Commissioning
30/05/2017,Adults & Housing Department,Methodist Home For The Aged- Aigburth,Residential Permanent,"1,336.00",0.00,Residential Care,EAST - Commissioning - Supported Residents Care Team
30/05/2017,Adults & Housing Department,Methodist Home For The Aged- Aigburth,Residential Permanent,"1,780.00",0.00,Residential Care,EAST - Commissioning - Supported Residents Care Team
30/05/2017,Adults & Housing Department,Methodist Home For The Aged- Aigburth,Residential Permanent,"1,780.00",0.00,Residential Care,EAST - Commissioning - Supported Residents Care Team
24/05/2017,Adults & Housing Department,Craegmoor Facilities Co Ltd t/a Craegmoor Charnwood Lodge,Residential Permanent,"1,780.00",0.00,Residential Care,Commissioning Community - CMHT City East (Merlyn Vaz)
24/05/2017,Adults & Housing Department,Manor Nursing Home,Residential Respite,"1,704.00",0.00,Residential Care,WEST - Comm'g - Paisley Road - Team 3
24/05/2017,Adults & Housing Department,Lester Hall Apartments Ltd,Residential Permanent,"1,900.00",0.00,Residential Care,Adult Mental Health - Maidstone Road (Under 65 s) - Commissioning
24/05/2017,Adults & Housing Department,Lester Hall Apartments Ltd,Residential Permanent,"2,685.96",0.00,Residential Care,Adult Mental Health - Maidstone Road (Under 65 s) - Commissioning
24/05/2017,Adults & Housing Department,Lester Hall Apartments Ltd,Residential Permanent,"4,011.24",0.00,Residential Care,Adult Mental Health - Maidstone Road (Under 65 s) - Commissioning
24/05/2017,Adults & Housing Department,Lester Hall Apartments Ltd,Residential Permanent,"1,900.00",0.00,Residential Care,EAST - Commissioning - Supported Residents Care Team
24/05/2017,Adults & Housing Department,Lester Hall Apartments Ltd,Residential Permanent,"3,519.80",0.00,Residential Care,Commissioning Community - CMHT City East (Merlyn Vaz)
24/05/2017,Adults & Housing Department,Christchurch Court,Residential Permanent,"1,780.00",0.00,Residential Care,EAST - Commissioning - Supported Residents Care Team
24/05/2017,Adults & Housing Department,Hamra Associates Ltd,Residential Permanent,879.36,0.00,Residential Care,LD Team 2 -Commissioning
24/05/2017,Adults & Housing Department,Hamra Associates Ltd,Residential Permanent,"1,732.00",0.00,Residential Care,LD Team 2 -Commissioning
24/05/2017,Adults & Housing Department,Grey Ferrers Nursing Home,Nursing Permanent,"1,852.00",0.00,Nursing Care,EAST - Commissioning - Supported Residents Care Team
24/05/2017,Adults & Housing Department,Grey Ferrers Nursing Home,Nursing Permanent,"1,852.00",0.00,Nursing Care,EAST - Commissioning - Supported Residents Care Team
24/05/2017,Adults & Housing Department,Chhg Ltd T/A Gretton Homes,Residential Permanent,"7,602.12",0.00,Residential Care,LD Team 1-Commissioning
24/05/2017,Adults & Housing Department,Magnum Care Ltd T/a Aberry House,Residential Permanent,"1,900.00",0.00,Residential Care,EAST - Commissioning - Supported Residents Care Team
24/05/2017,Adults & Housing Department,Magnum Care Ltd T/a Aberry House,Residential Permanent,"1,900.00",0.00,Residential Care,EAST - Commissioning - Supported Residents Care Team
24/05/2017,Adults & Housing Department,Magnum Care Ltd T/a Aberry House,Nursing Permanent,"1,852.00",0.00,Nursing Care,EAST - Commissioning - Supported Residents Care Team
24/05/2017,Adults & Housing Department,Magnum Care Ltd T/a Aberry House,Residential Permanent,580.00,0.00,Residential Care,EAST - Commissioning - Supported Residents Care Team
24/05/2017,Adults & Housing Department,Heartwell House Residential Care Ltd,Residential Permanent,950.00,0.00,Residential Care,Commissioning Community -Adult Mental Health Assertive Outreach
24/05/2017,Adults & Housing Department,The Ark Care Lodge,Residential Permanent,"1,732.00",0.00,Residential Care,LD Team 2 -Commissioning
24/05/2017,Adults & Housing Department,The Ark Care Lodge,Residential Permanent,"1,732.00",0.00,Residential Care,LD Team 2 -Commissioning
24/05/2017,Adults & Housing Department,The Ark Care Lodge,Residential Permanent,"1,900.00",0.00,Residential Care,LD Short Term/Unplanned Team - Commissioning
24/05/2017,Adults & Housing Department,Royal Leics Rut & Wycliffe Soc,Residential Permanent,"5,453.68",0.00,Residential Care,LD Team 2 -Commissioning
24/05/2017,Adults & Housing Department,Royal Leics Rut & Wycliffe Soc,Residential Permanent,"5,109.32",0.00,Residential Care,LD Team 2 -Commissioning
24/05/2017,Adults & Housing Department,Royal Leics Rut & Wycliffe Soc,Residential Permanent,"1,732.00",0.00,Residential Care,LD Team 2 -Commissioning
24/05/2017,Adults & Housing Department,St Bennetts Care Home,Residential Permanent,"1,900.00",0.00,Residential Care,EAST - Commissioning - Supported Residents Care Team
24/05/2017,Adults & Housing Department,St Bennetts Care Home,Residential Permanent,"1,900.00",0.00,Residential Care,EAST - Commissioning - Supported Residents Care Team
24/05/2017,Adults & Housing Department,St Bennetts Care Home,Residential Permanent,"1,900.00",0.00,Residential Care,EAST - Commissioning - Supported Residents Care Team
24/05/2017,Adults & Housing Department,HOLLYWELL COURT RESIDENTIAL HOME,Residential Permanent,"1,704.00",0.00,Residential Care,EAST - Commissioning - Supported Residents Care Team
24/05/2017,Adults & Housing Department,Western Park Ltd,Residential Short Stay,"1,425.00",0.00,Residential Care,Locality WEST -- Westcotes -- Team 4
24/05/2017,Adults & Housing Department,Western Park Ltd,Residential Short Stay,"1,460.57",0.00,Residential Care,EAST - Comm'g - Springfield Road - East 3
24/05/2017,Adults & Housing Department,Western Park Ltd,Residential Permanent,"1,704.00",0.00,Residential Care,EAST - Commissioning - Supported Residents Care Team
24/05/2017,Adults & Housing Department,Cherre Residential Care,Residential Permanent,"2,394.16",0.00,Residential Care,LD Targeted Reassessment Team-Commissioning
24/05/2017,Adults & Housing Department,Cherre Residential Care,Residential Permanent,"1,732.00",0.00,Residential Care,LOC West - Team 4 - Thurcaston Road - Commissioning
24/05/2017,Adults & Housing Department,Royal Society For The Blind,Residential Permanent,"6,412.00",0.00,Residential Care,LD Team 2 -Commissioning
24/05/2017,Adults & Housing Department,Royal Society For The Blind,Residential Permanent,"1,596.00",0.00,Residential Care,EAST - Commissioning - Supported Residents Care Team
24/05/2017,Adults & Housing Department,Royal Society For The Blind,Residential Short Stay,741.00,0.00,Residential Care,WEST - Comm'g - Belgrave - Team 1
24/05/2017,Adults & Housing Department,HC-One Ltd T/a Harley Grange Care Home,Nursing Permanent,"1,852.00",0.00,Nursing Care,EAST - Commissioning - Supported Residents Care Team
24/05/2017,Adults & Housing Department,HC-One Ltd T/a Harley Grange Care Home,Residential Permanent,"1,360.00",0.00,Residential Care,EAST - Commissioning - Supported Residents Care Team
24/05/2017,Adults & Housing Department,HC-One Ltd T/a Harley Grange Care Home,Nursing Permanent,"1,852.00",0.00,Nursing Care,EAST - Commissioning - Supported Residents Care Team
,Adults & Housing Department,Berrystead Nursing Home,Residential Permanent,"1,780.00",0.00,Residential Care,EAST - Commissioning - Supported Residents Care Team
24/05/2017,Adults & Housing Department,Hambleton House,Residential Permanent,"1,900.00",0.00,Residential Care,Commissioning Community - CMHT City East (Merlyn Vaz)
24/05/2017,Adults & Housing Department,Hambleton House,Residential Permanent,"1,732.00",0.00,Residential Care,LD Team 2 -Commissioning
24/05/2017,Adults & Housing Department,Streetscene,Residential Short Stay,"1,432.00",0.00,Residential Care,LOC South -  Substance Misuse  - Commissioning
03/05/2017,Education & Childrens Services,Homefield College,Education and Training Services,"9,806.00",0.00,Education & Training Services,ISP Top-Ups
24/05/2017,Adults & Housing Department,Stonesby House,Residential Permanent,"1,900.00",0.00,Residential Care,EAST - Commissioning - Supported Residents Care Team
12/05/2017,Adults & Housing Department,Help At Home,Personal Care / Generic,880.15,0.00,Home Care,WEST - Comm'g - Paisley Road - Team 3
12/05/2017,Adults & Housing Department,Help At Home,Personal Care / Generic,593.31,0.00,Home Care,EAST - Comm'g - Merlyn Vaz HC and St Peters - East 1
12/05/2017,Adults & Housing Department,Help At Home,Personal Care / Generic,786.22,0.00,Home Care,WEST - Comm'g - Braunstone and Meridian - Team 2
05/05/2017,Adults & Housing Department,Amicare Domiciliary Services Ltd,Personal Care / Generic,593.40,0.00,Home Care,LOC EAST - TEAM 3  - Merlyn Vaz - Commissioning
05/05/2017,Adults & Housing Department,Amicare Domiciliary Services Ltd,Personal Care / Generic,934.95,0.00,Home Care,EAST - Comm'g - Uppingham Road - East 4
05/05/2017,Adults & Housing Department,Amicare Domiciliary Services Ltd,Personal Care / Generic,869.40,0.00,Home Care,EAST - Comm'g - Merlyn Vaz HC and St Peters - East 1
05/05/2017,Adults & Housing Department,Amicare Domiciliary Services Ltd,Personal Care / Generic,689.77,0.00,Home Care,WEST - Comm'g - Braunstone and Meridian - Team 2
05/05/2017,Adults & Housing Department,Amicare Domiciliary Services Ltd,Personal Care / Generic,631.81,0.00,Home Care,EAST - Comm'g - Springfield Road - East 3
05/05/2017,Adults & Housing Department,Amicare Domiciliary Services Ltd,Personal Care / Generic,593.40,0.00,Home Care,LOC EAST - TEAM 4  - Merlyn Vaz - Commissioning
05/05/2017,Adults & Housing Department,Amicare Domiciliary Services Ltd,Personal Care / Generic,679.65,0.00,Home Care,LOC WEST - Reablement - Team 2  - Sulgrave Road - Commissioning
05/05/2017,Adults & Housing Department,Amicare Domiciliary Services Ltd,Personal Care / Generic,566.95,0.00,Home Care,LOC SOUTH - TEAM 2 - Martin House - Commissioning
05/05/2017,Adults & Housing Department,Amicare Domiciliary Services Ltd,Personal Care / Generic,586.50,0.00,Home Care,LOC EAST - TEAM 1 - Merlyn Vaz - Commissioning
05/05/2017,Adults & Housing Department,Amicare Domiciliary Services Ltd,Personal Care / Generic,"1,166.10",0.00,Home Care,EAST - Comm'g - Springfield Road - East 3
05/05/2017,Adults & Housing Department,Amicare Domiciliary Services Ltd,Personal Care / Generic,718.29,0.00,Home Care,LOC West - Team 4 - Thurcaston Road - Commissioning
05/05/2017,Adults & Housing Department,Amicare Domiciliary Services Ltd,Personal Care / Generic,"1,351.25",0.00,Home Care,Health Transfers - Commissioning - Discharge Team 1
05/05/2017,Adults & Housing Department,Amicare Domiciliary Services Ltd,Personal Care / Generic,948.75,0.00,Home Care,EAST - Comm'g - Springfield Road - East 3
,Adults & Housing Department,Danbury Gardens - Help at Home,Home Care - Extra Care,708.39,0.00,Home Care,Health Transfers - Commissioning - Discharge Team 1
,Adults & Housing Department,Danbury Gardens - Help at Home,Home Care - Extra Care,542.64,0.00,Home Care,EAST - Commissioning - Supported Residents Care Team
,Adults & Housing Department,Danbury Gardens - Help at Home,Home Care - Extra Care,"1,895.50",0.00,Home Care,EAST - Commissioning - Supported Residents Care Team
24/05/2017,Adults & Housing Department,Direct Health UK Ltd,Personal Care / Generic,"1,173.65",0.00,Home Care,EAST - Comm'g - Merlyn Vaz HC and St Peters - East 1
24/05/2017,Adults & Housing Department,Direct Health UK Ltd,Personal Care / Generic,560.44,0.00,Home Care,LOC WEST - Reablement - Team 2  - Sulgrave Road - Commissioning
23/05/2017,Adults & Housing Department,Domiciliary Care Services UK Ltd,Personal Care / Generic,"1,263.78",0.00,Home Care,Locality WEST -- Westcotes -- Team 4
23/05/2017,Adults & Housing Department,Domiciliary Care Services UK Ltd,Personal Care / Generic,"1,342.32",0.00,Home Care,EAST - Comm'g - Rushey Mead - East 2
23/05/2017,Adults & Housing Department,Domiciliary Care Services UK Ltd,Personal Care / Generic,"1,374.45",0.00,Home Care,EAST - Comm'g - Springfield Road - East 3
05/05/2017,Adults & Housing Department,Westminster Homecare Ltd ),Personal Care / Generic,"1,281.80",0.00,Home Care,Health Transfers - Commissioning - Discharge Team 2
05/05/2017,Adults & Housing Department,Westminster Homecare Ltd ),Personal Care / Generic,933.87,0.00,Home Care,Locality WEST -- Westcotes -- Team 4
05/05/2017,Adults & Housing Department,Westminster Homecare Ltd ),Personal Care / Generic,591.60,0.00,Home Care,LOC West - Team 4 - Thurcaston Road - Commissioning
05/05/2017,Adults & Housing Department,Westminster Homecare Ltd ),Personal Care / Generic,567.80,0.00,Home Care,Locality WEST -- Westcotes -- Team 4
31/05/2017,Adults & Housing Department,Westminster Homecare Ltd ),Personal Care / Generic,"1,028.43",0.00,Home Care,EAST - Comm'g - Merlyn Vaz HC and St Peters - East 1
31/05/2017,Adults & Housing Department,Westminster Homecare Ltd ),Personal Care / Generic,540.47,0.00,Home Care,EAST - Comm'g - Uppingham Road - East 4
31/05/2017,Adults & Housing Department,Westminster Homecare Ltd ),Personal Care / Generic,631.76,0.00,Home Care,EAST - Comm'g - Uppingham Road - East 4
31/05/2017,Adults & Housing Department,Westminster Homecare Ltd ),Personal Care / Generic,"1,035.43",0.00,Home Care,EAST - Comm'g - Merlyn Vaz HC and St Peters - East 1
31/05/2017,Adults & Housing Department,Westminster Homecare Ltd ),Personal Care / Generic,726.57,0.00,Home Care,WEST - Comm'g - Belgrave - Team 1
24/05/2017,Adults & Housing Department,HC-One Ltd T/a Cedar Court,Nursing Permanent,"1,736.00",0.00,Nursing Care,EAST - Commissioning - Supported Residents Care Team
24/05/2017,Adults & Housing Department,HC-One Ltd T/a Cedar Court,Nursing Permanent,806.00,0.00,Nursing Care,Health Transfers - Commissioning - Discharge Team 2
24/05/2017,Adults & Housing Department,G B Care Ltd,Nursing Permanent,"1,852.00",0.00,Nursing Care,LOC WEST - TEAM 3 - Thurcaston Road - Commissioning
24/05/2017,Adults & Housing Department,G B Care Ltd,Residential Permanent,"1,528.00",0.00,Residential Care,Commissioning Community - CMHT City East (Merlyn Vaz)
24/05/2017,Adults & Housing Department,CLARENDON MEWS CARE LIMITED,Residential Permanent,"1,704.00",0.00,Residential Care,EAST - Commissioning - Supported Residents Care Team
24/05/2017,Adults & Housing Department,CLARENDON MEWS CARE LIMITED,Residential Permanent,"1,156.29",0.00,Residential Care,EAST - Comm'g - Rushey Mead - East 2
24/05/2017,Adults & Housing Department,CLARENDON MEWS CARE LIMITED,Interim Residential (Delayed Discharges),852.00,0.00,Residential Care,Health Transfers - Commissioning - Discharge Team 1
24/05/2017,Adults & Housing Department,CLARENDON MEWS CARE LIMITED,Residential Short Stay,"1,460.57",0.00,Residential Care,Health Transfers - Commissioning - Discharge Team 1
24/05/2017,Adults & Housing Department,CLARENDON MEWS CARE LIMITED,Residential Permanent,"1,900.00",0.00,Residential Care,EAST - Commissioning - Supported Residents Care Team
24/05/2017,Adults & Housing Department,Leonard Cheshire Foundation,Residential Permanent,"2,427.88",0.00,Residential Care,LD Team 1-Commissioning
24/05/2017,Adults & Housing Department,Leonard Cheshire Foundation,Residential Permanent,"1,327.84",0.00,Residential Care,EAST - Commissioning - Supported Residents Care Team
24/05/2017,Adults & Housing Department,Mentaur Ltd,Residential Permanent,"3,219.08",0.00,Residential Care,LD Targeted Reassessment Team-Commissioning
24/05/2017,Adults & Housing Department,Marston Court Ltd T/a Marston Court,Residential Permanent,"1,732.00",0.00,Residential Care,LD Team 2 -Commissioning
24/05/2017,Adults & Housing Department,Marston Court Ltd T/a Marston Court,Residential Permanent,"2,982.00",0.00,Residential Care,LD Team 2 -Commissioning
24/05/2017,Adults & Housing Department,Marston Court Ltd T/a Marston Court,Residential Permanent,"1,095.48",0.00,Residential Care,LD Team 2 -Commissioning
24/05/2017,Adults & Housing Department,Marston Court Ltd T/a Marston Court,Residential Permanent,"1,732.00",0.00,Residential Care,LD Team 2 -Commissioning
24/05/2017,Adults & Housing Department,Ala Care Ltd,Residential Permanent,"1,900.00",0.00,Residential Care,EAST - Commissioning - Supported Residents Care Team
24/05/2017,Adults & Housing Department,Craegmoor Facilities Co. Ltd t/a Craegmoor Halifax Drive,Residential Permanent,"1,129.92",0.00,Residential Care,LD Team 1-Commissioning
24/05/2017,Adults & Housing Department,Craegmoor Facilities Co. Ltd t/a Craegmoor Halifax Drive,Residential Permanent,"1,732.00",0.00,Residential Care,LD Team 1-Commissioning
24/05/2017,Adults & Housing Department,Flora Lodge,Residential Permanent,"1,900.00",0.00,Residential Care,EAST - Commissioning - Supported Residents Care Team
24/05/2017,Adults & Housing Department,Flora Lodge,Residential Permanent,"1,528.00",0.00,Residential Care,Commissioning - Braunstone Health & Social Care Centre - Adult Mental Health
31/05/2017,Adults & Housing Department,Ark Home Healthcare Ltd,Personal Care / Generic,"1,458.06",0.00,Home Care,Locality WEST -- Westcotes -- Team 4
31/05/2017,Adults & Housing Department,Ark Home Healthcare Ltd,Personal Care / Generic,574.48,0.00,Home Care,EAST - Comm'g - Merlyn Vaz HC and St Peters - East 1
31/05/2017,Adults & Housing Department,Ark Home Healthcare Ltd,Personal Care / Generic,585.83,0.00,Home Care,WEST - Comm'g - Braunstone and Meridian - Team 2
24/05/2017,Adults & Housing Department,Glenside Manor Health Care Services Ltd,Nursing Permanent,990.84,0.00,Nursing Care,EAST - Commissioning - Supported Residents Care Team
24/05/2017,Adults & Housing Department,Pine View Care Homes Ltd T/a Groby Lodge,Residential Permanent,"1,900.00",0.00,Residential Care,EAST - Commissioning - Supported Residents Care Team
24/05/2017,Adults & Housing Department,Pine View Care Homes Ltd T/a Groby Lodge,Residential Permanent,"1,704.00",0.00,Residential Care,EAST - Commissioning - Supported Residents Care Team
30/05/2017,Adults & Housing Department,MHA-Foxton Grange,Residential Permanent,"1,900.00",0.00,Residential Care,EAST - Commissioning - Supported Residents Care Team
24/05/2017,Adults & Housing Department,Gokul Nivas,Residential Short Stay,542.86,0.00,Residential Care,EAST - Comm'g - Rushey Mead - East 2
24/05/2017,Adults & Housing Department,Vishram Ghar,Residential Permanent,"1,596.00",0.00,Residential Care,Commissioning Community - CMHT City East (Merlyn Vaz)
24/05/2017,Adults & Housing Department,Vishram Ghar,Residential Permanent,"1,900.00",0.00,Residential Care,EAST - Commissioning - Supported Residents Care Team
24/05/2017,Adults & Housing Department,Vishram Ghar,Residential Permanent,"1,900.00",0.00,Residential Care,EAST - Comm'g - Merlyn Vaz HC and St Peters - East 1
24/05/2017,Adults & Housing Department,Vishram Ghar,Residential Permanent,"2,530.36",0.00,Residential Care,EAST - Commissioning - Supported Residents Care Team
24/05/2017,Adults & Housing Department,Vishram Ghar,Residential Permanent,"1,704.00",0.00,Residential Care,EAST - Commissioning - Supported Residents Care Team
24/05/2017,Adults & Housing Department,Vishram Ghar,Residential Permanent,"1,704.00",0.00,Residential Care,EAST - Commissioning - Supported Residents Care Team
24/05/2017,Adults & Housing Department,Rushey Mead Manor Care Home,Residential Permanent,"1,900.00",0.00,Residential Care,EAST - Commissioning - Supported Residents Care Team
24/05/2017,Adults & Housing Department,Rushey Mead Manor Care Home,Nursing Permanent,"1,852.00",0.00,Nursing Care,EAST - Commissioning - Supported Residents Care Team
24/05/2017,Adults & Housing Department,Rushey Mead Manor Care Home,Residential Respite,"1,221.43",0.00,Residential Care,EAST - Comm'g - Rushey Mead - East 2
24/05/2017,Adults & Housing Department,Rushey Mead Manor Care Home,Residential Permanent,"1,900.00",0.00,Residential Care,EAST - Comm'g - Rushey Mead - East 2
24/05/2017,Adults & Housing Department,Rushey Mead Manor Care Home,Residential Permanent,950.00,0.00,Residential Care,EAST - Comm'g - Rushey Mead - East 2
24/05/2017,Adults & Housing Department,Rushey Mead Manor Care Home,Residential Permanent,"1,900.00",0.00,Residential Care,EAST - Comm'g - Rushey Mead - East 2
24/05/2017,Adults & Housing Department,Hicare Ltd,Residential Respite,791.14,0.00,Residential Care,WEST - Comm'g - Belgrave - Team 1
24/05/2017,Adults & Housing Department,Hicare Ltd,Residential Short Stay,"1,399.71",0.00,Residential Care,Health Transfers - Commissioning - Discharge Team 1
24/05/2017,Adults & Housing Department,Hicare Ltd,Residential Permanent,"1,832.14",0.00,Residential Care,LOC WEST - Reablement - Team 2  - Sulgrave Road - Commissioning
24/05/2017,Adults & Housing Department,Hicare Ltd,Residential Short Stay,852.00,0.00,Residential Care,LOC WEST - Reablement - Team 1  - Sulgrave Road - Commissioning
24/05/2017,Adults & Housing Department,Hicare Ltd,Residential Short Stay,852.00,0.00,Residential Care,LOC WEST - Reablement - Team 1  - Sulgrave Road - Commissioning
24/05/2017,Adults & Housing Department,Hicare Ltd,Residential Permanent,"1,900.00",0.00,Residential Care,EAST - Commissioning - Supported Residents Care Team
24/05/2017,Adults & Housing Department,Hicare Ltd,Residential Permanent,"1,900.00",0.00,Residential Care,EAST - Commissioning - Supported Residents Care Team
24/05/2017,Adults & Housing Department,Hicare Ltd,Residential Permanent,"1,900.00",0.00,Residential Care,EAST - Commissioning - Supported Residents Care Team
24/05/2017,Adults & Housing Department,Hicare Ltd,Residential Permanent,"1,704.00",0.00,Residential Care,EAST - Commissioning - Supported Residents Care Team
24/05/2017,Adults & Housing Department,Aarons Unit,Residential Permanent,"1,780.00",0.00,Residential Care,Commissioning - Braunstone Health & Social Care Centre - Adult Mental Health
24/05/2017,Adults & Housing Department,A.L.A.Care Ltd,Residential Permanent,"1,596.00",0.00,Residential Care,WEST - Comm'g - Braunstone and Meridian - Team 2
24/05/2017,Adults & Housing Department,Mauricare Ltd,Residential Permanent,"1,900.00",0.00,Residential Care,Commissioning - Braunstone Health & Social Care Centre - Adult Mental Health
24/05/2017,Adults & Housing Department,Mauricare Ltd,Residential Permanent,"1,704.00",0.00,Residential Care,EAST - Commissioning - Supported Residents Care Team
24/05/2017,Adults & Housing Department,Mauricare Ltd,Residential Permanent,"1,153.57",0.00,Residential Care,WEST - Comm'g - Belgrave - Team 1
24/05/2017,Adults & Housing Department,Mauricare Ltd,Residential Short Stay,"1,399.71",0.00,Residential Care,Health Transfers - Commissioning - Discharge Team 1
24/05/2017,Adults & Housing Department,Prime Life Ltd,Residential Permanent,"1,412.00",0.00,Residential Care,EAST - Commissioning - Supported Residents Care Team
24/05/2017,Adults & Housing Department,Knighton Manor Ltd,Residential Permanent,"1,732.00",0.00,Residential Care,LD Team 2 -Commissioning
24/05/2017,Adults & Housing Department,Knighton Manor Ltd,Residential Permanent,"1,732.00",0.00,Residential Care,LD Team 2 -Commissioning
24/05/2017,Adults & Housing Department,Knighton Manor Ltd,Residential Permanent,"1,232.00",0.00,Residential Care,LD Team 2 -Commissioning
24/05/2017,Adults & Housing Department,Knighton Manor Ltd,Residential Permanent,"1,900.00",0.00,Residential Care,LD Team 2 -Commissioning
24/05/2017,Adults & Housing Department,Knighton Manor Ltd,Residential Permanent,"1,900.00",0.00,Residential Care,Commissioning - Braunstone Health & Social Care Centre - Adult Mental Health
24/05/2017,Adults & Housing Department,Milligan Court,Residential Short Stay,"2,961.43",0.00,Residential Care,LD Team 2 -Commissioning
24/05/2017,Adults & Housing Department,Milligan Court,Residential Permanent,"1,732.00",0.00,Residential Care,LD Team 2 -Commissioning
24/05/2017,Adults & Housing Department,Minster Pathways Ltd,Residential Permanent,"1,058.48",0.00,Residential Care,LD Targeted Reassessment Team-Commissioning
24/05/2017,Adults & Housing Department,Minster Pathways,Residential Permanent,"1,586.64",0.00,Residential Care,LD Team 2 -Commissioning
24/05/2017,Adults & Housing Department,Sanctuary Home Care Limited T/a Skelton Court,Residential Permanent,"1,900.00",0.00,Residential Care,LD Team 2 -Commissioning
24/05/2017,Adults & Housing Department,Langdale View,Nursing Permanent,"1,852.00",0.00,Nursing Care,EAST - Commissioning - Supported Residents Care Team
24/05/2017,Adults & Housing Department,Langdale View,Nursing Permanent,"1,852.00",0.00,Nursing Care,EAST - Commissioning - Supported Residents Care Team
24/05/2017,Adults & Housing Department,Barkby Road Residential Home,Residential Permanent,"6,130.00",0.00,Residential Care,LD Team 1-Commissioning
24/05/2017,Adults & Housing Department,Rushcliffe Care,Residential Permanent,"1,024.00",0.00,Residential Care,LD Team 2 -Commissioning
24/05/2017,Adults & Housing Department,Rushcliffe Care,Residential Permanent,"1,624.00",0.00,Residential Care,LD Team 2 -Commissioning
24/05/2017,Adults & Housing Department,Prime Life Ltd,Residential Permanent,"1,900.00",0.00,Residential Care,EAST - Commissioning - Supported Residents Care Team
24/05/2017,Adults & Housing Department,Prime Life Ltd,Residential Permanent,"1,704.00",0.00,Residential Care,EAST - Commissioning - Supported Residents Care Team
24/05/2017,Adults & Housing Department,Prime Life Ltd,Residential Permanent,"1,704.00",0.00,Residential Care,EAST - Commissioning - Supported Residents Care Team
24/05/2017,Adults & Housing Department,Diwali Ltd,Residential Permanent,"1,900.00",0.00,Residential Care,EAST - Commissioning - Supported Residents Care Team
24/05/2017,Adults & Housing Department,Diwali Ltd,Residential Permanent,"1,900.00",0.00,Residential Care,EAST - Comm'g - Merlyn Vaz HC and St Peters - East 1
30/05/2017,Adults & Housing Department,Always There Homecare Ltd,Personal Care / Generic,549.90,0.00,Home Care,WEST - Comm'g - Braunstone and Meridian - Team 2
30/05/2017,Adults & Housing Department,Always There Homecare Ltd,Personal Care / Generic,897.12,0.00,Home Care,EAST - Comm'g - Springfield Road - East 3
09/05/2017,Adults & Housing Department,,Shared Lives - Day Care,663.12,0.00,Shared Lives,LD Targeted Reassessment Team-Commissioning
17/05/2017,City Developments and Neighbourhood,Gap Books,Periodicals & Magazines,831.00,0.00,Printed & Electronic Media,Reader Development Services
12/05/2017,Education & Childrens Services,P & R Cars,Employee Taxi Travel Expense,"2,032.00",0.00,Taxi Travel Expense,Operational Transport Ad Hoc
24/05/2017,Adults & Housing Department,Thorpe House Nursing & Residential,Residential Permanent,890.00,0.00,Residential Care,EAST - Commissioning - Supported Residents Care Team
23/05/2017,City Developments and Neighbourhood,Alfred Bagnalls & Sons (East Midlands) Ltd,Responsive,"1,047.75",209.55,Building Works & Repairs/Maintenance/Alterations,Central Maintenance Fund Non Schools
16/05/2017,City Developments and Neighbourhood,Hardscape Products Ltd,Planned,829.44,165.89,Building Works & Repairs/Maintenance/Alterations,City Highways - Operation
23/05/2017,City Developments and Neighbourhood,Hardscape Products Ltd,Planned,"2,788.05",557.61,Building Works & Repairs/Maintenance/Alterations,City Highways - Operation
17/05/2017,Education & Childrens Services,RSP Rail Travel Account,Employee Public Transport Expenses,"2,973.85",0.00,Public Transport Expenses,CYPS Business
26/05/2017,Corporate Resources & Support,AVCO Systems ltd,Annual Maintenance - Software,"7,500.00","1,500.00",Repairs & Maintenance  IT Software,Service Support
09/05/2017,City Developments and Neighbourhood,ADI UK LTD,Project - Hire Equipment / Events,"4,500.00",900.00,Project - Equipment Hire / Lease,Corporate Event Management
09/05/2017,Education & Childrens Services,Leicester Riders Basketball Club,Community Expenditure,999.00,0.00,Community Expenditure,YOS Team 5
09/05/2017,Education & Childrens Services,,Training,540.00,0.00,Employee Training,Management Support
09/05/2017,City Developments and Neighbourhood,Elecosoft UK Ltd,Support Fees - Software,990.00,198.00,Repairs & Maintenance  IT Software,City Highways - Management
23/05/2017,Adults & Housing Department,Technical Surfaces Ltd,Grounds Maintenance,597.00,119.40,Grounds Maintenance,St Margarets Pastures
26/05/2017,Adults & Housing Department,Technical Surfaces Ltd,Grounds Maintenance,597.00,119.40,Grounds Maintenance,Aylestone Recreation Ground - Football Foundation Pavillion
,City Developments and Neighbourhood,H&B Specialist Supplies Ltd,Responsive,992.45,198.49,Transport Infrastructure,Stock Procurement
24/05/2017,Adults & Housing Department,Brooklyn Care Home,Residential Permanent,"1,624.00",0.00,Residential Care,LD Team 1-Commissioning
24/05/2017,Adults & Housing Department,Brooklyn Care Home,Residential Permanent,"9,704.00",0.00,Residential Care,LD Team 1-Commissioning
09/05/2017,Adults & Housing Department,Ministry of Justice,Leicestershire Rutland Probation Trust - Restriction on Bail,"25,836.50",0.00,Drug and Alcohol Services,Criminal Justice Treatment Services - Lot 2
24/05/2017,Adults & Housing Department,FSHC NEWCO LTD T/AS: THE LAWNS,Residential Permanent,"1,576.00",0.00,Residential Care,EAST - Commissioning - Supported Residents Care Team
09/05/2017,Education & Childrens Services,Leicester GT Education Company Ltd,BSF - ICT,"10,259.99","2,052.00",BSF - ICT,BSF Unitary Payments
23/05/2017,,Leicester BSF Company 1 Ltd,Consultant Fees,"24,179.23","4,835.85",Consultant Fees,Education and Children's Services
23/05/2017,City Developments and Neighbourhood,Kingdom Security,Security & Safety Services,"1,368.36",273.67,Public Order & Security Services,Haymarket Bus Station
23/05/2017,City Developments and Neighbourhood,Kingdom Security,Security & Safety Services,"1,368.36",273.67,Public Order & Security Services,Haymarket Bus Station
17/05/2017,City Developments and Neighbourhood,Kingdom Security,Security & Safety Services,"1,657.79",331.56,Public Order & Security Services,Dawn Centre Accommodation
24/05/2017,Adults & Housing Department,Mauricare (AS) Ltd,Residential Respite,608.57,0.00,Residential Care,WEST - Comm'g - Braunstone and Meridian - Team 2
24/05/2017,Adults & Housing Department,Harley House Care Home,Nursing Permanent,"1,852.00",0.00,Nursing Care,EAST - Commissioning - Supported Residents Care Team
,City Developments and Neighbourhood,A E Faulks,Equipment Hire/Lease,"2,436.00",487.20,Equipment Hire / Lease,City Highways - Operation
23/05/2017,Education & Childrens Services,Bright Bees Nursery Ltd,SEN Placements,"1,500.00",0.00,Other Agencies,Early Years Top-Ups
23/05/2017,Education & Childrens Services,Bright Bees Nursery Ltd,SEN Placements,"1,500.00",0.00,Other Agencies,Early Years Top-Ups
23/05/2017,Education & Childrens Services,Bright Bees Nursery Ltd,SEN Placements,"2,500.00",0.00,Other Agencies,Early Years Top-Ups
16/05/2017,Adults & Housing Department,Allwag Promotions Ltd,Marketing and Advertising,819.00,163.80,Marketing & Advertising,Sports Management Overhead Account
23/05/2017,Corporate Resources & Support,South West Trains,Employee Public Transport Expenses,"8,882.55",0.00,Public Transport Expenses,Payroll
31/05/2017,City Developments and Neighbourhood,Pace Fuelcare,Vehicle Running Cost - Diesel,"32,571.03","6,514.21",Vehicle Running Cost - Diesel,Forecourt Services
16/05/2017,Corporate Resources & Support,Reed Specialist Recruitment Ltd,Agency Local Government Staff,"201,932.21","40,386.44",Agency Local Government Staff,Agency Staff Provider
31/05/2017,City Developments and Neighbourhood,JCW Energy Services Ltd,Servicing,"4,934.00",986.80,Building Services / Repairs & Maintenance  Fixtures & Fittings,Schools Buy Back Board
23/05/2017,Adults & Housing Department,Storm Homecare Ltd,Day Care /Community Opportunities,"2,398.56",0.00,Day Care /Community Opportunities,AMH Team 3 -Commissioning
24/05/2017,Adults & Housing Department,Hayes Park Nursing Home,Residential Permanent,"1,704.00",0.00,Residential Care,EAST - Commissioning - Supported Residents Care Team
24/05/2017,Adults & Housing Department,Hayes Park Nursing Home,Nursing Permanent,"1,852.00",0.00,Nursing Care,EAST - Commissioning - Supported Residents Care Team
24/05/2017,Adults & Housing Department,Hayes Park Nursing Home,Nursing Permanent,"1,852.00",0.00,Nursing Care,EAST - Comm'g - Merlyn Vaz HC and St Peters - East 1
24/05/2017,Adults & Housing Department,Hayes Park Nursing Home,Nursing Permanent,"1,852.00",0.00,Nursing Care,EAST - Commissioning - Supported Residents Care Team
24/05/2017,Adults & Housing Department,Hayes Park Nursing Home,Nursing Permanent,"1,852.00",0.00,Nursing Care,EAST - Commissioning - Supported Residents Care Team
24/05/2017,Adults & Housing Department,Ryedale House Ltd,Residential Permanent,"1,900.00",0.00,Residential Care,Commissioning - Braunstone Health & Social Care Centre - Adult Mental Health
24/05/2017,Adults & Housing Department,Ryedale House Ltd,Residential Permanent,"2,288.96",0.00,Residential Care,Commissioning Community - Adult Mental Health District Forensic Service (Under 65's)
16/05/2017,Corporate Resources & Support,Stonewall Equality Ltd,Membership and Subscriptions,"2,500.00",500.00,Corporate Membership & Subscriptions,Partnerships Planning & Performance
17/05/2017,Adults & Housing Department,Future Home Care Ltd - Shared Bungalow - Queniborough,Day Support Hours,"3,662.99",0.00,Supported Living,LD Team 2 -Commissioning
,Education & Childrens Services,Guardian Protection Services Ltd,Security & Safety Services,588.00,117.60,Public Order & Security Services,Schools Catering - School Meals Buy Back
,Corporate Resources & Support,Guardian Protection Services Ltd,Security & Safety Services,"1,841.00",368.20,Public Order & Security Services,Cashiers
,City Developments and Neighbourhood,Entwistle & Joynt Ltd T/a North West Tools,Equipment Purchase,638.00,127.60,Equipment Purchase,Management & Admin (VMW)
31/05/2017,City Developments and Neighbourhood,Entwistle & Joynt Ltd T/a North West Tools,Equipment Purchase,510.00,102.00,Equipment Purchase,Kitchens & Bathrooms (RM2)
09/05/2017,Corporate Resources & Support,Barbara Connolly,LCC External Barristers Fees,"3,500.00",700.00,Legal Fees & Charges,Legal Disbursements
24/05/2017,Adults & Housing Department,Avery Homes Grantham Ltd,Residential Permanent,532.40,0.00,Residential Care,EAST - Commissioning - Supported Residents Care Team
23/05/2017,Corporate Resources & Support,Ben Mills,LCC External Barristers Fees,562.50,112.50,Legal Fees & Charges,Legal Disbursements
05/05/2017,,Jordan Road Resufacing Ltd,External Works - Infrastructure,"10,849.64","2,169.93",Transport Infrastructure,City Developments and Neighbourhood
26/05/2017,,Prism UK Medical Ltd,Building Works - Alterations,"1,740.00",348.00,Building Works - Alterations,Housing GF
,Corporate Resources & Support,Health Management Limited,Healthcare Services,"23,031.30","4,606.26",Healthcare Services,Occupational Health Service Provider
17/05/2017,City Developments and Neighbourhood,Tormax United Kingdom Ltd,Responsive,696.88,139.38,Building Services / Repairs & Maintenance  Fixtures & Fittings,New Market Hall
16/05/2017,City Developments and Neighbourhood,LABC,Membership and Subscriptions,"2,902.61",580.52,Corporate Membership & Subscriptions,Building Control
30/05/2017,Adults & Housing Department,Rosywood Care Services Ltd,Residential Permanent,"1,732.00",0.00,Residential Care,LD Short Term/Unplanned Team - Commissioning
09/05/2017,Corporate Resources & Support,MJE Contracts (Leicester) Limited,Responsive,570.00,114.00,Building Works & Repairs/Maintenance/Alterations,Coroners
26/05/2017,,MJE Contracts (Leicester) Limited,Building Works - Alterations,"4,632.72",926.54,Building Works - Alterations,Education and Children's Services
26/05/2017,,MJE Contracts (Leicester) Limited,Building Works - Alterations,"10,809.68","2,161.94",Building Works - Alterations,Education and Children's Services
26/05/2017,City Developments and Neighbourhood,Leicester District Energy Ltd,Project - Responsive,683.48,136.70,Project - R&M Fixtures & Fittings,Contractor Repair & Maintenance projects
,City Developments and Neighbourhood,Leicester District Energy Ltd,Other Energy,"5,428.85","1,085.77",Other Energy,Leicester District Energy
,City Developments and Neighbourhood,Leicester District Energy Ltd,Other Energy,"1,029.06",205.81,Other Energy,Leicester District Energy
,City Developments and Neighbourhood,Leicester District Energy Ltd,Other Energy,"2,049.25",409.85,Other Energy,Leicester District Energy
,City Developments and Neighbourhood,Leicester District Energy Ltd,Other Energy,"1,355.86",271.17,Other Energy,Leicester District Energy
,City Developments and Neighbourhood,Leicester District Energy Ltd,Other Energy,663.77,132.75,Other Energy,Leicester District Energy
26/05/2017,City Developments and Neighbourhood,Keltbray Environmental Solutions,Asbestos - Works,"7,200.00","1,440.00",Asbestos,Central Maintenance Fund Non Schools
26/05/2017,,Keltbray Environmental Solutions,Asbestos - Surveys,"2,400.00",480.00,Asbestos,Education and Children's Services
24/05/2017,Adults & Housing Department,Abberdale House,Residential Permanent,"1,900.00",0.00,Residential Care,LD Team 2 -Commissioning
24/05/2017,Adults & Housing Department,Abberdale House,Residential Permanent,"1,900.00",0.00,Residential Care,EAST - Commissioning - Supported Residents Care Team
16/05/2017,Corporate Resources & Support,Sec-1 Ltd,Training,"1,800.00",360.00,Employee Training,Infrastructure Support
10/05/2017,Education & Childrens Services,ASD Midlands Ltd,Independent School Fees,"6,525.00",0.00,Independent School Fees,Independent and Non-Maintained Schools
10/05/2017,Education & Childrens Services,ASD Midlands Ltd,Independent School Fees,"9,280.00",0.00,Independent School Fees,Independent and Non-Maintained Schools
10/05/2017,Education & Childrens Services,ASD Midlands Ltd,Independent School Fees,"1,350.00",0.00,Independent School Fees,Independent and Non-Maintained Schools
26/05/2017,City Developments and Neighbourhood,Openview Security Solutions Ltd,Professional Fees,"1,467.05",293.41,Management & Business & Administrative Services,CCTV
09/05/2017,Education & Childrens Services,SDSA Leicester,Direct Payments,"5,000.00","1,000.00",Other Establishments,Directorate
,Corporate Resources & Support,Nadia Mansfield,LCC External Barristers Fees,750.00,150.00,Legal Fees & Charges,Legal Disbursements
24/05/2017,Adults & Housing Department,Leicestershire County Care Ltd T/a Hadrian House,Residential Permanent,"1,780.00",0.00,Residential Care,EAST - Commissioning - Supported Residents Care Team
17/05/2017,Adults & Housing Department,Accredo Support & Development Ltd FA SL&FSB,DAY SUPPORT,647.55,0.00,LD Supported Living,LD Team 1-Commissioning
,Adults & Housing Department,Advance Housing & Support Ltd FA SL & FSB,SLEEP-IN SUPPORT,589.68,0.00,MH Supported Living,Commissioning - Braunstone Health & Social Care Centre - Adult Mental Health
12/05/2017,Adults & Housing Department,Creative Support Ltd FA SL & FSB,DAY SUPPORT,832.20,0.00,MH Supported Living,Adult Mental Health - Maidstone Road (Under 65 s) - Commissioning
,Adults & Housing Department,Creative Support Ltd FA SL & FSB,DAY SUPPORT,900.90,0.00,MH Supported Living,Commissioning Community - Adult Mental Health District Forensic Service (Under 65's)
,Adults & Housing Department,Creative Support Ltd FA SL & FSB,WAKING NIGHT SUPPORT,"1,351.35",0.00,LD Supported Living,LD Team 1-Commissioning
,Adults & Housing Department,Creative Support Ltd FA SL & FSB,DAY SUPPORT,"1,591.59",0.00,LD Supported Living,LD Team 1-Commissioning
,Adults & Housing Department,Creative Support Ltd FA SL & FSB,DAY SUPPORT,"1,179.75",0.00,MH Supported Living,Commissioning - Braunstone Health & Social Care Centre - Adult Mental Health
26/05/2017,Adults & Housing Department,Creative Support Ltd FA SL & FSB,DAY SUPPORT,778.80,0.00,MH Supported Living,Adult Mental Health - Maidstone Road (Under 65 s) - Commissioning
26/05/2017,Adults & Housing Department,Mosaic Shaping Disability Services FA SL&FSB,DAY SUPPORT,"1,913.87",0.00,Physical Disability Supported Living,WEST - Comm'g - Braunstone and Meridian - Team 2
,Adults & Housing Department,Sevacare (UK) Ltd,Personal Care / Generic,526.26,0.00,Home Care,WEST - Comm'g - Paisley Road - Team 3
,Adults & Housing Department,Sevacare (UK) Ltd,Personal Care / Generic,673.18,0.00,Home Care,WEST - Comm'g - Paisley Road - Team 3
,Adults & Housing Department,Sevacare (UK) Ltd,Personal Care / Generic,"1,454.05",0.00,Home Care,Locality WEST -- Westcotes -- Team 4
31/05/2017,Adults & Housing Department,MacIntyre Care FA SL&FSB,DAY SUPPORT,"3,712.25",0.00,LD Supported Living,LD Team 2 -Commissioning
,Adults & Housing Department,Prime Life Ltd FA SL&FSB,Waking Night Support Hours,562.84,0.00,Supported Living,EAST - Comm'g - Springfield Road - East 3
,Adults & Housing Department,Prime Life Ltd FA SL&FSB,DAY SUPPORT,520.27,0.00,Physical Disability Supported Living,EAST - Comm'g - Springfield Road - East 3
,Adults & Housing Department,Prime Life Ltd FA SL&FSB,Waking Night Support Hours,750.46,0.00,Supported Living,EAST - Comm'g - Springfield Road - East 3
05/05/2017,Adults & Housing Department,Private Home Care Uk Ltd FA SL&FSB,Personal Care / Generic,"2,497.44",0.00,Home Care,EAST - Commissioning - Supported Residents Care Team
05/05/2017,Adults & Housing Department,Private Home Care Uk Ltd FA SL&FSB,Personal Care / Generic,525.60,0.00,Home Care,Adult Mental Health - Maidstone Road (Under 65 s) - Commissioning
05/05/2017,Adults & Housing Department,Private Home Care Uk Ltd FA SL&FSB,Personal Care / Generic,532.26,0.00,Home Care,LD Targeted Reassessment Team-Commissioning
,Adults & Housing Department,Private Home Care Uk Ltd FA SL&FSB,Personal Care / Generic,640.71,0.00,Home Care,EAST - Comm'g - Rushey Mead - East 2
17/05/2017,Adults & Housing Department,Lifeways Community Care Ltd FA SL&FSB,DAY SUPPORT,560.78,0.00,MH Supported Living,LD Team 1-Commissioning
17/05/2017,Adults & Housing Department,Lifeways Community Care Ltd FA SL&FSB,DAY SUPPORT,"3,546.75",0.00,LD Supported Living,LD Team 2 -Commissioning
17/05/2017,Adults & Housing Department,Lifeways Community Care Ltd FA SL&FSB,DAY SUPPORT,"4,554.90",0.00,LD Supported Living,LD Targeted Reassessment Team-Commissioning
17/05/2017,Adults & Housing Department,Lifeways Community Care Ltd FA SL&FSB,DAY SUPPORT,"1,227.63",0.00,LD Supported Living,LD Team 1-Commissioning
23/05/2017,Adults & Housing Department,Lifeways Community Care Ltd FA SL&FSB,DAY SUPPORT,589.26,0.00,LD Supported Living,LD Team 2 -Commissioning
24/05/2017,Adults & Housing Department,Lifeways Community Care Ltd FA SL&FSB,DAY SUPPORT,982.10,0.00,LD Supported Living,LD Team 2 -Commissioning
24/05/2017,Adults & Housing Department,Lifeways Community Care Ltd FA SL&FSB,Day Support Hours,687.84,0.00,Supported Living,LD Team 1-Commissioning
24/05/2017,Adults & Housing Department,Lifeways Community Care Ltd FA SL&FSB,DAY SUPPORT,"1,235.81",0.00,LD Supported Living,LD Targeted Reassessment Team-Commissioning
24/05/2017,Adults & Housing Department,Lifeways Community Care Ltd FA SL&FSB,DAY SUPPORT,"3,036.60",0.00,LD Supported Living,LD Team 2 -Commissioning
24/05/2017,Adults & Housing Department,Lifeways Community Care Ltd FA SL&FSB,DAY SUPPORT,"2,082.24",0.00,MH Supported Living,Commissioning Community -Adult Mental Health Assertive Outreach
24/05/2017,Adults & Housing Department,Lifeways Community Care Ltd FA SL&FSB,DAY SUPPORT,650.70,0.00,MH Supported Living,Commissioning Community -Adult Mental Health Assertive Outreach
24/05/2017,Adults & Housing Department,Lifeways Community Care Ltd FA SL&FSB,DAY SUPPORT,"1,301.40",0.00,LD Supported Living,LD Team 2 -Commissioning
24/05/2017,Adults & Housing Department,Lifeways Community Care Ltd FA SL&FSB,DAY SUPPORT,"3,004.08",0.00,LD Supported Living,LD Targeted Reassessment Team-Commissioning
09/05/2017,Education & Childrens Services,Local World Ltd,Marketing and Advertising,999.98,200.00,Marketing & Advertising,Recruitment and Assessment Team
24/05/2017,Adults & Housing Department,Bupa Carehomes (Cfh Care) Ltd,Residential Permanent,"1,596.00",0.00,Residential Care,EAST - Commissioning - Supported Residents Care Team
24/05/2017,Adults & Housing Department,Ideal Care Homes Ltd T/a Beaumont Hall,Residential Permanent,"1,704.00",0.00,Residential Care,EAST - Commissioning - Supported Residents Care Team
24/05/2017,Adults & Housing Department,Ideal Care Homes Ltd T/a Beaumont Hall,Residential Permanent,"1,900.00",0.00,Residential Care,EAST - Commissioning - Supported Residents Care Team
05/05/2017,City Developments and Neighbourhood,Larsen Manufacturing Ltd  T/A Larsen Building Products,Responsive,823.20,164.64,Building Works & Repairs/Maintenance/Alterations,Stock Procurement
24/05/2017,Adults & Housing Department,Heathcotes M Ltd,Residential Permanent,"1,732.00",0.00,Residential Care,LD Short Term/Unplanned Team - Commissioning
17/05/2017,Corporate Resources & Support,Toptix UK Ltd,Annual Maintenance - Software,"1,646.25",329.25,Repairs & Maintenance  IT Software,IT Development Fund Purchases
24/05/2017,,Mitie Property Services (Uk) Ltd,Building Works - Alterations,"5,397.99","1,079.60",Building Works - Alterations,Resources and Support
24/05/2017,Adults & Housing Department,Grange Lodge Residential Home Ltd,Residential Permanent,600.00,0.00,Residential Care,Commissioning Community - CMHT City East (Merlyn Vaz)
,City Developments and Neighbourhood,Enter Edem Ltd,Community Expenditure,"6,000.00",0.00,Community Expenditure,Projects
12/05/2017,City Developments and Neighbourhood,Close Circuit Security Services Ltd (CCSS),Project - Planned,720.00,144.00,Project - Repairs / Maintenance / Alterations,Contractor Repair & Maintenance projects
12/05/2017,Adults & Housing Department,Parkview Leicester Ltd T/a Parkview Dispensing Chemist,Nicotine Replacement Therapy (NRT),"1,072.37",0.00,Public Health Initiatives,Smoking Team
,Education & Childrens Services,Horizon Care & Education Group Ltd,Residential Placements,"13,684.20",0.00,Other Agencies,Externally Commissioned Placements
,Education & Childrens Services,Horizon Care & Education Group Ltd,Residential Placements,"11,357.16",0.00,Other Agencies,Externally Commissioned Placements
26/05/2017,Education & Childrens Services,Ace Cleaning Company (Leicester) Ltd,Internal Contract Cleaning Services,"2,649.57",529.91,Internal Contract Building Cleaning,Management Support
,Adults & Housing Department,Help at Home (Previously Mears Care Ltd),Personal Care / Generic,"2,316.85",0.00,Home Care,WEST - Comm'g - Braunstone and Meridian - Team 2
,Adults & Housing Department,Help at Home (Previously Mears Care Ltd),Personal Care / Generic,607.88,0.00,Home Care,LOC EAST - TEAM 2  - Eastern Lodge - Commissioning
,Adults & Housing Department,Hales Group Ltd,Personal Care / Generic,629.95,0.00,Home Care,WEST - Comm'g - Braunstone and Meridian - Team 2
24/05/2017,Adults & Housing Department,Choices Care Ltd,Personal Care / Generic,570.36,0.00,Home Care,WEST - Comm'g - Belgrave - Team 1
24/05/2017,Adults & Housing Department,Choices Care Ltd,Personal Care / Generic,"1,255.52",0.00,Home Care,EAST - Comm'g - Merlyn Vaz HC and St Peters - East 1
24/05/2017,Adults & Housing Department,Western Counselling Services Ltd T/As St Davids House,Residential Short Stay,764.00,0.00,Residential Care,LOC South -  Substance Misuse  - Commissioning
24/05/2017,Adults & Housing Department,Western Counselling Services Ltd T/As St Davids House,Residential Short Stay,"1,528.00",0.00,Residential Care,LOC South -  Substance Misuse  - Commissioning
23/05/2017,Adults & Housing Department,Universal Care Services (UK) Ltd,Personal Care / Generic,"1,697.63",0.00,Home Care,Locality WEST -- Westcotes -- Team 4
23/05/2017,Adults & Housing Department,Universal Care Services (UK) Ltd,Personal Care / Generic,796.76,0.00,Home Care,WEST - Comm'g - Paisley Road - Team 3
23/05/2017,Adults & Housing Department,Universal Care Services (UK) Ltd,Personal Care / Generic,"1,023.87",0.00,Home Care,Locality WEST -- Westcotes -- Team 4
23/05/2017,Adults & Housing Department,Universal Care Services (UK) Ltd,Personal Care / Generic,685.98,0.00,Home Care,Locality WEST -- Westcotes -- Team 4
17/05/2017,Adults & Housing Department,Staffs & Stoke Partnership NHS Trust,ISHS Chlamydia,"10,008.00",0.00,Sexual Health Services (ISHS),Sexual Health
17/05/2017,Adults & Housing Department,Staffs & Stoke Partnership NHS Trust,STI testing & Treatment,"216,822.01",0.00,Sexual Health Services (ISHS),Sexual Health
24/05/2017,Adults & Housing Department,Abbey Healthcare T/a Aaron Court,Residential Permanent,"1,900.00",0.00,Residential Care,WEST - Comm'g - Belgrave - Team 1
24/05/2017,Adults & Housing Department,Abbey Healthcare T/a Aaron Court,Residential Permanent,"1,704.00",0.00,Residential Care,EAST - Commissioning - Supported Residents Care Team
24/05/2017,Adults & Housing Department,Abbey Healthcare T/a Aaron Court,Residential Permanent,"1,900.00",0.00,Residential Care,EAST - Commissioning - Supported Residents Care Team
24/05/2017,Adults & Housing Department,Abbey Healthcare T/a Aaron Court,Nursing Permanent,"1,852.00",0.00,Nursing Care,Health Transfers - Commissioning - Discharge Team 1
24/05/2017,Adults & Housing Department,Abbey Healthcare T/a Aaron Court,Residential Permanent,"1,704.00",0.00,Residential Care,EAST - Commissioning - Supported Residents Care Team
24/05/2017,Adults & Housing Department,Abbey Healthcare T/a Aaron Court,Residential Permanent,"1,704.00",0.00,Residential Care,EAST - Commissioning - Supported Residents Care Team
24/05/2017,Adults & Housing Department,STONESBY HOUSE LTD,Residential Permanent,"1,900.00",0.00,Residential Care,Adult Mental Health - Maidstone Road (Under 65 s) - Commissioning
31/05/2017,City Developments and Neighbourhood,Diatech Scotland Ltd.,Equipment Purchase,"1,050.00",210.00,Equipment Purchase,Stock Procurement
30/05/2017,Education & Childrens Services,Symbol Family Support Services Ltd,Parenting Assessments,"14,391.43",0.00,Other Agencies,Externally Commissioned Placements
24/05/2017,Adults & Housing Department,T & K Stevenson T/As Portland House,Residential Permanent,"1,761.20",0.00,Residential Care,EAST - Commissioning - Supported Residents Care Team
12/05/2017,Adults & Housing Department,Making Space,Sheltered Housing - ILS,"35,836.64",0.00,Sheltered Housing - ILS,ILS Floating Support
26/05/2017,City Developments and Neighbourhood,EA Foulds Limited,Responsive,"2,994.00",598.80,Building Services / Repairs & Maintenance  Fixtures & Fittings,Contractor Repair & Maintenance projects
26/05/2017,City Developments and Neighbourhood,EA Foulds Limited,Responsive,"2,994.00",598.80,Building Services / Repairs & Maintenance  Fixtures & Fittings,City Wide Repairs
24/05/2017,Education & Childrens Services,ACS Business Supplies Ltd,IT Consumables,"1,299.65",259.93,IT Consumables,Business & Admin Support
26/05/2017,City Developments and Neighbourhood,Royal Mail Group Ltd,Postage,"1,298.84",259.77,Postage,Admin Support (Blackbird Road)
,Education & Childrens Services,Capita Resourcing LTd,Agency Local Government Staff,"5,400.00","1,080.00",Agency Local Government Staff,Raising Achievement Service
24/05/2017,Adults & Housing Department,FREEDOM CARE LTD T/AS THE CHANTRY,Residential Permanent,"1,732.00",0.00,Residential Care,LD Short Term/Unplanned Team - Commissioning
24/05/2017,Adults & Housing Department,ABBEY HOUSE,Residential Permanent,"1,704.00",0.00,Residential Care,WEST - Comm'g - Belgrave - Team 1
24/05/2017,Adults & Housing Department,ABBEY HOUSE,Residential Short Stay,"1,696.43",0.00,Residential Care,Locality WEST -- Westcotes -- Team 4
24/05/2017,Adults & Housing Department,ABBEY HOUSE,Interim Residential (Delayed Discharges),950.00,0.00,Residential Care,Health Transfers - Commissioning - Discharge Team 1
24/05/2017,Adults & Housing Department,ABBEY HOUSE,Residential Permanent,"1,732.00",0.00,Residential Care,LD Team 2 -Commissioning
24/05/2017,Adults & Housing Department,ABBEY HOUSE,Residential Permanent,"1,704.00",0.00,Residential Care,EAST - Commissioning - Supported Residents Care Team
24/05/2017,Adults & Housing Department,ABBEY HOUSE,Residential Permanent,"1,900.00",0.00,Residential Care,EAST - Commissioning - Supported Residents Care Team
24/05/2017,Adults & Housing Department,COOPER HOUSE,Residential Permanent,"1,704.00",0.00,Residential Care,EAST - Commissioning - Supported Residents Care Team
24/05/2017,Adults & Housing Department,THORNTON LODGE CARE LTD T/AS THORNTON LODGE,Residential Permanent,"1,596.00",0.00,Residential Care,EAST - Commissioning - Supported Residents Care Team
,Adults & Housing Department,JW CARE SERVICES (UK) LTD,3rd party engaged consultants to be re-imbursed,500.00,0.00,Consultant Fees,DOLS
24/05/2017,Adults & Housing Department,BURGESS CARE LTD,Residential Permanent,"4,362.00",0.00,Residential Care,LD Targeted Reassessment Team-Commissioning
24/05/2017,Adults & Housing Department,BURGESS CARE LTD,Residential Permanent,"6,560.00",0.00,Residential Care,LD Targeted Reassessment Team-Commissioning
24/05/2017,Adults & Housing Department,BURGESS CARE LTD,Residential Permanent,"1,624.00",0.00,Residential Care,LD Targeted Reassessment Team-Commissioning
17/05/2017,,Chris Siddons Building and Property Repair,Building Works - Alterations,"5,904.25",0.00,Building Works - Alterations,Housing GF
24/05/2017,Adults & Housing Department,FIRSTSMILE LTD T/A FRAMLAND,Residential Permanent,"1,596.00",0.00,Residential Care,EAST - Commissioning - Supported Residents Care Team
,Corporate Resources & Support,Miss Beryl Gilead,LCC External Barristers Fees,"1,175.00",235.00,Legal Fees & Charges,Legal Disbursements
16/05/2017,Education & Childrens Services,ADT Taxis,Employee Taxi Travel Expense,595.50,0.00,Taxi Travel Expense,Operational Transport Ad Hoc
,Adults & Housing Department,BODNANT HOUSE,Residential Permanent,"1,704.00",0.00,Residential Care,EAST - Commissioning - Supported Residents Care Team
24/05/2017,Adults & Housing Department,Arbor House,Residential Permanent,"1,704.00",0.00,Residential Care,EAST - Commissioning - Supported Residents Care Team
24/05/2017,Adults & Housing Department,Arbor House,Residential Permanent,"1,704.00",0.00,Residential Care,EAST - Comm'g - Rushey Mead - East 2
24/05/2017,Adults & Housing Department,Arbor House,Residential Short Stay,"1,492.86",0.00,Residential Care,Health Transfers - Commissioning - Discharge Team 1
24/05/2017,Adults & Housing Department,Arbor House,Interim Residential (Delayed Discharges),669.43,0.00,Residential Care,EAST - Comm'g - Uppingham Road - East 4
24/05/2017,Adults & Housing Department,Thurn Court Residential Care Home,Residential Permanent,"1,704.00",0.00,Residential Care,EAST - Commissioning - Supported Residents Care Team
24/05/2017,Adults & Housing Department,Thurn Court Residential Care Home,Residential Permanent,"1,704.00",0.00,Residential Care,LOC WEST - Reablement - Team 1  - Sulgrave Road - Commissioning
24/05/2017,Adults & Housing Department,Thurn Court Residential Care Home,Residential Permanent,"1,900.00",0.00,Residential Care,EAST - Commissioning - Supported Residents Care Team
26/05/2017,Corporate Resources & Support,Critiqom Limited,Printing,"3,551.39",710.28,Printing & Copying,Payroll
26/05/2017,Corporate Resources & Support,Critiqom Limited,Printing,"1,023.41",204.68,Printing & Copying,Payroll
,Corporate Resources & Support,Critiqom Limited,Printing,"1,533.20",306.64,Printing & Copying,Revenues & Benefits - Operations
10/05/2017,Education & Childrens Services,Partnerships in Care,Independent School Fees,"1,575.00",0.00,Independent School Fees,Independent and Non-Maintained Schools
23/05/2017,City Developments and Neighbourhood,Eco Welfare Hire Limited,Equipment Hire/Lease,606.43,121.29,Equipment Hire / Lease,City Highways - Operation
24/05/2017,Adults & Housing Department,ALLAG CARE LIMITED T/AS SYCAMORE COTTAGE,Residential Permanent,"3,220.00",0.00,Residential Care,EAST - Commissioning - Supported Residents Care Team
24/05/2017,Adults & Housing Department,ORCHARD MANOR VIEW,Residential Permanent,"1,704.00",0.00,Residential Care,EAST - Commissioning - Supported Residents Care Team
24/05/2017,Adults & Housing Department,ORCHARD MANOR VIEW,Residential Permanent,"1,296.00",0.00,Residential Care,WEST - Comm'g - Paisley Road - Team 3
24/05/2017,City Developments and Neighbourhood,Roy Dennies Signs Ltd,Repairs & Maintenance Vehicles,"2,605.00",521.00,Vehicles Repairs & Maintenance / Parts & Accessories,Workshop
24/05/2017,Adults & Housing Department,BEECH TREES,Residential Permanent,"5,846.20",0.00,Residential Care,LD Team 2 -Commissioning
24/05/2017,Adults & Housing Department,BEECH TREES,Residential Permanent,"1,676.00",0.00,Residential Care,LD Team 2 -Commissioning
26/05/2017,Education & Childrens Services,Parallel Parents,Independent Foster Agencies,"2,659.20",0.00,Other Agencies,Independent Fostering Agencies
24/05/2017,Adults & Housing Department,GWENDOLEN ROAD CARE HOME,Residential Permanent,"1,900.00",0.00,Residential Care,LD Team 2 -Commissioning
12/05/2017,City Developments and Neighbourhood,New Mind Internet Consultancy Limited,Licences,"4,686.00",937.20,Licences,Visit Leicester
10/05/2017,Education & Childrens Services,Smart Functional Fitness,Sports Coaching Fees,"1,583.33",0.00,Education & Training Services,Arc/Phoenix Unit
24/05/2017,City Developments and Neighbourhood,Adams Industrial Doors,Responsive,"1,700.00",340.00,Building Works & Repairs/Maintenance/Alterations,General Corporate Estate
26/05/2017,,Yorkshire Elite Scaffolding Ltd,Equipment Hire/Lease,"1,840.00",368.00,Equipment Hire / Lease,City Developments and Neighbourhood
,Corporate Resources & Support,London Grid Limited,Communication Equipment Lease / Rental,"573,542.80","114,708.56",Communications Equipment Lease / Rental,Wan/Telephony
23/05/2017,Education & Childrens Services,Babington Community  College (Academy),DCB Allocation,"297,643.98",0.00,Payments To Schools,Local Management Of Schools Contingency
,,Cundall Ltd,Consultant Fees,"1,950.00",390.00,Consultant Fees,City Developments and Neighbourhood
24/05/2017,City Developments and Neighbourhood,MITIE Property Services (UK) Ltd,Planned,"5,274.30","1,054.86",Building Services / Repairs & Maintenance  Fixtures & Fittings,Income Management Team
